Workbook

Sheet البيانات
A2: رقم العميل | B2: اسم العميل | C2: رقم الهاتف | D2: العنوان | E2: اسم المندوب
A3: 1 | B3: د.عاطف عبدالله | D3: الشرقية - درب نجم | E3: الكابتن - كامل
A4: 2 | B4: احمد ناصف | D4: شركة الزهراء | E4: الكابتن - كامل
A5: 3 | B5: م.صلاح البرام | C5: 1095683252 | D5: قنا | E5: الكابتن - كامل
A6: 4 | B6: م.اشرف السعدني | C6: 1098283188 | D6: طنوب - المنوفية | E6: الكابتن - كامل
A7: 5 | B7: الحاج محمود العطار | D7: دمنهور - الطريق السريع | E7: الكابتن - كامل
A8: 6 | B8: د.رضا علام | C8: 1026144373 | D8: طنوب - المنوفية | E8: الكابتن - كامل
A9: 7 | B9: شركة المحمدية | D9: كوم حمادة | E9: الكابتن - كامل
A10: 8 | B10: الحاج عوض عكاشه | D10: الدلنجات | E10: محمد عبدالشفيع
A11: 9 | B11: الحاج هادي داود | C11: 1067815645 | D11: دمنهور-عزبة داود | E11: محمد عبدالشفيع
A12: 10 | B12: محمد هنداوي | C12: 1026603578 | D12: المسين - الدلنجات | E12: محمد عبدالشفيع
A13: 11 | B13: م.مصطفي الكلاف | D13: المنشية الابراهمية - دمنهور | E13: محمد عبدالشفيع
A14: 12 | B14: د.نبيل ندا | C14: 1015778218 | D14: شركة مصر فارما - كوم حماده | E14: الكابتن - كامل
A15: 13 | B15: اسامه علام | D15: منشية راضي | E15: الكابتن - كامل
A16: 14 | B16: محمود النجار | D16: الوفائيه | E16: محمد عبدالشفيع
A17: 15 | B17: رشاد رياض | C17: 1004338004 | D17: صفط الحرية - مصر اسكندرية الزراعي -دمنهور | E17: محمد عبدالشفيع
A18: 16 | B18: د.فايز عويس | D18: كوبري قمحة - الدلنجات | E18: محمد عبدالشفيع
A19: 17 | B19: محمود عبدالكريم | C19: 1027822088 | D19: السادات - المنطقة السادسه | E19: الكابتن - كامل
A20: 18 | B20: م.خالد الجالي | D20: ابو المطامير | E20: محمد عبدالشفيع
A21: 19 | B21: محمد جوده ابو يوسف | C21: 1001299166 | D21: ابو حمص | E21: محمد عبدالشفيع
A22: 20 | B22: د.محمد عبده | D22: دمنهور - كوبري فلاقه | E22: محمد عبدالشفيع
A23: 21 | B23: د.محمد زغلول | C23: 1062815211 | D23: ايتاي البارود | E23: محمد عبدالشفيع
A24: 22 | B24: د.محمد عبداللاه | D24: الطيريه البلد - كوم حمادة | E24: محمد عبدالشفيع
A25: 23 | B25: اسامه سالم | D25: كوبري قمحه - دمنهور | E25: محمد عبدالشفيع
A26: 24 | B26: هاني الصاوي | D26: مركز بدر | E26: محمد عبدالشفيع
A27: 25 | B27: داشرف زهران | D27: دمنهور - ش المعهد الديني | E27: محمد عبدالشفيع
A28: 26 | B28: حسن ابو شوشه | C28: 1000627769 | D28: سكران - الدلنجات | E28: محمد عبدالشفيع
A29: 27 | B29: د.رانيا فوده | C29: 1003579499 | D29: اشمون | E29: محمد عبدالشفيع
A30: 28 | B30: د.حماده فتحي | C30: 1067035255 | D30: ابو المطامير | E30: محمد عبدالشفيع
A31: 29 | B31: الهادي اسماعيل | C31: 1100281810 | D31: اطليميس - الدلنجات - طريق المسين | E31: محمد عبدالشفيع
A32: 30 | B32: احمد تركي | C32: 1003221948 | D32: الدلنجات - بعد البوابه طريق المسين | E32: محمد عبدالشفيع
A33: 31 | B33: علي لويزي | C33: 1007401318 | D33: زاوية ابوشوشه - الدلنجات | E33: محمد عبدالشفيع
A34: 32 | B34: د.رشا عيسي | C34: 1115829062 | D34: خمارة | E34: محمد عبدالشفيع
A35: 33 | B35: محمد فوزي المشد | C35: 1006880848 | D35: طريق كفر داود الاقليمي | E35: محمد عبدالشفيع
A36: 34 | B36: د.هاني صقر | C36: 1021758129 | D36: اشمون | E36: محمد عبدالشفيع
A37: 35 | B37: رمضان السماوي | C37: 1012340447 | D37: طنوب - مركز2 - مركز بدر | E37: احمد خفاجي
A38: 36 | B38: احمد عايد | C38: 1090333985 | D38: مزلقان ديما - مصنع اعلاف المرعي | E38: الكابتن - كامل
A39: 37 | B39: د.هاشم ماضي | C39: 100814340 | D39: ابو حمص - الزراعي مباشرة - منزلة الكوبري | E39: محمد عبدالشفيع
A40: 38 | B40: ربيع الورديني | D40: ايتاي البارود | E40: محمد عبدالشفيع
A41: 39 | B41: حماده زنفل | C41: 1065464010 | D41: كوم امبو - ابو المطامير - القرية الرئيسيه | E41: محمد عبدالشفيع
A42: 40 | B42: م.احمد السيد الدسوقي | D42: كوبري المدير - ابو المطامير | E42: محمد عبدالشفيع
A43: 41 | B43: د.هبه فارس | D43: اشمون - المستشفي العام | E43: محمد عبدالشفيع
A44: 42 | B44: د.محمود زبادي | D44: شبراخيت - لقانه | E44: محمد عبدالشفيع
A45: 43 | B45: محمد صبحي عبدالغني | D45: زفتي | E45: الكابتن - كامل
A46: 45 | B46: شركة الاندلس | D46: النجاح | E46: الكابتن - كامل
A47: 46 | B47: م.حسن الباشا | E47: الكابتن - كامل
A48: 47 | B48: د.علا الرامي | D48: كوم حماده | E48: الكابتن - كامل
A49: 48 | B49: شركة بيوفيت | D49: سموحة - الاسكندرية | E49: الكابتن - كامل
A50: 49 | B50: م.محمد حجاج | D50: النهضة - العامرية | E50: الكابتن - كامل
A51: 50 | B51: احمد سلامه | D51: العشرة مدرسة | E51: محمد عبدالشفيع
A52: 51 | B52: احمد داود | D52: شبراخيت - مستناد | E52: محمد عبدالشفيع
A53: 52 | B53: ا.حمدي عبد الصانع | D53: ايتاي البارود | E53: محمد عبدالشفيع
A54: 53 | B54: السيد مسلم | D54: العشرة الاف - ابو المطامير | E54: محمد عبدالشفيع
A55: 54 | B55: رفعت الحوفي | D55: كوم امبو - ابو المطامير - القرية الرئيسيه | E55: محمد عبدالشفيع
A56: 55 | B56: مصطفي الفخراني | D56: مركز بدر | E56: محمد عبدالشفيع
A57: 56 | B57: د.وليد شعت | D57: كوم حمادة | E57: محمد عبدالشفيع
A58: 57 | B58: د.محمد سعيد دياب | D58: كوبري عبد المجيد صالح | E58: محمد عبدالشفيع
A59: 58 | B59: رمضان زينه | D59: تلبقه | E59: محمد عبدالشفيع
A60: 59 | B60: م.اشرف عبدالله | D60: النهضة - العامرية | E60: محمد عبدالشفيع
A61: 60 | B61: علي الشريف | D61: سيدي غازي | E61: محمد عبدالشفيع
A62: 61 | B62: علاء النجار | D62: ايتاي البارود | E62: محمد عبدالشفيع
A63: 62 | B63: ناصر صلاح | D63: ابو حمص | E63: محمد عبدالشفيع
A64: 63 | B64: د.محمود شكر | D64: النجاح | E64: محمد عبدالشفيع
A65: 64 | B65: عبد الرحمن كشك | D65: النجاح | E65: محمد عبدالشفيع
A66: 65 | B66: م.علي القياد | D66: ابو المطامير | E66: محمد عبدالشفيع
A67: 66 | B67: باسم ضيا | D67: قرية 19 لحوم - النوبارية - مجزر | E67: محمد عبدالشفيع
A68: 67 | B68: الشيخ -الشحات عيد مصطفي | D68: ايتاي البارود | E68: محمد عبدالشفيع
A69: 68 | B69: صبري الجندي | C69: 1027987089 | D69: خربتا - كوم حماده | E69: الكابتن - كامل
A70: 69 | B70: محمد الصادق | C70: 1008292563 | D70: الزقازيق - برج القضاة | E70: الكابتن - كامل
A71: 70 | B71: د.محمود ابوسالم | D71: خربتا - كوم حماده | E71: الكابتن - كامل
A72: 71 | B72: د.سامر عبدالجواد | E72: الكابتن - كامل
A73: 72 | B73: وليد بركات | D73: طنوب - المنوفية | E73: احمد خفاجي
A74: 73 | B74: رمضان سلامه | E74: احمد خفاجي
A75: 74 | B75: رمضان السقا | E75: احمد خفاجي
A76: 75 | B76: محمود الخنيزي | D76: طنوب - المنوفية - جامع عبد الواحد | E76: احمد خفاجي
A77: 76 | B77: درويش خطاب | D77: طنوب - المنوفية | E77: احمد خفاجي
A78: 77 | B78: الحاج عبد الشفيع | E78: احمد خفاجي
A79: 78 | B79: محمد عبد الجواد | D79: دمنهور | E79: ا/فتحي مقلد
A80: 79 | B80: رمضان مكي | D80: ايتاي البارود | E80: ا/فتحي مقلد
A81: 80 | B81: ا/فتحي مقلد | E81: الكابتن - كامل
A82: 81 | B82: خالد الرمالي | D82: خربتا | E82: الكابتن - كامل
A83: 82 | B83: محمود السماوي | D83: طنوب 0 المنوفية | E83: احمد خفاجي
A84: 83 | B84: أحمد سعيد
A85: 84
A86: 85
A87: 86
A88: 87
A89: 88
A90: 89
A91: 90
A92: 91
A93: 92
A94: 93
A95: 94
A96: 95
A97: 96
A98: 97
A99: 98
A100: 99
A101: 100
A102: 101
A103: 102
A104: 103
A105: 104
A106: 105
A107: 106
A108: 107
A109: 108
A110: 109
A111: 110
A112: 111
A113: 112
A114: 113
A115: 114
A116: 115
A117: 116
A118: 117
A119: 118
A120: 119
A121: 120
A122: 121
A123: 122
A124: 123
A125: 124
A126: 125
A127: 126
A128: 127
A129: 128
A130: 129
A131: 130
A132: 131
A133: 132
A134: 133
A135: 134
A136: 135
A137: 136

Sheet حساب عميل
B3: شركة بايوكيميكال ايجيبت | E3: Bio chemical egypt
G6: كود العميل
D7: حساب عميل | G7: =IFERROR(INDEX('البيانات '!$A$3:$A$1000,MATCH($C$9,'البيانات '!$B$3:$B$1000,0)),"") -> 1
B9: اسم العميل | C9: د.عاطف عبدالله | E9: تليفون | G9: =IFERROR(VLOOKUP(G7,'البيانات '!A3:C78,3,0),"") -> 0
B10: اسم المنشاة | E10: مدير مسئول
B11: العنوان | C11: =IF(VLOOKUP(G7,'البيانات '!A3:D90,4,0)="","",VLOOKUP(G7,'البيانات '!A3:D90,4,0)) -> الشرقية - درب نجم | E11: مندوب مبيعات | G11: =IFERROR(VLOOKUP(G7,'البيانات '!$A$3:$E$102,5,0),"") -> الكابتن - كامل
B14: م | C14: التاريخ | D14: رقم الفاتورة | E14: قيمة الفاتورة | F14: رصيد سابق | G14: المدفوع | H14: رصيد متبقي | I14: ملاحظات
B15: 1 | C15: 2018-04-29 | E15: 21602 | F15: 0 | G15: 11000 | H15: 10602 | I15: وصل لحاتم من عاطف
B16: 2 | D16: نقدي | E16: 0 | F16: 10602 | G16: 4000 | H16: 6602 | I16: تم اضافه من حساب عاطف لحساب حاتم
B17: 3 | H17: 0
B18: 4 | H18: 0
B19: 5 | H19: 0
B20: 6 | H20: 0
B21: 7 | H21: 0
B22: 8 | H22: 0
B23: 9 | H23: 0
B24: 10 | H24: 0
B25: 11 | H25: 0
B26: 12 | H26: 0
B27: 13 | H27: 0
B28: 14 | H28: 0
B29: 15 | H29: 0
B30: 16 | H30: 0
B31: 17 | H31: 0
B32: 18 | H32: 0
B33: 19 | H33: 0
B34: 20 | H34: 0
B35: 21 | H35: 0
B36: 22 | H36: 0
B37: 23 | H37: 0
B38: 24 | H38: 0
B39: 25 | H39: 0
B40: 26 | H40: 0
B41: 27 | H41: 0
B42: 28 | H42: 0
B43: 29 | H43: 0
B44: 30 | H44: 0
B45: الاجمالي | E45: 21602 | G45: 15000
B47: بايو كيميكال ايجيبت للمطهرات و اضافات الاعلاف . | E47: Bio chemical Egypt for antiseptic & feed additives .
B48: المصنع : دست الاشراف - كوم حماده – البحيرة . | E48: address : dest el ashraf – kom Hamada – al behara
B49: موبايل : 01009958821 – 01099548642 | E49: mob : +2001009958821 - +2001099548642

Sheet د.عاطف عبدالله
B3: شركة بايوكيميكال ايجيبت | E3: Bio chemical egypt
G6: كود العميل
D7: حساب عميل | G7: 1
B9: اسم العميل | C9: =IFERROR(VLOOKUP(G7,'[1]البيانات '!$A$3:$B$102,2,0),"") -> د.عاطف عبدالله | E9: تليفون | G9: =IFERROR(VLOOKUP(G7,'البيانات '!A3:C78,3,0),"") -> 0
B10: اسم المنشاة | E10: مدير مسئول
B11: العنوان | C11: =IFERROR(VLOOKUP(G7,'البيانات '!A3:D78,4,0),"") -> الشرقية - درب نجم | E11: مندوب مبيعات | G11: =IFERROR(VLOOKUP(G7,'[1]البيانات '!$A$3:$E$102,5,0),"") -> الكابتن - كامل
B14: م | C14: التاريخ | D14: رقم الفاتورة | E14: قيمة الفاتورة | F14: رصيد سابق | G14: المدفوع | H14: رصيد متبقي | I14: ملاحظات
B15: 1 | C15: 2018-04-29 | E15: 21602 | F15: 0 | G15: 11000 | H15: =E15+F15-G15 -> 10602 | I15: وصل لحاتم من عاطف
B16: 2 | D16: نقدي | E16: 0 | F16: 10602 | G16: 4000 | H16: =E16+F16-G16 -> 6602 | I16: تم اضافه من حساب عاطف لحساب حاتم
B17: 3 | H17: 0
B18: 4 | H18: 0
B19: 5 | H19: 0
B20: 6 | H20: 0
B21: 7 | H21: 0
B22: 8 | H22: 0
B23: 9 | H23: 0
B24: 10 | H24: 0
B25: 11 | H25: 0
B26: 12 | H26: 0
B27: 13 | H27: 0
B28: 14 | H28: 0
B29: 15 | H29: 0
B30: 16 | H30: 0
B31: 17 | H31: 0
B32: 18 | H32: 0
B33: 19 | H33: 0
B34: 20 | H34: 0
B35: 21 | H35: 0
B36: 22 | H36: 0
B37: 23 | H37: 0
B38: 24 | H38: 0
B39: 25 | H39: 0
B40: 26 | H40: 0
B41: 27 | H41: 0
B42: 28 | H42: 0
B43: 29 | H43: 0
B44: 30 | H44: 0
B45: الاجمالي | E45: =SUM(E15:E44) -> 21602 | G45: =SUM(G15:G44) -> 15000
B47: بايو كيميكال ايجيبت للمطهرات و اضافات الاعلاف . | E47: Bio chemical Egypt for antiseptic & feed additives .
B48: المصنع : دست الاشراف - كوم حماده – البحيرة . | E48: address : dest el ashraf – kom Hamada – al behara
B49: موبايل : 01009958821 – 01099548642 | E49: mob : +2001009958821 - +2001099548642

Sheet احمد ناصف
B3: شركة بايوكيميكال ايجيبت | E3: Bio chemical egypt
G6: كود العميل
D7: حساب عميل | G7: 2
B9: اسم العميل | C9: =IFERROR(VLOOKUP(G7,'[1]البيانات '!$A$3:$B$102,2,0),"") -> احمد ناصف | E9: تليفون | G9: =IFERROR(VLOOKUP(G7,'البيانات '!A3:C78,3,0),"") -> 0
B10: اسم المنشاة | E10: مدير مسئول
B11: العنوان | C11: =IFERROR(VLOOKUP(G7,'البيانات '!A3:D78,4,0),"") -> شركة الزهراء | E11: مندوب مبيعات | G11: =IFERROR(VLOOKUP(G7,'[1]البيانات '!$A$3:$E$102,5,0),"") -> الكابتن - كامل
B14: م | C14: التاريخ | D14: رقم الفاتورة | E14: قيمة الفاتورة | F14: رصيد سابق | G14: المدفوع | H14: رصيد متبقي | I14: ملاحظات
B15: 1 | C15: 2018-04-29 | D15: حتي هذا التاريخ باقي | H15: 23305
B16: 2 | D16: مرتجع | E16: -11048 | F16: 23305 | H16: =E16+F16-G16 -> 12257
B17: 3 | C17: 2018-08-02 | D17: مرتجع | E17: -8168 | F17: 12257 | H17: 4089
B18: 4 | H18: 0
B19: 5 | H19: 0
B20: 6 | H20: 0
B21: 7 | H21: 0
B22: 8 | H22: 0
B23: 9 | H23: 0
B24: 10 | H24: 0
B25: 11 | H25: 0
B26: 12 | H26: 0
B27: 13 | H27: 0
B28: 14 | H28: 0
B29: 15 | H29: 0
B30: 16 | H30: 0
B31: 17 | H31: 0
B32: 18 | H32: 0
B33: 19 | H33: 0
B34: 20 | H34: 0
B35: 21 | H35: 0
B36: 22 | H36: 0
B37: 23 | H37: 0
B38: 24 | H38: 0
B39: 25 | H39: 0
B40: 26 | H40: 0
B41: 27 | H41: 0
B42: 28 | H42: 0
B43: 29 | H43: 0
B44: 30 | H44: 0
B45: الاجمالي | E45: =SUM(E15:E44) -> -19216 | G45: =SUM(G15:G44) -> 0
B47: بايو كيميكال ايجيبت للمطهرات و اضافات الاعلاف . | E47: Bio chemical Egypt for antiseptic & feed additives .
B48: المصنع : دست الاشراف - كوم حماده – البحيرة . | E48: address : dest el ashraf – kom Hamada – al behara
B49: موبايل : 01009958821 – 01099548642 | E49: mob : +2001009958821 - +2001099548642

Sheet م.صلاح البرام
B3: شركة بايوكيميكال ايجيبت | E3: Bio chemical egypt
G6: كود العميل
D7: حساب عميل | G7: 3
B9: اسم العميل | C9: =IFERROR(VLOOKUP(G7,'[1]البيانات '!$A$3:$B$102,2,0),"") -> م.صلاح البرام | E9: تليفون | G9: =IFERROR(VLOOKUP(G7,'البيانات '!A3:C78,3,0),"") -> 1095683252
B10: اسم المنشاة | E10: مدير مسئول
B11: العنوان | C11: =IFERROR(VLOOKUP(G7,'البيانات '!A3:D78,4,0),"") -> قنا | E11: مندوب مبيعات | G11: =IFERROR(VLOOKUP(G7,'[1]البيانات '!$A$3:$E$102,5,0),"") -> الكابتن - كامل
B14: م | C14: التاريخ | D14: رقم الفاتورة | E14: قيمة الفاتورة | F14: رصيد سابق | G14: المدفوع | H14: رصيد متبقي | I14: ملاحظات
B15: 1 | C15: 2018-04-29 | E15: 21363 | F15: 0 | G15: 10000 | H15: =E15+F15-G15 -> 11363 | I15: تحويل
B16: 2 | C16: 2018-05-23 | D16: نقدي | E16: 0 | F16: 11363 | G16: 10000 | H16: =E16+F16-G16 -> 1363 | I16: مع لسيارة
B17: 3 | C17: 2018-05-23 | E17: 4680 | F17: 1363 | G17: 0 | H17: 6043
B18: 4 | H18: 0
B19: 5 | H19: 0
B20: 6 | H20: 0
B21: 7 | H21: 0
B22: 8 | H22: 0
B23: 9 | H23: 0
B24: 10 | H24: 0
B25: 11 | H25: 0
B26: 12 | H26: 0
B27: 13 | H27: 0
B28: 14 | H28: 0
B29: 15 | H29: 0
B30: 16 | H30: 0
B31: 17 | H31: 0
B32: 18 | H32: 0
B33: 19 | H33: 0
B34: 20 | H34: 0
B35: 21 | H35: 0
B36: 22 | H36: 0
B37: 23 | H37: 0
B38: 24 | H38: 0
B39: 25 | H39: 0
B40: 26 | H40: 0
B41: 27 | H41: 0
B42: 28 | H42: 0
B43: 29 | H43: 0
B44: 30 | H44: 0
B45: الاجمالي | E45: =SUM(E15:E44) -> 26043 | G45: =SUM(G15:G44) -> 20000
B47: بايو كيميكال ايجيبت للمطهرات و اضافات الاعلاف . | E47: Bio chemical Egypt for antiseptic & feed additives .
B48: المصنع : دست الاشراف - كوم حماده – البحيرة . | E48: address : dest el ashraf – kom Hamada – al behara
B49: موبايل : 01009958821 – 01099548642 | E49: mob : +2001009958821 - +2001099548642

Sheet م.اشرف السعدني
B3: شركة بايوكيميكال ايجيبت | E3: Bio chemical egypt
G6: كود العميل
D7: حساب عميل | G7: 4
B9: اسم العميل | C9: =IFERROR(VLOOKUP(G7,'[1]البيانات '!$A$3:$B$102,2,0),"") -> م.اشرف السعدني | E9: تليفون | G9: =IFERROR(VLOOKUP(G7,'البيانات '!A3:C78,3,0),"") -> 1098283188
B10: اسم المنشاة | E10: مدير مسئول
B11: العنوان | C11: =IFERROR(VLOOKUP(G7,'البيانات '!A3:D78,4,0),"") -> طنوب - المنوفية | E11: مندوب مبيعات | G11: =IFERROR(VLOOKUP(G7,'[1]البيانات '!$A$3:$E$102,5,0),"") -> الكابتن - كامل
B14: م | C14: التاريخ | D14: رقم الفاتورة | E14: قيمة الفاتورة | F14: رصيد سابق | G14: المدفوع | H14: رصيد متبقي | I14: ملاحظات
B15: 1 | C15: .3/2/2018 | D15: 5109 | E15: 6300 | F15: 32690 | H15: =E15+F15-G15 -> 38990
B16: 2 | C16: 2018-02-10 | D16: 5113 | E16: 10062 | F16: 38990 | H16: =E16+F16-G16 -> 49052
B17: 3 | C17: 23/3./2018 | D17: 5139 | E17: 1800 | F17: 44052 | H17: 45852
B18: 4 | C18: 2018-04-29 | H18: 42852
B19: 5 | C19: 2018-04-30 | E19: 42852 | G19: 20000 | H19: 22852
B20: 6 | C20: 2018-05-19 | E20: 22852 | G20: 5000 | H20: 17852
B21: 7 | C21: 2018-06-02 | E21: 17852 | G21: 2000 | H21: 15852
B22: 8 | C22: 2018-06-06 | E22: 15852 | G22: 2000 | H22: 13852
B23: 9 | C23: 2018-06-08 | E23: 13852 | G23: 3000 | H23: 10852
B24: 10 | H24: 0
B25: 11 | H25: 0
B26: 12 | H26: 0
B27: 13 | H27: 0
B28: 14 | H28: 0
B29: 15 | H29: 0
B30: 16 | H30: 0
B31: 17 | H31: 0
B32: 18 | H32: 0
B33: 19 | H33: 0
B34: 20 | H34: 0
B35: 21 | D35: خالص | H35: 0
B36: 22 | H36: =E36+F36-G36 -> 0
B37: 23 | H37: 0
B38: 24 | H38: 0
B39: 25 | H39: 0
B40: 26 | H40: 0
B41: 27 | H41: 0
B42: 28 | H42: 0
B43: 29 | H43: 0
B44: 30 | H44: 0
B45: الاجمالي | E45: =SUM(E15:E44) -> 131422 | G45: =SUM(G15:G44) -> 32000
B47: بايو كيميكال ايجيبت للمطهرات و اضافات الاعلاف . | E47: Bio chemical Egypt for antiseptic & feed additives .
B48: المصنع : دست الاشراف - كوم حماده – البحيرة . | E48: address : dest el ashraf – kom Hamada – al behara
B49: موبايل : 01009958821 – 01099548642 | E49: mob : +2001009958821 - +2001099548642

Sheet الحاج محمود العطار
B3: شركة بايوكيميكال ايجيبت | E3: Bio chemical egypt
G6: كود العميل
D7: حساب عميل | G7: 5
B9: اسم العميل | C9: =IFERROR(VLOOKUP(G7,'[1]البيانات '!$A$3:$B$102,2,0),"") -> الحاج محمود العطار | E9: تليفون | G9: =IFERROR(VLOOKUP(G7,'البيانات '!A3:C78,3,0),"") -> 0
B10: اسم المنشاة | E10: مدير مسئول
B11: العنوان | C11: =IFERROR(VLOOKUP(G7,'البيانات '!A3:D78,4,0),"") -> دمنهور - الطريق السريع | E11: مندوب مبيعات | G11: =IFERROR(VLOOKUP(G7,'[1]البيانات '!$A$3:$E$102,5,0),"") -> الكابتن - كامل
B14: م | C14: التاريخ | D14: رقم الفاتورة | E14: قيمة الفاتورة | F14: رصيد سابق | G14: المدفوع | H14: رصيد متبقي | I14: ملاحظات
B15: 1 | C15: 2017-05-17 | E15: 45264 | F15: 0 | G15: 36000 | H15: =E15+F15-G15 -> 9264
B16: 2 | C16: 2017-08-01 | D16: نقدية | E16: 0 | F16: 9246 | G16: 5000 | H16: =E16+F16-G16 -> 4246
B17: 3 | C17: 2017-08-05 | D17: نقدية | E17: 0 | F17: 4246 | G17: 3500 | H17: 746
B18: 4 | C18: 2017-10-13 | D18: 5016 | E18: 24600 | F18: 746 | G18: 5000 | H18: 20346
B19: 5 | C19: 2017-11-10 | D19: نقدية | E19: 0 | F19: 20346 | G19: 5000 | H19: 15346
B20: 6 | C20: 2017-12-21 | D20: نقدية | E20: 0 | F20: 15346 | G20: 5000 | H20: 10346
B21: 7 | C21: 2018-08-12 | D21: 5 | E21: 11316 | F21: 5400 | G21: 0 | H21: 16716
B22: 8 | E22: 0 | F22: 16716 | G22: 1968 | H22: 14748
B23: 9 | C23: 2018-10-13 | D23: نقدية | E23: 0 | F23: 14748 | G23: 2000 | H23: 12748
B24: 10 | C24: 2018-10-16 | D24: 1369 | E24: 20780 | F24: 12748 | G24: 0 | H24: 33528
B25: 11 | H25: 0
B26: 12 | H26: 0
B27: 13 | H27: 0
B28: 14 | H28: 0
B29: 15 | H29: 0
B30: 16 | H30: 0
B31: 17 | H31: 0
B32: 18 | H32: 0
B33: 19 | H33: 0
B34: 20 | H34: 0
B35: 21 | H35: 0
B36: 22 | H36: 0
B37: 23 | H37: 0
B38: 24 | H38: 0
B39: 25 | H39: 0
B40: 26 | H40: 0
B41: 27 | H41: 0
B42: 28 | H42: 0
B43: 29 | H43: 0
B44: 30 | H44: 0
B45: الاجمالي | E45: =SUM(E15:E44) -> 101960 | G45: =SUM(G15:G44) -> 63468
B47: بايو كيميكال ايجيبت للمطهرات و اضافات الاعلاف . | E47: Bio chemical Egypt for antiseptic & feed additives .
B48: المصنع : دست الاشراف - كوم حماده – البحيرة . | E48: address : dest el ashraf – kom Hamada – al behara
B49: موبايل : 01009958821 – 01099548642 | E49: mob : +2001009958821 - +2001099548642

Sheet د.رضا علام
B3: شركة بايوكيميكال ايجيبت | E3: Bio chemical egypt
G6: كود العميل
D7: حساب عميل | G7: 6
B9: اسم العميل | C9: =IFERROR(VLOOKUP(G7,'[1]البيانات '!$A$3:$B$102,2,0),"") -> د.رضا علام | E9: تليفون | G9: =IFERROR(VLOOKUP(G7,'البيانات '!A3:C78,3,0),"") -> 1026144373
B10: اسم المنشاة | E10: مدير مسئول
B11: العنوان | C11: =IFERROR(VLOOKUP(G7,'البيانات '!A3:D78,4,0),"") -> طنوب - المنوفية | E11: مندوب مبيعات | G11: =IFERROR(VLOOKUP(G7,'[1]البيانات '!$A$3:$E$102,5,0),"") -> الكابتن - كامل
B14: م | C14: التاريخ | D14: رقم الفاتورة | E14: قيمة الفاتورة | F14: رصيد سابق | G14: المدفوع | H14: رصيد متبقي | I14: ملاحظات
B15: 1 | C15: 2017-08-25 | D15: كومبيوتر | E15: 16246 | G15: 5000 | H15: =E15+F15-G15 -> 11246
B16: 2 | C16: 2017-10-06 | D16: نقدي | F16: 11246 | G16: 3000 | H16: =E16+F16-G16 -> 8246
B17: 3 | C17: 2017-10-15 | D17: نقدي | F17: 8246 | G17: 5000 | H17: 3246
B18: 4 | C18: 2017-10-18 | D18: 5017 | E18: 9450 | F18: 3246 | H18: 12696
B19: 5 | C19: 2017-10-28 | D19: نقدي | F19: 12696 | G19: 3000 | H19: 9696
B20: 6 | C20: 2017-11-06 | D20: 5041 | E20: 3360 | F20: 9696 | H20: 13056
B21: 7 | C21: 2017-11-23 | D21: نقدي | F21: 13006 | G21: 3000 | H21: 10006
B22: 8 | C22: 2018-04-29 | H22: 4296
B23: 9 | H23: 0
B24: 10 | H24: 0
B25: 11 | H25: 0
B26: 12 | H26: 0
B27: 13 | H27: 0
B28: 14 | H28: 0
B29: 15 | H29: 0
B30: 16 | H30: 0
B31: 17 | H31: 0
B32: 18 | H32: 0
B33: 19 | H33: 0
B34: 20 | H34: 0
B35: 21 | H35: 0
B36: 22 | H36: 0
B37: 23 | H37: 0
B38: 24 | H38: 0
B39: 25 | H39: 0
B40: 26 | H40: 0
B41: 27 | H41: 0
B42: 28 | H42: 0
B43: 29 | H43: 0
B44: 30 | H44: 0
B45: الاجمالي | E45: =SUM(E15:E44) -> 29056 | G45: =SUM(G15:G44) -> 19000
B47: بايو كيميكال ايجيبت للمطهرات و اضافات الاعلاف . | E47: Bio chemical Egypt for antiseptic & feed additives .
B48: المصنع : دست الاشراف - كوم حماده – البحيرة . | E48: address : dest el ashraf – kom Hamada – al behara
B49: موبايل : 01009958821 – 01099548642 | E49: mob : +2001009958821 - +2001099548642

Sheet د.نبيل ندا
B3: شركة بايوكيميكال ايجيبت | E3: Bio chemical egypt
G6: كود العميل
D7: حساب عميل | G7: 12
B9: اسم العميل | C9: =IFERROR(VLOOKUP(G7,'[1]البيانات '!$A$3:$B$102,2,0),"") -> د.نبيل ندا | E9: تليفون | G9: =IFERROR(VLOOKUP(G7,'البيانات '!A3:C78,3,0),"") -> 1015778218
B10: اسم المنشاة | E10: مدير مسئول
B11: العنوان | C11: =IFERROR(VLOOKUP(G7,'البيانات '!A3:D78,4,0),"") -> شركة مصر فارما - كوم حماده | E11: مندوب مبيعات | G11: =IFERROR(VLOOKUP(G7,'[1]البيانات '!$A$3:$E$102,5,0),"") -> الكابتن - كامل
B14: م | C14: التاريخ | D14: رقم الفاتورة | E14: قيمة الفاتورة | F14: رصيد سابق | G14: المدفوع | H14: رصيد متبقي | I14: ملاحظات
B15: 1 | C15: 2018-05-25 | E15: -25472 | F15: 0 | G15: -7000 | H15: =E15+F15-G15 -> -18472
B16: 2 | C16: 2018-06-28 | F16: -18472 | G16: -4000 | H16: =E16+F16-G16 -> -14472
B17: 3 | C17: 2018-08-05 | F17: -14472 | G17: -4000 | H17: -10472
B18: 4 | C18: 2018-08-17 | E18: 2650 | F18: -10472 | G18: 0 | H18: -7822
B19: 5 | H19: 0
B20: 6 | H20: 0
B21: 7 | H21: 0
B22: 8 | H22: 0
B23: 9 | H23: 0
B24: 10 | H24: 0
B25: 11 | H25: 0
B26: 12 | H26: 0
B27: 13 | H27: 0
B28: 14 | H28: 0
B29: 15 | H29: 0
B30: 16 | H30: 0
B31: 17 | H31: 0
B32: 18 | H32: 0
B33: 19 | H33: 0
B34: 20 | H34: 0
B35: 21 | H35: 0
B36: 22 | H36: 0
B37: 23 | H37: 0
B38: 24 | H38: 0
B39: 25 | H39: 0
B40: 26 | H40: 0
B41: 27 | H41: 0
B42: 28 | H42: 0
B43: 29 | H43: 0
B44: 30 | H44: 0
B45: الاجمالي | E45: =SUM(E15:E44) -> -22822 | G45: =SUM(G15:G44) -> -15000
B47: بايو كيميكال ايجيبت للمطهرات و اضافات الاعلاف . | E47: Bio chemical Egypt for antiseptic & feed additives .
B48: المصنع : دست الاشراف - كوم حماده – البحيرة . | E48: address : dest el ashraf – kom Hamada – al behara
B49: موبايل : 01009958821 – 01099548642 | E49: mob : +2001009958821 - +2001099548642

Sheet شركة المحمدية
B3: شركة بايوكيميكال ايجيبت | E3: Bio chemical egypt
G6: كود العميل
D7: حساب عميل | G7: 7
B9: اسم العميل | C9: =IFERROR(VLOOKUP(G7,'[1]البيانات '!$A$3:$B$102,2,0),"") -> شركة المحمدية | E9: تليفون | G9: =IFERROR(VLOOKUP(G7,'البيانات '!A3:C78,3,0),"") -> 0
B10: اسم المنشاة | E10: مدير مسئول
B11: العنوان | C11: =IFERROR(VLOOKUP(G7,'البيانات '!A3:D78,4,0),"") -> كوم حمادة | E11: مندوب مبيعات | G11: =IFERROR(VLOOKUP(G7,'[1]البيانات '!$A$3:$E$102,5,0),"") -> الكابتن - كامل
B14: م | C14: التاريخ | D14: رقم الفاتورة | E14: قيمة الفاتورة | F14: رصيد سابق | G14: المدفوع | H14: رصيد متبقي | I14: ملاحظات
B15: 1 | C15: 2018-06-14 | D15: 5464 | E15: 5775 | F15: 5892 | G15: 6000 | H15: =E15+F15-G15 -> 5667
B16: 2 | C16: 2018-06-21 | D16: 5468 | E16: 1640 | F16: 5667 | H16: =E16+F16-G16 -> 7307
B17: 3 | C17: 2018-06-27 | D17: 5475 | E17: 5250 | F17: 7300 | G17: 4400 | H17: 8150
B18: 4 | C18: 2018-07-06 | D18: نقدي | F18: 8150 | G18: 3200 | H18: 4950
B19: 5 | C19: 2018-07-10 | D19: 5487 | E19: 4600 | F19: 4950 | H19: 9550
B20: 6 | C20: 2018-07-15 | D20: نقدي | E20: 9550 | G20: 3000 | H20: 6550
B21: 7 | C21: 2018-07-17 | D21: 5493 | E21: 1640 | F21: 6550 | H21: 8190
B22: 8 | C22: 2018-07-17 | D22: مرتجع | F22: 8190 | G22: 1840 | H22: 6350
B23: 9 | C23: 2018-08-04 | D23: 6 | E23: 12440 | F23: 6350 | H23: 18790
B24: 10 | C24: 2018-08-05 | D24: نقدي | F24: 18790 | G24: 9000 | H24: 9790
B25: 11 | C25: 2018-08-10 | D25: نقدي | F25: 9790 | G25: 3000 | H25: 6790
B26: 12 | C26: 2018-08-14 | D26: 12 | E26: 8360 | F26: 6790 | H26: 15150
B27: 13 | C27: 2018-08-18 | D27: 14 | E27: 19150 | F27: 15150 | G27: 10000 | H27: 24300
B28: 14 | C28: 2018-09-10 | D28: 31 | E28: 12440 | F28: 24400 | G28: 15000 | H28: 21840
B29: 15 | C29: 2018-09-13 | D29: نقدي | F29: 21740 | G29: 5000 | H29: =E29+F29-G29 -> 16740
B30: 16 | C30: 2018-09-18 | D30: نقدي | F30: 16740 | G30: 10000 | H30: =E30+F30-G30 -> 6740
B31: 17 | C31: 2018-09-24 | D31: 43 | E31: 8262 | F31: 6740 | G31: 5000 | H31: =E31+F31-G31 -> 10002
B32: 18 | C32: 2018-10-06 | D32: 1354 | E32: 10500 | F32: 10002 | H32: =E32+F32-G32 -> 20502
B33: 19 | C33: 2018-10-09 | D33: 1355 | E33: 1840 | F33: 20502 | H33: =E33+F33-G33 -> 22342
B34: 20 | C34: 2018-10-14 | D34: نقدي | E34: 0 | F34: 22342 | G34: 7000 | H34: =E34+F34-G34 -> 15342
B35: 21 | H35: 0
B36: 22 | H36: 0
B37: 23 | H37: 0
B38: 24 | H38: 0
B39: 25 | H39: 0
B40: 26 | H40: 0
B41: 27 | H41: 0
B42: 28 | H42: 0
B43: 29 | H43: 0
B44: 30 | H44: 0
B45: الاجمالي | E45: =SUM(E15:E44) -> 101447 | G45: =SUM(G15:G44) -> 82440
B47: بايو كيميكال ايجيبت للمطهرات و اضافات الاعلاف . | E47: Bio chemical Egypt for antiseptic & feed additives .
B48: المصنع : دست الاشراف - كوم حماده – البحيرة . | E48: address : dest el ashraf – kom Hamada – al behara
B49: موبايل : 01009958821 – 01099548642 | E49: mob : +2001009958821 - +2001099548642

Sheet أحمد عايد - ش المرعي
B3: شركة بايوكيميكال ايجيبت | E3: Bio chemical egypt
G6: كود العميل
D7: حساب عميل | G7: 36
B9: اسم العميل | C9: =IFERROR(VLOOKUP(G7,'[1]البيانات '!$A$3:$B$102,2,0),"") -> احمد عايد | D9: كاش | E9: تليفون | G9: =IFERROR(VLOOKUP(G7,'البيانات '!A3:C78,3,0),"") -> 1090333985
B10: اسم المنشاة | E10: مدير مسئول | G10: هاني مراد
B11: العنوان | C11: =IFERROR(VLOOKUP(G7,'البيانات '!A3:D78,4,0),"") -> مزلقان ديما - مصنع اعلاف المرعي | E11: مندوب مبيعات | G11: =IFERROR(VLOOKUP(G7,'[1]البيانات '!$A$3:$E$102,5,0),"") -> الكابتن - كامل
B14: م | C14: التاريخ | D14: رقم الفاتورة | E14: قيمة الفاتورة | F14: رصيد سابق | G14: المدفوع | H14: رصيد متبقي | I14: ملاحظات
B15: 1 | C15: 2018-03-21 | D15: 5138 | E15: 10497 | G15: 10497 | H15: =E15+F15-G15 -> 0
B16: 2 | C16: 2018-07-01 | D16: 5478 | E16: 9700 | G16: 9300 | H16: =E16+F16-G16 -> 400 | I16: خصم 400
B17: 3 | C17: 2018-08-30 | D17: 22 | E17: 16400 | G17: 16400 | H17: 0
B18: 4 | C18: 2018-09-26 | D18: 44 | E18: 10300 | G18: 10300 | H18: 0
B19: 5 | C19: 2018-09-26 | D19: مرتجع | F19: -4800 | G19: -4800 | H19: 0
B20: 6 | H20: 0
B21: 7 | H21: 0
B22: 8 | H22: 0
B23: 9 | H23: 0
B24: 10 | H24: 0
B25: 11 | H25: 0
B26: 12 | H26: 0
B27: 13 | H27: 0
B28: 14 | H28: 0
B29: 15 | H29: 0
B30: 16 | H30: 0
B31: 17 | H31: 0
B32: 18 | H32: 0
B33: 19 | H33: 0
B34: 20 | H34: 0
B35: 21 | H35: 0
B36: 22 | H36: 0
B37: 23 | H37: 0
B38: 24 | H38: 0
B39: 25 | H39: 0
B40: 26 | H40: 0
B41: 27 | H41: 0
B42: 28 | H42: 0
B43: 29 | H43: 0
B44: 30 | H44: 0
B45: الاجمالي | E45: =SUM(E15:E44) -> 46897 | G45: =SUM(G15:G44) -> 41697
B47: بايو كيميكال ايجيبت للمطهرات و اضافات الاعلاف . | E47: Bio chemical Egypt for antiseptic & feed additives .
B48: المصنع : دست الاشراف - كوم حماده – البحيرة . | E48: address : dest el ashraf – kom Hamada – al behara
B49: موبايل : 01009958821 – 01099548642 | E49: mob : +2001009958821 - +2001099548642

Sheet أسامة علام
B3: شركة بايوكيميكال ايجيبت | E3: Bio chemical egypt
G6: كود العميل
D7: حساب عميل | G7: 13
B9: اسم العميل | C9: =IFERROR(VLOOKUP(G7,'[1]البيانات '!$A$3:$B$102,2,0),"") -> اسامه علام | E9: تليفون | G9: =IFERROR(VLOOKUP(G7,'البيانات '!A3:C78,3,0),"") -> 0
B10: اسم المنشاة | E10: مدير مسئول
B11: العنوان | C11: =IFERROR(VLOOKUP(G7,'البيانات '!A3:D78,4,0),"") -> منشية راضي | E11: مندوب مبيعات | G11: =IFERROR(VLOOKUP(G7,'[1]البيانات '!$A$3:$E$102,5,0),"") -> الكابتن - كامل
B14: م | C14: التاريخ | D14: رقم الفاتورة | E14: قيمة الفاتورة | F14: رصيد سابق | G14: المدفوع | H14: رصيد متبقي | I14: ملاحظات
B15: 1 | C15: رصيد سابق | D15: نقدي | F15: 440 | G15: 100 | H15: =E15+F15-G15 -> 340
B16: 2 | F16: 340 | G16: 340 | H16: =E16+F16-G16 -> 0 | I16: ارانب
B17: 3 | D17: فاتورة | E17: 440 | F17: 0 | G17: 0 | H17: 440 | I17: 2يود*220
B18: 4 | H18: 0
B19: 5 | H19: 0
B20: 6 | H20: 0
B21: 7 | H21: 0
B22: 8 | H22: 0
B23: 9 | H23: 0
B24: 10 | H24: 0
B25: 11 | H25: 0
B26: 12 | H26: 0
B27: 13 | H27: 0
B28: 14 | H28: 0
B29: 15 | H29: 0
B30: 16 | H30: 0
B31: 17 | H31: 0
B32: 18 | H32: 0
B33: 19 | H33: 0
B34: 20 | H34: 0
B35: 21 | H35: 0
B36: 22 | H36: 0
B37: 23 | H37: 0
B38: 24 | H38: 0
B39: 25 | H39: 0
B40: 26 | H40: 0
B41: 27 | H41: 0
B42: 28 | H42: 0
B43: 29 | H43: 0
B44: 30 | H44: 0
B45: الاجمالي | E45: =SUM(E15:E44) -> 440 | G45: =SUM(G15:G44) -> 440
B47: بايو كيميكال ايجيبت للمطهرات و اضافات الاعلاف . | E47: Bio chemical Egypt for antiseptic & feed additives .
B48: المصنع : دست الاشراف - كوم حماده – البحيرة . | E48: address : dest el ashraf – kom Hamada – al behara
B49: موبايل : 01009958821 – 01099548642 | E49: mob : +2001009958821 - +2001099548642

Sheet محمد صبحي عبدالغني
B3: شركة بايوكيميكال ايجيبت | E3: Bio chemical egypt
G6: كود العميل
D7: حساب عميل | G7: 43
B9: اسم العميل | C9: =IFERROR(VLOOKUP(G7,'[1]البيانات '!$A$3:$B$102,2,0),"") -> محمد صبحي عبدالغني | E9: تليفون | G9: =IFERROR(VLOOKUP(G7,'البيانات '!A3:C78,3,0),"") -> 0
B10: اسم المنشاة | E10: مدير مسئول
B11: العنوان | C11: =IFERROR(VLOOKUP(G7,'البيانات '!A3:D78,4,0),"") -> زفتي | E11: مندوب مبيعات | G11: =IFERROR(VLOOKUP(G7,'[1]البيانات '!$A$3:$E$102,5,0),"") -> 0
B14: م | C14: التاريخ | D14: رقم الفاتورة | E14: قيمة الفاتورة | F14: رصيد سابق | G14: المدفوع | H14: رصيد متبقي | I14: ملاحظات
B15: 1 | C15: 2018-05-13 | E15: 9450 | F15: 0 | G15: 5000 | H15: =E15+F15-G15 -> 4450
B16: 2 | C16: 2018-06-22 | E16: 9450 | F16: 4450 | G16: 11000 | H16: =E16+F16-G16 -> 2900
B17: 3 | C17: 2018-08-04 | E17: 10500 | F17: 2900 | G17: 0 | H17: 13400
B18: 4 | C18: 2018-08-05 | D18: نقدي | E18: -570 | F18: 13400 | G18: 10000 | H18: 2830 | I18: خصم 5ج علي الجركن
B19: 5 | C19: 2018-09-23 | E19: 14790 | F19: 2830 | G19: 0 | H19: 17620
B20: 6 | C20: 2018-09-23 | D20: نقدي | E20: 0 | F20: 17620 | G20: 17350 | H20: 270
B21: 7 | H21: 0
B22: 8 | H22: 0
B23: 9 | H23: 0
B24: 10 | H24: 0
B25: 11 | H25: 0
B26: 12 | H26: 0
B27: 13 | H27: 0
B28: 14 | H28: 0
B29: 15 | H29: 0
B30: 16 | H30: 0
B31: 17 | H31: 0
B32: 18 | H32: 0
B33: 19 | H33: 0
B34: 20 | H34: 0
B35: 21 | H35: 0
B36: 22 | H36: 0
B37: 23 | H37: 0
B38: 24 | H38: 0
B39: 25 | H39: 0
B40: 26 | H40: 0
B41: 27 | H41: 0
B42: 28 | H42: 0
B43: 29 | H43: 0
B44: 30 | H44: 0
B45: الاجمالي | E45: =SUM(E15:E44) -> 43620 | G45: =SUM(G15:G44) -> 43350
B47: بايو كيميكال ايجيبت للمطهرات و اضافات الاعلاف . | E47: Bio chemical Egypt for antiseptic & feed additives .
B48: المصنع : دست الاشراف - كوم حماده – البحيرة . | E48: address : dest el ashraf – kom Hamada – al behara
B49: موبايل : 01009958821 – 01099548642 | E49: mob : +2001009958821 - +2001099548642

Sheet شركة الاندلس
B3: شركة بايوكيميكال ايجيبت | E3: Bio chemical egypt
G6: كود العميل
D7: حساب عميل | G7: 45
B9: اسم العميل | C9: =IFERROR(VLOOKUP(G7,'[1]البيانات '!$A$3:$B$102,2,0),"") -> شركة الاندلس | E9: تليفون | G9: =IFERROR(VLOOKUP(G7,'البيانات '!A3:C78,3,0),"") -> 0
B10: اسم المنشاة | E10: مدير مسئول
B11: العنوان | C11: =IFERROR(VLOOKUP(G7,'البيانات '!A3:D78,4,0),"") -> النجاح | E11: مندوب مبيعات | G11: =IFERROR(VLOOKUP(G7,'[1]البيانات '!$A$3:$E$102,5,0),"") -> الكابتن - كامل
B14: م | C14: التاريخ | D14: رقم الفاتورة | E14: قيمة الفاتورة | F14: رصيد سابق | G14: المدفوع | H14: رصيد متبقي | I14: ملاحظات
B15: 1 | C15: 2018-06-06 | E15: 995 | F15: 0 | G15: 995 | H15: =E15+F15-G15 -> 0 | I15: الشركة
B16: 2 | E16: 800 | F16: 0 | G16: 400 | H16: =E16+F16-G16 -> 400 | I16: طلبات لعبده 745ج وجركن فورمالين ب55ج
B17: 3 | C17: 2018-07-09 | E17: 540 | F17: 0 | G17: 450 | H17: 90 | I17: باقي ع الشركة
B18: 4 | C18: 2018-07-09 | E18: 70 | F18: 400 | H18: 470 | I18: اخذ عبده جركن كلور ب70ج
B19: 5 | H19: 0
B20: 6 | H20: 0
B21: 7 | H21: 0
B22: 8 | H22: 0
B23: 9 | H23: 0
B24: 10 | H24: 0
B25: 11 | H25: 0
B26: 12 | H26: 0
B27: 13 | H27: 0
B28: 14 | H28: 0
B29: 15 | H29: 0
B30: 16 | H30: 0
B31: 17 | H31: 0
B32: 18 | H32: 0
B33: 19 | H33: 0
B34: 20 | H34: 0
B35: 21 | H35: 0
B36: 22 | H36: 0
B37: 23 | H37: 0
B38: 24 | H38: 0
B39: 25 | H39: 0
B40: 26 | H40: 0
B41: 27 | H41: 0
B42: 28 | H42: 0
B43: 29 | H43: 0
B44: 30 | H44: 0
B45: الاجمالي | E45: =SUM(E15:E44) -> 2405 | G45: =SUM(G15:G44) -> 1845
B47: بايو كيميكال ايجيبت للمطهرات و اضافات الاعلاف . | E47: Bio chemical Egypt for antiseptic & feed additives .
B48: المصنع : دست الاشراف - كوم حماده – البحيرة . | E48: address : dest el ashraf – kom Hamada – al behara
B49: موبايل : 01009958821 – 01099548642 | E49: mob : +2001009958821 - +2001099548642

Sheet م.حسن باشا
B3: شركة بايوكيميكال ايجيبت | E3: Bio chemical egypt
G6: كود العميل
D7: حساب عميل | G7: 46
B9: اسم العميل | C9: =IFERROR(VLOOKUP(G7,'[1]البيانات '!$A$3:$B$102,2,0),"") -> م.حسن الباشا | E9: تليفون | G9: =IFERROR(VLOOKUP(G7,'البيانات '!A3:C78,3,0),"") -> 0
B10: اسم المنشاة | E10: مدير مسئول
B11: العنوان | C11: =IFERROR(VLOOKUP(G7,'البيانات '!A3:D78,4,0),"") -> 00:00:00 | E11: مندوب مبيعات | G11: =IFERROR(VLOOKUP(G7,'[1]البيانات '!$A$3:$E$102,5,0),"") -> الكابتن - كامل
B14: م | C14: التاريخ | D14: رقم الفاتورة | E14: قيمة الفاتورة | F14: رصيد سابق | G14: المدفوع | H14: رصيد متبقي | I14: ملاحظات
B15: 1 | C15: 2018-06-06 | E15: 500 | F15: 0 | G15: 500 | H15: =E15+F15-G15 -> 0
B16: 2 | E16: 3645 | F16: 0 | G16: 2000 | H16: =E16+F16-G16 -> 1645 | I16: تعبئة 1215 زجاجه ب3ج للوحده
B17: 3 | E17: 1750 | F17: 1645 | G17: 0 | H17: 3395 | I17: 10يود1% *175
B18: 4 | H18: 0
B19: 5 | H19: 0
B20: 6 | H20: 0
B21: 7 | H21: 0
B22: 8 | H22: 0
B23: 9 | H23: 0
B24: 10 | H24: 0
B25: 11 | H25: 0
B26: 12 | H26: 0
B27: 13 | H27: 0
B28: 14 | H28: 0
B29: 15 | H29: 0
B30: 16 | H30: 0
B31: 17 | H31: 0
B32: 18 | H32: 0
B33: 19 | H33: 0
B34: 20 | H34: 0
B35: 21 | H35: 0
B36: 22 | H36: 0
B37: 23 | H37: 0
B38: 24 | H38: 0
B39: 25 | H39: 0
B40: 26 | H40: 0
B41: 27 | H41: 0
B42: 28 | H42: 0
B43: 29 | H43: 0
B44: 30 | H44: 0
B45: الاجمالي | E45: =SUM(E15:E44) -> 5895 | G45: =SUM(G15:G44) -> 2500
B47: بايو كيميكال ايجيبت للمطهرات و اضافات الاعلاف . | E47: Bio chemical Egypt for antiseptic & feed additives .
B48: المصنع : دست الاشراف - كوم حماده – البحيرة . | E48: address : dest el ashraf – kom Hamada – al behara
B49: موبايل : 01009958821 – 01099548642 | E49: mob : +2001009958821 - +2001099548642

Sheet د.علاء الرامي
B3: شركة بايوكيميكال ايجيبت | E3: Bio chemical egypt
G6: كود العميل
D7: حساب عميل | G7: 47
B9: اسم العميل | C9: =IFERROR(VLOOKUP(G7,'[1]البيانات '!$A$3:$B$102,2,0),"") -> د.علا الرامي | E9: تليفون | G9: =IFERROR(VLOOKUP(G7,'البيانات '!A3:C78,3,0),"") -> 0
B10: اسم المنشاة | E10: مدير مسئول
B11: العنوان | C11: =IFERROR(VLOOKUP(G7,'البيانات '!A3:D78,4,0),"") -> كوم حماده | E11: مندوب مبيعات | G11: =IFERROR(VLOOKUP(G7,'[1]البيانات '!$A$3:$E$102,5,0),"") -> الكابتن - كامل
B14: م | C14: التاريخ | D14: رقم الفاتورة | E14: قيمة الفاتورة | F14: رصيد سابق | G14: المدفوع | H14: رصيد متبقي | I14: ملاحظات
B15: 1 | C15: 2018-10-14 | D15: 1365 | E15: 6900 | F15: 0 | G15: 0 | H15: =E15+F15-G15 -> 6900
B16: 2 | H16: =E16+F16-G16 -> 0
B17: 3 | H17: 0
B18: 4 | H18: 0
B19: 5 | H19: 0
B20: 6 | H20: 0
B21: 7 | H21: 0
B22: 8 | H22: 0
B23: 9 | H23: 0
B24: 10 | H24: 0
B25: 11 | H25: 0
B26: 12 | H26: 0
B27: 13 | H27: 0
B28: 14 | H28: 0
B29: 15 | H29: 0
B30: 16 | H30: 0
B31: 17 | H31: 0
B32: 18 | H32: 0
B33: 19 | H33: 0
B34: 20 | H34: 0
B35: 21 | H35: 0
B36: 22 | H36: 0
B37: 23 | H37: 0
B38: 24 | H38: 0
B39: 25 | H39: 0
B40: 26 | H40: 0
B41: 27 | H41: 0
B42: 28 | H42: 0
B43: 29 | H43: 0
B44: 30 | H44: 0
B45: الاجمالي | E45: =SUM(E15:E44) -> 6900 | G45: =SUM(G15:G44) -> 0
B47: بايو كيميكال ايجيبت للمطهرات و اضافات الاعلاف . | E47: Bio chemical Egypt for antiseptic & feed additives .
B48: المصنع : دست الاشراف - كوم حماده – البحيرة . | E48: address : dest el ashraf – kom Hamada – al behara
B49: موبايل : 01009958821 – 01099548642 | E49: mob : +2001009958821 - +2001099548642

Sheet شركة بيوفت - سموحة
B3: شركة بايوكيميكال ايجيبت | E3: Bio chemical egypt
G6: كود العميل
D7: حساب عميل | G7: 48
B9: اسم العميل | C9: =IFERROR(VLOOKUP(G7,'[1]البيانات '!$A$3:$B$102,2,0),"") -> شركة بيوفيت | E9: تليفون | G9: =IFERROR(VLOOKUP(G7,'البيانات '!A3:C78,3,0),"") -> 0
B10: اسم المنشاة | E10: مدير مسئول | G10: د.محمد جمال
B11: العنوان | C11: =IFERROR(VLOOKUP(G7,'البيانات '!A3:D78,4,0),"") -> سموحة - الاسكندرية | E11: مندوب مبيعات | G11: =IFERROR(VLOOKUP(G7,'[1]البيانات '!$A$3:$E$102,5,0),"") -> الكابتن - كامل
B14: م | C14: التاريخ | D14: رقم الفاتورة | E14: قيمة الفاتورة | F14: رصيد سابق | G14: المدفوع | H14: رصيد متبقي | I14: ملاحظات
B15: 1 | C15: 2018-10-04 | D15: 1352 | E15: 5918 | F15: 0 | G15: 0 | H15: =E15+F15-G15 -> 5918
B16: 2 | C16: 2018-10-17 | D16: 1370 | E16: 7625 | F16: 5918 | G16: 0 | H16: =E16+F16-G16 -> 13543
B17: 3 | H17: 0
B18: 4 | H18: 0
B19: 5 | H19: 0
B20: 6 | H20: 0
B21: 7 | H21: 0
B22: 8 | H22: 0
B23: 9 | H23: 0
B24: 10 | H24: 0
B25: 11 | H25: 0
B26: 12 | H26: 0
B27: 13 | H27: 0
B28: 14 | H28: 0
B29: 15 | H29: 0
B30: 16 | H30: 0
B31: 17 | H31: 0
B32: 18 | H32: 0
B33: 19 | H33: 0
B34: 20 | H34: 0
B35: 21 | H35: 0
B36: 22 | H36: 0
B37: 23 | H37: 0
B38: 24 | H38: 0
B39: 25 | H39: 0
B40: 26 | H40: 0
B41: 27 | H41: 0
B42: 28 | H42: 0
B43: 29 | H43: 0
B44: 30 | H44: 0
B45: الاجمالي | E45: =SUM(E15:E44) -> 13543 | G45: =SUM(G15:G44) -> 0
B47: بايو كيميكال ايجيبت للمطهرات و اضافات الاعلاف . | E47: Bio chemical Egypt for antiseptic & feed additives .
B48: المصنع : دست الاشراف - كوم حماده – البحيرة . | E48: address : dest el ashraf – kom Hamada – al behara
B49: موبايل : 01009958821 – 01099548642 | E49: mob : +2001009958821 - +2001099548642

Sheet م.محمد حجاج
B3: شركة بايوكيميكال ايجيبت | E3: Bio chemical egypt
G6: كود العميل
D7: حساب عميل | G7: 49
B9: اسم العميل | C9: =IFERROR(VLOOKUP(G7,'[1]البيانات '!$A$3:$B$102,2,0),"") -> م.محمد حجاج | E9: تليفون | G9: =IFERROR(VLOOKUP(G7,'البيانات '!A3:C78,3,0),"") -> 0
B10: اسم المنشاة | E10: مدير مسئول
B11: العنوان | C11: =IFERROR(VLOOKUP(G7,'البيانات '!A3:D78,4,0),"") -> النهضة - العامرية | E11: مندوب مبيعات | G11: =IFERROR(VLOOKUP(G7,'[1]البيانات '!$A$3:$E$102,5,0),"") -> الكابتن - كامل
B14: م | C14: التاريخ | D14: رقم الفاتورة | E14: قيمة الفاتورة | F14: رصيد سابق | G14: المدفوع | H14: رصيد متبقي | I14: ملاحظات
B15: 1 | C15: 2018-10-01 | E15: 1840 | F15: 0 | G15: 1840 | H15: =E15+F15-G15 -> 0 | I15: خالص
B16: 2 | H16: =E16+F16-G16 -> 0
B17: 3 | H17: 0
B18: 4 | H18: 0
B19: 5 | H19: 0
B20: 6 | H20: 0
B21: 7 | H21: 0
B22: 8 | H22: 0
B23: 9 | H23: 0
B24: 10 | H24: 0
B25: 11 | H25: 0
B26: 12 | H26: 0
B27: 13 | H27: 0
B28: 14 | H28: 0
B29: 15 | H29: 0
B30: 16 | H30: 0
B31: 17 | H31: 0
B32: 18 | H32: 0
B33: 19 | H33: 0
B34: 20 | H34: 0
B35: 21 | H35: 0
B36: 22 | H36: 0
B37: 23 | H37: 0
B38: 24 | H38: 0
B39: 25 | H39: 0
B40: 26 | H40: 0
B41: 27 | H41: 0
B42: 28 | H42: 0
B43: 29 | H43: 0
B44: 30 | H44: 0
B45: الاجمالي | E45: =SUM(E15:E44) -> 1840 | G45: =SUM(G15:G44) -> 1840
B47: بايو كيميكال ايجيبت للمطهرات و اضافات الاعلاف . | E47: Bio chemical Egypt for antiseptic & feed additives .
B48: المصنع : دست الاشراف - كوم حماده – البحيرة . | E48: address : dest el ashraf – kom Hamada – al behara
B49: موبايل : 01009958821 – 01099548642 | E49: mob : +2001009958821 - +2001099548642

Sheet د.محمود أبو سالم
B3: شركة بايوكيميكال ايجيبت | E3: Bio chemical egypt
G6: كود العميل
D7: حساب عميل | G7: 70
B9: اسم العميل | C9: =IFERROR(VLOOKUP(G7,'[1]البيانات '!$A$3:$B$102,2,0),"") -> د.محمود ابوسالم | E9: تليفون | G9: =IFERROR(VLOOKUP(G7,'البيانات '!A3:C78,3,0),"") -> 0
B10: اسم المنشاة | E10: مدير مسئول
B11: العنوان | C11: =IFERROR(VLOOKUP(G7,'البيانات '!A3:D78,4,0),"") -> خربتا - كوم حماده | E11: مندوب مبيعات | G11: =IFERROR(VLOOKUP(G7,'[1]البيانات '!$A$3:$E$102,5,0),"") -> الكابتن - كامل
B14: م | C14: التاريخ | D14: رقم الفاتورة | E14: قيمة الفاتورة | F14: رصيد سابق | G14: المدفوع | H14: رصيد متبقي | I14: ملاحظات
B15: 1 | C15: 2018-09-25 | E15: 2200 | F15: 0 | G15: 2200 | H15: =E15+F15-G15 -> 0 | I15: خالص
B16: 2 | C16: 2018-10-13 | D16: عينة | E16: 0 | F16: 0 | G16: 0 | H16: 0 | I16: 5لتر يود بالجليسرين
B17: 3 | H17: =E17+F17-G17 -> 0
B18: 4 | H18: 0
B19: 5 | H19: 0
B20: 6 | H20: 0
B21: 7 | H21: 0
B22: 8 | H22: 0
B23: 9 | H23: 0
B24: 10 | H24: 0
B25: 11 | H25: 0
B26: 12 | H26: 0
B27: 13 | H27: 0
B28: 14 | H28: 0
B29: 15 | H29: 0
B30: 16 | H30: 0
B31: 17 | H31: 0
B32: 18 | H32: 0
B33: 19 | H33: 0
B34: 20 | H34: 0
B35: 21 | H35: 0
B36: 22 | H36: 0
B37: 23 | H37: 0
B38: 24 | H38: 0
B39: 25 | H39: 0
B40: 26 | H40: 0
B41: 27 | H41: 0
B42: 28 | H42: 0
B43: 29 | H43: 0
B44: 30 | H44: 0
B45: الاجمالي | E45: =SUM(E15:E44) -> 2200 | G45: =SUM(G15:G44) -> 2200
B47: بايو كيميكال ايجيبت للمطهرات و اضافات الاعلاف . | E47: Bio chemical Egypt for antiseptic & feed additives .
B48: المصنع : دست الاشراف - كوم حماده – البحيرة . | E48: address : dest el ashraf – kom Hamada – al behara
B49: موبايل : 01009958821 – 01099548642 | E49: mob : +2001009958821 - +2001099548642

Sheet د.سامر عبد الجواد
B3: شركة بايوكيميكال ايجيبت | E3: Bio chemical egypt
G6: كود العميل
D7: حساب عميل | G7: 71
B9: اسم العميل | C9: =IFERROR(VLOOKUP(G7,'[1]البيانات '!$A$3:$B$102,2,0),"") -> د.سامر عبدالجواد | E9: تليفون | G9: =IFERROR(VLOOKUP(G7,'البيانات '!A3:C78,3,0),"") -> 0
B10: اسم المنشاة | E10: مدير مسئول
B11: العنوان | C11: =IFERROR(VLOOKUP(G7,'البيانات '!A3:D78,4,0),"") -> 00:00:00 | E11: مندوب مبيعات | G11: =IFERROR(VLOOKUP(G7,'[1]البيانات '!$A$3:$E$102,5,0),"") -> الكابتن - كامل
B14: م | C14: التاريخ | D14: رقم الفاتورة | E14: قيمة الفاتورة | F14: رصيد سابق | G14: المدفوع | H14: رصيد متبقي | I14: ملاحظات
B15: 1 | C15: 2018-07-09 | E15: 1115 | F15: 0 | G15: 1000 | H15: =E15+F15-G15 -> 115 | I15: 115جركن*3.5 60ك فورمالين 115 شغل 200نولون100ماء
B16: 2 | F16: 115 | G16: 500 | H16: =E16+F16-G16 -> -385 | I16: عربون مقدم
B17: 3 | C17: 2018-07-15 | E17: 200 | F17: -385 | G17: 0 | H17: -185 | I17: نولون سيارة الكراتين
B18: 4 | E18: 2640 | F18: -185 | G18: 0 | H18: 2455
B19: 5 | C19: 2018-07-31 | D19: نقدي | E19: 0 | F19: 2640 | G19: 1600 | H19: 1040
B20: 6 | E20: 2500 | F20: 1040 | G20: 2000 | H20: 1540 | I20: اخذ25 ك جلوتر.....*100
B21: 7 | H21: 0
B22: 8 | H22: 0
B23: 9 | H23: 0
B24: 10 | H24: 0
B25: 11 | H25: 0
B26: 12 | H26: 0
B27: 13 | H27: 0
B28: 14 | H28: 0
B29: 15 | H29: 0
B30: 16 | H30: 0
B31: 17 | H31: 0
B32: 18 | H32: 0
B33: 19 | H33: 0
B34: 20 | H34: 0
B35: 21 | H35: 0
B36: 22 | H36: 0
B37: 23 | H37: 0
B38: 24 | H38: 0
B39: 25 | H39: 0
B40: 26 | H40: 0
B41: 27 | H41: 0
B42: 28 | H42: 0
B43: 29 | H43: 0
B44: 30 | H44: 0
B45: الاجمالي | E45: =SUM(E15:E44) -> 6455 | G45: =SUM(G15:G44) -> 5100
B47: بايو كيميكال ايجيبت للمطهرات و اضافات الاعلاف . | E47: Bio chemical Egypt for antiseptic & feed additives .
B48: المصنع : دست الاشراف - كوم حماده – البحيرة . | E48: address : dest el ashraf – kom Hamada – al behara
B49: موبايل : 01009958821 – 01099548642 | E49: mob : +2001009958821 - +2001099548642

Sheet محمود عبد الكريم
B3: شركة بايوكيميكال ايجيبت | E3: Bio chemical egypt
G6: كود العميل
D7: حساب عميل | G7: 17
D8: كاش
B9: اسم العميل | C9: =IFERROR(VLOOKUP(G7,'[1]البيانات '!$A$3:$B$102,2,0),"") -> محمود عبدالكريم | E9: تليفون | G9: =IFERROR(VLOOKUP(G7,'البيانات '!A3:C78,3,0),"") -> 1027822088
B10: اسم المنشاة | C10: ميديكال ستار | E10: مدير مسئول
B11: العنوان | C11: =IFERROR(VLOOKUP(G7,'البيانات '!A3:D78,4,0),"") -> السادات - المنطقة السادسه | E11: مندوب مبيعات | G11: =IFERROR(VLOOKUP(G7,'[1]البيانات '!$A$3:$E$102,5,0),"") -> الكابتن - كامل
B14: م | C14: التاريخ | D14: رقم الفاتورة | E14: قيمة الفاتورة | F14: رصيد سابق | G14: المدفوع | H14: رصيد متبقي | I14: ملاحظات
B15: 1 | C15: 2018-01-02 | D15: بدون | E15: 2580 | F15: 0 | G15: 2580 | H15: =E15+F15-G15 -> 0 | I15: كاش
B16: 2 | C16: 2018-01-14 | D16: 5102 | E16: 4500 | F16: 0 | G16: 4500 | H16: =E16+F16-G16 -> 0 | I16: كاش
B17: 3 | H17: 0
B18: 4 | H18: 0
B19: 5 | H19: 0
B20: 6 | H20: 0
B21: 7 | H21: 0
B22: 8 | H22: 0
B23: 9 | H23: 0
B24: 10 | H24: 0
B25: 11 | H25: 0
B26: 12 | H26: 0
B27: 13 | H27: 0
B28: 14 | H28: 0
B29: 15 | H29: 0
B30: 16 | H30: 0
B31: 17 | H31: 0
B32: 18 | H32: 0
B33: 19 | H33: 0
B34: 20 | H34: 0
B35: 21 | H35: 0
B36: 22 | H36: 0
B37: 23 | H37: 0
B38: 24 | H38: 0
B39: 25 | H39: 0
B40: 26 | H40: 0
B41: 27 | H41: 0
B42: 28 | H42: 0
B43: 29 | H43: 0
B44: 30 | H44: 0
B45: الاجمالي | E45: =SUM(E15:E44) -> 7080 | G45: =SUM(G15:G44) -> 7080
B47: بايو كيميكال ايجيبت للمطهرات و اضافات الاعلاف . | E47: Bio chemical Egypt for antiseptic & feed additives .
B48: المصنع : دست الاشراف - كوم حماده – البحيرة . | E48: address : dest el ashraf – kom Hamada – al behara
B49: موبايل : 01009958821 – 01099548642 | E49: mob : +2001009958821 - +2001099548642

Sheet صبري الجندي
B3: شركة بايوكيميكال ايجيبت | E3: Bio chemical egypt
G6: كود العميل
D7: حساب عميل | G7: 68
B9: اسم العميل | C9: =IFERROR(VLOOKUP(G7,'[1]البيانات '!$A$3:$B$102,2,0),"") -> صبري الجندي | E9: تليفون | G9: =IFERROR(VLOOKUP(G7,'البيانات '!A3:C78,3,0),"") -> 1027987089
B10: اسم المنشاة | E10: مدير مسئول
B11: العنوان | C11: =IFERROR(VLOOKUP(G7,'البيانات '!A3:D78,4,0),"") -> خربتا - كوم حماده | E11: مندوب مبيعات | G11: =IFERROR(VLOOKUP(G7,'[1]البيانات '!$A$3:$E$102,5,0),"") -> الكابتن - كامل
B14: م | C14: التاريخ | D14: رقم الفاتورة | E14: قيمة الفاتورة | F14: رصيد سابق | G14: المدفوع | H14: رصيد متبقي | I14: ملاحظات
B15: 1 | C15: 2018-10-15 | D15: رصيد حتي هذا التاريخ | H15: 545
B16: 2 | H16: =E16+F16-G16 -> 0
B17: 3 | H17: 0
B18: 4 | H18: 0
B19: 5 | H19: 0
B20: 6 | H20: 0
B21: 7 | H21: 0
B22: 8 | H22: 0
B23: 9 | H23: 0
B24: 10 | H24: 0
B25: 11 | H25: 0
B26: 12 | H26: 0
B27: 13 | H27: 0
B28: 14 | H28: 0
B29: 15 | H29: 0
B30: 16 | H30: 0
B31: 17 | H31: 0
B32: 18 | H32: 0
B33: 19 | H33: 0
B34: 20 | H34: 0
B35: 21 | H35: 0
B36: 22 | H36: 0
B37: 23 | H37: 0
B38: 24 | H38: 0
B39: 25 | H39: 0
B40: 26 | H40: 0
B41: 27 | H41: 0
B42: 28 | H42: 0
B43: 29 | H43: 0
B44: 30 | H44: 0
B45: الاجمالي | E45: =SUM(E15:E44) -> 0 | G45: =SUM(G15:G44) -> 0
B47: بايو كيميكال ايجيبت للمطهرات و اضافات الاعلاف . | E47: Bio chemical Egypt for antiseptic & feed additives .
B48: المصنع : دست الاشراف - كوم حماده – البحيرة . | E48: address : dest el ashraf – kom Hamada – al behara
B49: موبايل : 01009958821 – 01099548642 | E49: mob : +2001009958821 - +2001099548642

Sheet محمد الصادق
B3: شركة بايوكيميكال ايجيبت | E3: Bio chemical egypt
G6: كود العميل
D7: حساب عميل | G7: 69
B9: اسم العميل | C9: =IFERROR(VLOOKUP(G7,'[1]البيانات '!$A$3:$B$102,2,0),"") -> محمد الصادق | E9: تليفون | G9: =IFERROR(VLOOKUP(G7,'البيانات '!A3:C78,3,0),"") -> 1008292563
B10: اسم المنشاة | C10: موزع | E10: مدير مسئول
B11: العنوان | C11: =IFERROR(VLOOKUP(G7,'البيانات '!A3:D78,4,0),"") -> الزقازيق - برج القضاة | E11: مندوب مبيعات | G11: =IFERROR(VLOOKUP(G7,'[1]البيانات '!$A$3:$E$102,5,0),"") -> الكابتن - كامل
B14: م | C14: التاريخ | D14: رقم الفاتورة | E14: قيمة الفاتورة | F14: رصيد سابق | G14: المدفوع | H14: رصيد متبقي | I14: ملاحظات
B15: 1 | D15: المتبقي عليه | H15: 6870
B16: 2 | H16: 0
B17: 3 | H17: =E17+F17-G17 -> 0
B18: 4 | H18: 0
B19: 5 | H19: 0
B20: 6 | H20: 0
B21: 7 | H21: 0
B22: 8 | H22: 0
B23: 9 | H23: 0
B24: 10 | H24: 0
B25: 11 | H25: 0
B26: 12 | H26: 0
B27: 13 | H27: 0
B28: 14 | H28: 0
B29: 15 | H29: 0
B30: 16 | H30: 0
B31: 17 | H31: 0
B32: 18 | H32: 0
B33: 19 | H33: 0
B34: 20 | H34: 0
B35: 21 | H35: 0
B36: 22 | H36: 0
B37: 23 | H37: 0
B38: 24 | H38: 0
B39: 25 | H39: 0
B40: 26 | H40: 0
B41: 27 | H41: 0
B42: 28 | H42: 0
B43: 29 | H43: 0
B44: 30 | H44: 0
B45: الاجمالي | E45: =SUM(E15:E44) -> 0 | G45: =SUM(G15:G44) -> 0
B47: بايو كيميكال ايجيبت للمطهرات و اضافات الاعلاف . | E47: Bio chemical Egypt for antiseptic & feed additives .
B48: المصنع : دست الاشراف - كوم حماده – البحيرة . | E48: address : dest el ashraf – kom Hamada – al behara
B49: موبايل : 01009958821 – 01099548642 | E49: mob : +2001009958821 - +2001099548642

Sheet رمضان السماوي
B3: شركة بايوكيميكال ايجيبت | E3: Bio chemical egypt
G6: كود العميل
D7: حساب عميل | G7: 35
B9: اسم العميل | C9: =IFERROR(VLOOKUP(G7,'[1]البيانات '!$A$3:$B$102,2,0),"") -> رمضان السماوي | E9: تليفون | G9: =IFERROR(VLOOKUP(G7,'البيانات '!A3:C78,3,0),"") -> 1012340447
B10: اسم المنشاة | E10: مدير مسئول
B11: العنوان | C11: =IFERROR(VLOOKUP(G7,'البيانات '!A3:D78,4,0),"") -> طنوب - مركز2 - مركز بدر | E11: مندوب مبيعات | G11: =IFERROR(VLOOKUP(G7,'[1]البيانات '!$A$3:$E$102,5,0),"") -> احمد خفاجي
B14: م | C14: التاريخ | D14: رقم الفاتورة | E14: قيمة الفاتورة | F14: رصيد سابق | G14: المدفوع | H14: رصيد متبقي | I14: ملاحظات
B15: 1 | C15: 2018-03-14 | D15: 5133 | E15: 10200 | H15: =E15+F15-G15 -> 10200
B16: 2 | C16: 2018-03-16 | D16: 5143 | E16: 4200 | F16: 10200 | H16: =E16+F16-G16 -> 14400
B17: 3 | C17: 2018-03-26 | D17: 5146 | E17: 9190 | F17: 14400 | H17: 23590
B18: 4 | C18: 2018-03-26 | D18: 5147 | E18: 500 | F18: 23590 | H18: 24090
B19: 5 | C19: 2018-05-11 | D19: نقدي | F19: 24090 | G19: 14000 | H19: 10090
B20: 6 | C20: 2018-05-12 | D20: 5233 | E20: 16450 | F20: 10090 | H20: 26540
B21: 7 | C21: 2018-05-24 | D21: نقدي | F21: 26540 | G21: 10000 | H21: 16540
B22: 8 | C22: 2018-05-28 | D22: 5240 | E22: 10600 | F22: 16540 | H22: 27140
B23: 9 | C23: 2018-05-30 | D23: 5242 | E23: 3800 | F23: 27140 | H23: 30940
B24: 10 | C24: 2018-06-12 | D24: 5463 | E24: 5880 | F24: 30940 | H24: 36820
B25: 11 | C25: 2018-07-02 | D25: نقدي | F25: 36820 | G25: 20000 | H25: 16820
B26: 12 | C26: 2018-07-03 | D26: 5482 | E26: 17550 | F26: 16820 | H26: 34370
B27: 13 | C27: 2018-07-26 | D27: نقدي | F27: 34370 | G27: 16500 | H27: 17870
B28: 14 | C28: 2018-07-29 | D28: 5500 | E28: 16900 | F28: 17870 | H28: 34770
B29: 15 | C29: 2018-07-29 | D29: بدون فاتورة | E29: 500 | F29: 3470 | H29: 3970
B30: 16 | C30: 2018-08-19 | D30: 17 | E30: 13350 | F30: 35270 | H30: 48620
B31: 17 | C31: 2018-08-19 | D31: نقدي | F31: 48620 | G31: 20000 | H31: 28620
B32: 18 | C32: 2018-08-19 | D32: اتفاق جديد | F32: 28620 | G32: 2100 | H32: 26520
B33: 19 | C33: 2018-08-24 | D33: 18 | E33: 3750 | F33: 26520 | H33: 30270
B34: 20 | C34: 2018-09-10 | D34: 33 | E34: 5825 | F34: 30270 | H34: 36095
B35: 21 | C35: 2018-09-29 | D35: نقدي | F35: 30520 | G35: 20000 | H35: 10520
B36: 22 | C36: 2018-10-03 | D36: 49 | E36: 7050 | F36: 10520 | H36: 17570
B37: 23 | C37: 2018-10-07 | D37: نقدي | F37: 17570 | G37: 17000 | H37: 570
B38: 24 | C38: 2018-10-09 | D38: 1356 | E38: 18810 | F38: 570 | H38: 19380
B39: 25 | C39: 2018-10-13 | D39: نقدي | E39: 0 | F39: 19380 | G39: 20000 | H39: -620
B40: 26 | H40: 0
B41: 27 | H41: 0
B42: 28 | H42: 0
B43: 29 | H43: 0
B44: 30 | H44: 0
B45: 31 | H45: 0
B46: 32 | H46: 0
B47: 33 | H47: 0
B48: 34 | H48: 0
B49: 35 | H49: 0
B50: 36 | H50: 0
B51: 37 | H51: 0
B52: 38 | H52: 0
B53: 39 | H53: 0
B54: 40 | H54: 0
B55: 41 | H55: 0
B56: 42 | H56: 0
B57: 43 | H57: 0
B58: 44 | H58: 0
B59: 45 | H59: 0
B60: 46 | H60: 0
B61: 47 | H61: 0
B62: 48 | H62: 0
B63: 49 | H63: 0
B64: 50 | H64: 0
B65: 51 | H65: 0
B66: 52 | H66: 0
B67: 53 | H67: 0
B68: 54 | H68: 0
B69: 55 | H69: 0
B70: 56 | H70: 0
B71: 57 | H71: 0
B72: 58 | H72: 0
B73: 59 | H73: 0
B74: 60 | H74: 0
B75: 61 | H75: 0
B76: 62 | H76: 0
B77: 63 | H77: 0
B78: 64 | H78: 0
B79: 65 | H79: 0
B80: الاجمالي | E80: =SUM(E15:E44) -> 144555 | G80: =SUM(G15:G44) -> 139600
B82: بايو كيميكال ايجيبت للمطهرات و اضافات الاعلاف . | E82: Bio chemical Egypt for antiseptic & feed additives .
B83: المصنع : دست الاشراف - كوم حماده – البحيرة . | E83: address : dest el ashraf – kom Hamada – al behara
B84: موبايل : 01009958821 – 01099548642 | E84: mob : +2001009958821 - +2001099548642

Sheet وليد بركات
B3: شركة بايوكيميكال ايجيبت | E3: Bio chemical egypt
G6: كود العميل
D7: حساب عميل | G7: 72
B9: اسم العميل | C9: =IFERROR(VLOOKUP(G7,'[1]البيانات '!$A$3:$B$102,2,0),"") -> وليد بركات | E9: تليفون | G9: =IFERROR(VLOOKUP(G7,'البيانات '!A3:C78,3,0),"") -> 0
B10: اسم المنشاة | E10: مدير مسئول
B11: العنوان | C11: =IFERROR(VLOOKUP(G7,'البيانات '!A3:D78,4,0),"") -> طنوب - المنوفية | E11: مندوب مبيعات | G11: =IFERROR(VLOOKUP(G7,'[1]البيانات '!$A$3:$E$102,5,0),"") -> احمد خفاجي
B14: م | C14: التاريخ | D14: رقم الفاتورة | E14: قيمة الفاتورة | F14: رصيد سابق | G14: المدفوع | H14: رصيد متبقي | I14: ملاحظات
B15: 1 | C15: 2018-05-28 | E15: 14040 | F15: 0 | G15: 0 | H15: =E15+F15-G15 -> 14040
B16: 2 | C16: 2018-07-21 | E16: 13650 | F16: 14040 | G16: 14000 | H16: =E16+F16-G16 -> 13690 | I16: مرسلين
B17: 3 | C17: 2018-09-30 | D17: نقدي | E17: 0 | F17: 13690 | G17: 11000 | H17: 2690
B18: 4 | D18: مرتجع | E18: -1200 | F18: 2690 | H18: 1490
B19: 5 | H19: 0
B20: 6 | H20: 0
B21: 7 | H21: 0
B22: 8 | H22: 0
B23: 9 | H23: 0
B24: 10 | H24: 0
B25: 11 | H25: 0
B26: 12 | H26: 0
B27: 13 | H27: 0
B28: 14 | H28: 0
B29: 15 | H29: 0
B30: 16 | H30: 0
B31: 17 | H31: 0
B32: 18 | H32: 0
B33: 19 | H33: 0
B34: 20 | H34: 0
B35: 21 | H35: 0
B36: 22 | H36: 0
B37: 23 | H37: 0
B38: 24 | H38: 0
B39: 25 | H39: 0
B40: 26 | H40: 0
B41: 27 | H41: 0
B42: 28 | H42: 0
B43: 29 | H43: 0
B44: 30 | H44: 0
B45: الاجمالي | E45: =SUM(E15:E44) -> 26490 | G45: =SUM(G15:G44) -> 25000
B47: بايو كيميكال ايجيبت للمطهرات و اضافات الاعلاف . | E47: Bio chemical Egypt for antiseptic & feed additives .
B48: المصنع : دست الاشراف - كوم حماده – البحيرة . | E48: address : dest el ashraf – kom Hamada – al behara
B49: موبايل : 01009958821 – 01099548642 | E49: mob : +2001009958821 - +2001099548642

Sheet رمضان سلامة
B3: شركة بايوكيميكال ايجيبت | E3: Bio chemical egypt
G6: كود العميل
D7: حساب عميل | G7: 73
B9: اسم العميل | C9: =IFERROR(VLOOKUP(G7,'[1]البيانات '!$A$3:$B$102,2,0),"") -> رمضان سلامه | E9: تليفون | G9: =IFERROR(VLOOKUP(G7,'البيانات '!A3:C78,3,0),"") -> 0
B10: اسم المنشاة | E10: مدير مسئول
B11: العنوان | C11: =IFERROR(VLOOKUP(G7,'البيانات '!A3:D78,4,0),"") -> 00:00:00 | E11: مندوب مبيعات | G11: =IFERROR(VLOOKUP(G7,'[1]البيانات '!$A$3:$E$102,5,0),"") -> احمد خفاجي
B14: م | C14: التاريخ | D14: رقم الفاتورة | E14: قيمة الفاتورة | F14: رصيد سابق | G14: المدفوع | H14: رصيد متبقي | I14: ملاحظات
B15: 1 | C15: 2018-09-18 | E15: 7557 | F15: 0 | G15: 0 | H15: =E15+F15-G15 -> 7557
B16: 2 | H16: =E16+F16-G16 -> 0
B17: 3 | H17: 0
B18: 4 | H18: 0
B19: 5 | H19: 0
B20: 6 | H20: 0
B21: 7 | H21: 0
B22: 8 | H22: 0
B23: 9 | H23: 0
B24: 10 | H24: 0
B25: 11 | H25: 0
B26: 12 | H26: 0
B27: 13 | H27: 0
B28: 14 | H28: 0
B29: 15 | H29: 0
B30: 16 | H30: 0
B31: 17 | H31: 0
B32: 18 | H32: 0
B33: 19 | H33: 0
B34: 20 | H34: 0
B35: 21 | H35: 0
B36: 22 | H36: 0
B37: 23 | H37: 0
B38: 24 | H38: 0
B39: 25 | H39: 0
B40: 26 | H40: 0
B41: 27 | H41: 0
B42: 28 | H42: 0
B43: 29 | H43: 0
B44: 30 | H44: 0
B45: الاجمالي | E45: =SUM(E15:E44) -> 7557 | G45: =SUM(G15:G44) -> 0
B47: بايو كيميكال ايجيبت للمطهرات و اضافات الاعلاف . | E47: Bio chemical Egypt for antiseptic & feed additives .
B48: المصنع : دست الاشراف - كوم حماده – البحيرة . | E48: address : dest el ashraf – kom Hamada – al behara
B49: موبايل : 01009958821 – 01099548642 | E49: mob : +2001009958821 - +2001099548642

Sheet رمضان السقا
B3: شركة بايوكيميكال ايجيبت | E3: Bio chemical egypt
G6: كود العميل
D7: حساب عميل | G7: 74
B9: اسم العميل | C9: =IFERROR(VLOOKUP(G7,'[1]البيانات '!$A$3:$B$102,2,0),"") -> رمضان السقا | E9: تليفون | G9: =IFERROR(VLOOKUP(G7,'البيانات '!A3:C78,3,0),"") -> 0
B10: اسم المنشاة | E10: مدير مسئول
B11: العنوان | C11: =IFERROR(VLOOKUP(G7,'البيانات '!A3:D78,4,0),"") -> 00:00:00 | E11: مندوب مبيعات | G11: =IFERROR(VLOOKUP(G7,'[1]البيانات '!$A$3:$E$102,5,0),"") -> احمد خفاجي
B14: م | C14: التاريخ | D14: رقم الفاتورة | E14: قيمة الفاتورة | F14: رصيد سابق | G14: المدفوع | H14: رصيد متبقي | I14: ملاحظات
B15: 1 | E15: 3450 | F15: 0 | G15: 3450 | H15: =E15+F15-G15 -> 0 | I15: خالص
B16: 2 | H16: =E16+F16-G16 -> 0
B17: 3 | H17: 0
B18: 4 | H18: 0
B19: 5 | H19: 0
B20: 6 | H20: 0
B21: 7 | H21: 0
B22: 8 | H22: 0
B23: 9 | H23: 0
B24: 10 | H24: 0
B25: 11 | H25: 0
B26: 12 | H26: 0
B27: 13 | H27: 0
B28: 14 | H28: 0
B29: 15 | H29: 0
B30: 16 | H30: 0
B31: 17 | H31: 0
B32: 18 | H32: 0
B33: 19 | H33: 0
B34: 20 | H34: 0
B35: 21 | H35: 0
B36: 22 | H36: 0
B37: 23 | H37: 0
B38: 24 | H38: 0
B39: 25 | H39: 0
B40: 26 | H40: 0
B41: 27 | H41: 0
B42: 28 | H42: 0
B43: 29 | H43: 0
B44: 30 | H44: 0
B45: الاجمالي | E45: =SUM(E15:E44) -> 3450 | G45: =SUM(G15:G44) -> 3450
B47: بايو كيميكال ايجيبت للمطهرات و اضافات الاعلاف . | E47: Bio chemical Egypt for antiseptic & feed additives .
B48: المصنع : دست الاشراف - كوم حماده – البحيرة . | E48: address : dest el ashraf – kom Hamada – al behara
B49: موبايل : 01009958821 – 01099548642 | E49: mob : +2001009958821 - +2001099548642

Sheet محمود الحنيزي
B3: شركة بايوكيميكال ايجيبت | E3: Bio chemical egypt
G6: كود العميل
D7: حساب عميل | G7: 75
B9: اسم العميل | C9: =IFERROR(VLOOKUP(G7,'[1]البيانات '!$A$3:$B$102,2,0),"") -> محمود الخنيزي | E9: تليفون | G9: =IFERROR(VLOOKUP(G7,'البيانات '!A3:C78,3,0),"") -> 0
B10: اسم المنشاة | E10: مدير مسئول
B11: العنوان | C11: =IFERROR(VLOOKUP(G7,'البيانات '!A3:D78,4,0),"") -> طنوب - المنوفية - جامع عبد الواحد | E11: مندوب مبيعات | G11: =IFERROR(VLOOKUP(G7,'[1]البيانات '!$A$3:$E$102,5,0),"") -> احمد خفاجي
B14: م | C14: التاريخ | D14: رقم الفاتورة | E14: قيمة الفاتورة | F14: رصيد سابق | G14: المدفوع | H14: رصيد متبقي | I14: ملاحظات
B15: 1 | C15: تعامل اول | E15: 3045 | F15: -500 | G15: 1000 | H15: =E15+F15-G15 -> 1545 | I15: خصم خاص 500ج
B16: 2 | C16: 2018-07-28 | E16: 8400 | F16: 1545 | G16: 0 | H16: =E16+F16-G16 -> 9945
B17: 3 | C17: 2018-09-12 | E17: 3000 | F17: 9945 | G17: 0 | H17: 12945
B18: 4 | H18: 0
B19: 5 | H19: 0
B20: 6 | H20: 0
B21: 7 | H21: 0
B22: 8 | H22: 0
B23: 9 | H23: 0
B24: 10 | H24: 0
B25: 11 | H25: 0
B26: 12 | H26: 0
B27: 13 | H27: 0
B28: 14 | H28: 0
B29: 15 | H29: 0
B30: 16 | H30: 0
B31: 17 | H31: 0
B32: 18 | H32: 0
B33: 19 | H33: 0
B34: 20 | H34: 0
B35: 21 | H35: 0
B36: 22 | H36: 0
B37: 23 | H37: 0
B38: 24 | H38: 0
B39: 25 | H39: 0
B40: 26 | H40: 0
B41: 27 | H41: 0
B42: 28 | H42: 0
B43: 29 | H43: 0
B44: 30 | H44: 0
B45: الاجمالي | E45: =SUM(E15:E44) -> 14445 | G45: =SUM(G15:G44) -> 1000
B47: بايو كيميكال ايجيبت للمطهرات و اضافات الاعلاف . | E47: Bio chemical Egypt for antiseptic & feed additives .
B48: المصنع : دست الاشراف - كوم حماده – البحيرة . | E48: address : dest el ashraf – kom Hamada – al behara
B49: موبايل : 01009958821 – 01099548642 | E49: mob : +2001009958821 - +2001099548642

Sheet درويش خطاب
B3: شركة بايوكيميكال ايجيبت | E3: Bio chemical egypt
G6: كود العميل
D7: حساب عميل | G7: 76
B9: اسم العميل | C9: =IFERROR(VLOOKUP(G7,'[1]البيانات '!$A$3:$B$102,2,0),"") -> درويش خطاب | E9: تليفون | G9: =IFERROR(VLOOKUP(G7,'البيانات '!A3:C78,3,0),"") -> 0
B10: اسم المنشاة | E10: مدير مسئول
B11: العنوان | C11: =IFERROR(VLOOKUP(G7,'البيانات '!A3:D78,4,0),"") -> طنوب - المنوفية | E11: مندوب مبيعات | G11: =IFERROR(VLOOKUP(G7,'[1]البيانات '!$A$3:$E$102,5,0),"") -> احمد خفاجي
B14: م | C14: التاريخ | D14: رقم الفاتورة | E14: قيمة الفاتورة | F14: رصيد سابق | G14: المدفوع | H14: رصيد متبقي | I14: ملاحظات
B15: 1 | C15: اول تعامل | E15: 16100 | F15: 0 | G15: 16100 | H15: =E15+F15-G15 -> 0 | I15: خالص
B16: 2 | C16: 2018-09-21 | E16: 1920 | F16: 0 | G16: 0 | H16: =E16+F16-G16 -> 1920 | I16: شكارة صودا
B17: 3 | H17: 0
B18: 4 | H18: 0
B19: 5 | H19: 0
B20: 6 | H20: 0
B21: 7 | H21: 0
B22: 8 | H22: 0
B23: 9 | H23: 0
B24: 10 | H24: 0
B25: 11 | H25: 0
B26: 12 | H26: 0
B27: 13 | H27: 0
B28: 14 | H28: 0
B29: 15 | H29: 0
B30: 16 | H30: 0
B31: 17 | H31: 0
B32: 18 | H32: 0
B33: 19 | H33: 0
B34: 20 | H34: 0
B35: 21 | H35: 0
B36: 22 | H36: 0
B37: 23 | H37: 0
B38: 24 | H38: 0
B39: 25 | H39: 0
B40: 26 | H40: 0
B41: 27 | H41: 0
B42: 28 | H42: 0
B43: 29 | H43: 0
B44: 30 | H44: 0
B45: الاجمالي | E45: =SUM(E15:E44) -> 18020 | G45: =SUM(G15:G44) -> 16100
B47: بايو كيميكال ايجيبت للمطهرات و اضافات الاعلاف . | E47: Bio chemical Egypt for antiseptic & feed additives .
B48: المصنع : دست الاشراف - كوم حماده – البحيرة . | E48: address : dest el ashraf – kom Hamada – al behara
B49: موبايل : 01009958821 – 01099548642 | E49: mob : +2001009958821 - +2001099548642

Sheet الحاج عبد الشفيع
B3: شركة بايوكيميكال ايجيبت | E3: Bio chemical egypt
G6: كود العميل
D7: حساب عميل | G7: 77
B9: اسم العميل | C9: =IFERROR(VLOOKUP(G7,'[1]البيانات '!$A$3:$B$102,2,0),"") -> الحاج عبد الشفيع | E9: تليفون | G9: =IFERROR(VLOOKUP(G7,'البيانات '!A3:C78,3,0),"") -> 0
B10: اسم المنشاة | E10: مدير مسئول
B11: العنوان | C11: =IFERROR(VLOOKUP(G7,'البيانات '!A3:D78,4,0),"") -> 00:00:00 | E11: مندوب مبيعات | G11: =IFERROR(VLOOKUP(G7,'[1]البيانات '!$A$3:$E$102,5,0),"") -> احمد خفاجي
B14: م | C14: التاريخ | D14: رقم الفاتورة | E14: قيمة الفاتورة | F14: رصيد سابق | G14: المدفوع | H14: رصيد متبقي | I14: ملاحظات
B15: 1 | C15: 2018-07-29 | E15: 3650 | F15: 0 | H15: =E15+F15-G15 -> 3650 | I15: سداد بعد20 يوم
B16: 2 | F16: 3650 | G16: 3650 | H16: =E16+F16-G16 -> 0 | I16: خالص
B17: 3 | H17: 0
B18: 4 | H18: 0
B19: 5 | H19: 0
B20: 6 | H20: 0
B21: 7 | H21: 0
B22: 8 | H22: 0
B23: 9 | H23: 0
B24: 10 | H24: 0
B25: 11 | H25: 0
B26: 12 | H26: 0
B27: 13 | H27: 0
B28: 14 | H28: 0
B29: 15 | H29: 0
B30: 16 | H30: 0
B31: 17 | H31: 0
B32: 18 | H32: 0
B33: 19 | H33: 0
B34: 20 | H34: 0
B35: 21 | H35: 0
B36: 22 | H36: 0
B37: 23 | H37: 0
B38: 24 | H38: 0
B39: 25 | H39: 0
B40: 26 | H40: 0
B41: 27 | H41: 0
B42: 28 | H42: 0
B43: 29 | H43: 0
B44: 30 | H44: 0
B45: الاجمالي | E45: =SUM(E15:E44) -> 3650 | G45: =SUM(G15:G44) -> 3650
B47: بايو كيميكال ايجيبت للمطهرات و اضافات الاعلاف . | E47: Bio chemical Egypt for antiseptic & feed additives .
B48: المصنع : دست الاشراف - كوم حماده – البحيرة . | E48: address : dest el ashraf – kom Hamada – al behara
B49: موبايل : 01009958821 – 01099548642 | E49: mob : +2001009958821 - +2001099548642

Sheet حماده زنفل
B3: شركة بايوكيميكال ايجيبت | E3: Bio chemical egypt
G6: كود العميل
D7: حساب عميل | G7: 39
B9: اسم العميل | C9: =IFERROR(VLOOKUP(G7,'[1]البيانات '!$A$3:$B$102,2,0),"") -> حماده زنفل | E9: تليفون | G9: =IFERROR(VLOOKUP(G7,'البيانات '!A3:C78,3,0),"") -> 1065464010
B10: اسم المنشاة | E10: مدير مسئول
B11: العنوان | C11: =IFERROR(VLOOKUP(G7,'البيانات '!A3:D78,4,0),"") -> كوم امبو - ابو المطامير - القرية الرئيسيه | E11: مندوب مبيعات | G11: =IFERROR(VLOOKUP(G7,'[1]البيانات '!$A$3:$E$102,5,0),"") -> محمد عبدالشفيع
B14: م | C14: التاريخ | D14: رقم الفاتورة | E14: قيمة الفاتورة | F14: رصيد سابق | G14: المدفوع | H14: رصيد متبقي | I14: ملاحظات
B15: 1 | C15: 2018-03-27 | D15: 5204 | E15: 1975 | H15: =E15+F15-G15 -> 1975
B16: 2 | C16: 2018-03-28 | D16: 5152 | F16: 1975 | G16: 400 | H16: =E16+F16-G16 -> 1575
B17: 3 | C17: 2018-04-11 | D17: 5159 | F17: 1575 | G17: 200 | H17: 1375
B18: 4 | C18: 2018-05-08 | D18: 5403 | F18: 1375 | G18: 500 | H18: 875
B19: 5 | C19: 2018-05-29 | D19: 5430 | F19: 875 | G19: 350 | H19: 525
B20: 6 | C20: 2018-06-13 | D20: 1003 | F20: 525 | G20: 300 | H20: 225
B21: 7 | C21: 2018-06-26 | D21: 1018 | F21: 225 | G21: 100 | H21: 125
B22: 8 | C22: 2018-07-17 | D22: 1049 | F22: 125 | G22: 120 | H22: 5
B23: 9 | H23: 0
B24: 10 | H24: 0
B25: 11 | H25: 0
B26: 12 | H26: 0
B27: 13 | H27: 0
B28: 14 | H28: 0
B29: 15 | H29: 0
B30: 16 | H30: 0
B31: 17 | H31: 0
B32: 18 | H32: 0
B33: 19 | H33: 0
B34: 20 | H34: 0
B35: 21 | H35: 0
B36: 22 | H36: 0
B37: 23 | H37: 0
B38: 24 | H38: 0
B39: 25 | H39: 0
B40: 26 | H40: 0
B41: 27 | H41: 0
B42: 28 | H42: 0
B43: 29 | H43: 0
B44: 30 | H44: 0
B45: الاجمالي | E45: =SUM(E15:E44) -> 1975 | G45: =SUM(G15:G44) -> 1970
B47: بايو كيميكال ايجيبت للمطهرات و اضافات الاعلاف . | E47: Bio chemical Egypt for antiseptic & feed additives .
B48: المصنع : دست الاشراف - كوم حماده – البحيرة . | E48: address : dest el ashraf – kom Hamada – al behara
B49: موبايل : 01009958821 – 01099548642 | E49: mob : +2001009958821 - +2001099548642

Sheet هادي داود
B3: شركة بايوكيميكال ايجيبت | E3: Bio chemical egypt
G6: كود العميل
D7: حساب عميل | G7: 9
B9: اسم العميل | C9: =IFERROR(VLOOKUP(G7,'[1]البيانات '!$A$3:$B$102,2,0),"") -> الحاج هادي داود | E9: تليفون | G9: =IFERROR(VLOOKUP(G7,'البيانات '!A3:C78,3,0),"") -> 1067815645
B10: اسم المنشاة | E10: مدير مسئول
B11: العنوان | C11: =IFERROR(VLOOKUP(G7,'البيانات '!A3:D78,4,0),"") -> دمنهور-عزبة داود | E11: مندوب مبيعات | G11: =IFERROR(VLOOKUP(G7,'[1]البيانات '!$A$3:$E$102,5,0),"") -> محمد عبدالشفيع
B14: م | C14: التاريخ | D14: رقم الفاتورة | E14: قيمة الفاتورة | F14: رصيد سابق | G14: المدفوع | H14: رصيد متبقي | I14: ملاحظات
B15: 1 | C15: 2018-01-06 | D15: 5039 | E15: 4890 | H15: =E15+F15-G15 -> 4890
B16: 2 | C16: 2018-02-11 | D16: 5303 | F16: 4890 | G16: 1000 | H16: =E16+F16-G16 -> 3890
B17: 3 | C17: 2018-03-11 | D17: 5331 | F17: 3890 | G17: 1000 | H17: 2890
B18: 4 | C18: 2018-03-21 | D18: 5342 | F18: 2890 | G18: 500 | H18: 2390
B19: 5 | C19: 2018-03-27 | D19: 5349 | F19: 239 | G19: 1000 | H19: -761
B20: 6 | C20: 2018-04-10 | D20: 5157 | F20: 1390 | G20: 5000 | H20: -3610
B21: 7 | C21: 2018-04-25 | D21: 5188 | F21: 890 | G21: 5000 | H21: -4110
B22: 8 | C22: 2018-06-09 | D22: 5460 | E22: 10910 | F22: 390 | H22: 11300
B23: 9 | C23: 2018-07-04 | D23: نقدي | F23: 11300 | G23: 1000 | H23: 10300
B24: 10 | C24: 2018-07-18 | D24: نقدي | F24: 10300 | G24: 500 | H24: 9800
B25: 11 | C25: 2018-08-08 | D25: نقدي | F25: 9800 | G25: 1000 | H25: 8800
B26: 12 | C26: 2018-08-15 | D26: نقدي | F26: 8800 | G26: 1000 | H26: 7800
B27: 13 | C27: 2018-09-05 | D27: نقدي | F27: 7800 | G27: 1000 | H27: 6800
B28: 14 | C28: 2018-09-19 | D28: نقدي | F28: 6800 | G28: 600 | H28: 6200
B29: 15 | H29: 0
B30: 16 | H30: 0
B31: 17 | H31: 0
B32: 18 | H32: 0
B33: 19 | H33: 0
B34: 20 | H34: 0
B35: 21 | H35: 0
B36: 22 | H36: 0
B37: 23 | H37: 0
B38: 24 | H38: 0
B39: 25 | H39: 0
B40: 26 | H40: 0
B41: 27 | H41: 0
B42: 28 | H42: 0
B43: 29 | H43: 0
B44: 30 | H44: 0
B45: الاجمالي | E45: =SUM(E15:E44) -> 15800 | G45: =SUM(G15:G44) -> 18600
B47: بايو كيميكال ايجيبت للمطهرات و اضافات الاعلاف . | E47: Bio chemical Egypt for antiseptic & feed additives .
B48: المصنع : دست الاشراف - كوم حماده – البحيرة . | E48: address : dest el ashraf – kom Hamada – al behara
B49: موبايل : 01009958821 – 01099548642 | E49: mob : +2001009958821 - +2001099548642

Sheet م.مصطفي الكلاف
B3: شركة بايوكيميكال ايجيبت | E3: Bio chemical egypt
G6: كود العميل
D7: حساب عميل | G7: 11
B9: اسم العميل | C9: =IFERROR(VLOOKUP(G7,'[1]البيانات '!$A$3:$B$102,2,0),"") -> م.مصطفي الكلاف | E9: تليفون | G9: =IFERROR(VLOOKUP(G7,'البيانات '!A3:C78,3,0),"") -> 0
B10: اسم المنشاة | E10: مدير مسئول
B11: العنوان | C11: =IFERROR(VLOOKUP(G7,'البيانات '!A3:D78,4,0),"") -> المنشية الابراهمية - دمنهور | E11: مندوب مبيعات | G11: =IFERROR(VLOOKUP(G7,'[1]البيانات '!$A$3:$E$102,5,0),"") -> محمد عبدالشفيع
B14: م | C14: التاريخ | D14: رقم الفاتورة | E14: قيمة الفاتورة | F14: رصيد سابق | G14: المدفوع | H14: رصيد متبقي | I14: ملاحظات
B15: 1 | C15: 2018-01-04 | D15: 5038 | E15: 4659 | F15: 0 | G15: 500 | H15: =E15+F15-G15 -> 4159 | I15: مع الكابتن ومحمد
B16: 2 | C16: 2018-02-04 | D16: 5110 | E16: 2425 | F16: 4159 | G16: 1000 | H16: =E16+F16-G16 -> 5584
B17: 3 | C17: 2018-02-25 | D17: 5122 | E17: 1750 | F17: 5584 | G17: 0 | H17: 7334
B18: 4 | C18: 2018-03-01 | D18: 5325 | E18: 0 | F18: 7334 | G18: 1000 | H18: 6334
B19: 5 | C19: 2018-03-18 | D19: 5336 | E19: 0 | F19: 6334 | G19: 1000 | H19: 5334
B20: 6 | C20: 2018-03-25 | D20: 5334 | E20: 0 | F20: 5334 | G20: 1000 | H20: 4334
B21: 7 | C21: 2018-04-15 | D21: 5165 | E21: 0 | F21: 4334 | G21: 500 | H21: 3834
B22: 8 | C22: فاتورة | D22: 5213 | E22: 4392 | F22: 3834 | G22: 300 | H22: 7926
B23: 9 | C23: 2018-04-22 | D23: 5182 | E23: 0 | F23: 7926 | G23: 500 | H23: 7426
B24: 10 | C24: 2018-04-29 | D24: 5194 | E24: 0 | F24: 7426 | G24: 500 | H24: 6926
B25: 11 | C25: 2018-05-06 | D25: 5402 | E25: 0 | F25: 6926 | G25: 500 | H25: 6426
B26: 12 | C26: 2018-05-13 | D26: 5410 | E26: 0 | F26: 6426 | G26: 500 | H26: 5926
B27: 13 | C27: 2018-05-27 | D27: 5427 | E27: 0 | F27: 5926 | G27: 500 | H27: 5426
B28: 14 | C28: 2018-06-03 | D28: 5441 | E28: 0 | F28: 5426 | G28: 400 | H28: 5026
B29: 15 | C29: 2018-07-05 | D29: نقدي | E29: 0 | F29: 5026 | G29: 500 | H29: 4526
B30: 16 | C30: 2018-08-26 | D30: نقدي | E30: 0 | F30: 4526 | G30: 500 | H30: 4026
B31: 17 | C31: 2018-09-09 | D31: نقدي | E31: 0 | F31: 4026 | G31: 500 | H31: 3526
B32: 18 | C32: 2018-09-16 | D32: نقدي | E32: 0 | F32: 3526 | G32: 500 | H32: 3026
B33: 19 | H33: 0
B34: 20 | H34: 0
B35: 21 | H35: 0
B36: 22 | H36: 0
B37: 23 | H37: 0
B38: 24 | H38: 0
B39: 25 | H39: 0
B40: 26 | H40: 0
B41: 27 | H41: 0
B42: 28 | H42: 0
B43: 29 | H43: 0
B44: 30 | H44: 0
B45: الاجمالي | E45: =SUM(E15:E44) -> 13226 | G45: =SUM(G15:G44) -> 10200
B47: بايو كيميكال ايجيبت للمطهرات و اضافات الاعلاف . | E47: Bio chemical Egypt for antiseptic & feed additives .
B48: المصنع : دست الاشراف - كوم حماده – البحيرة . | E48: address : dest el ashraf – kom Hamada – al behara
B49: موبايل : 01009958821 – 01099548642 | E49: mob : +2001009958821 - +2001099548642

Sheet محمود النجار
B3: شركة بايوكيميكال ايجيبت | E3: Bio chemical egypt
G6: كود العميل
D7: حساب عميل | G7: 14
B9: اسم العميل | C9: =IFERROR(VLOOKUP(G7,'[1]البيانات '!$A$3:$B$102,2,0),"") -> محمود النجار | E9: تليفون | G9: =IFERROR(VLOOKUP(G7,'البيانات '!A3:C78,3,0),"") -> 0
B10: اسم المنشاة | E10: مدير مسئول
B11: العنوان | C11: =IFERROR(VLOOKUP(G7,'البيانات '!A3:D78,4,0),"") -> الوفائيه | E11: مندوب مبيعات | G11: =IFERROR(VLOOKUP(G7,'[1]البيانات '!$A$3:$E$102,5,0),"") -> محمد عبدالشفيع
B14: م | C14: التاريخ | D14: رقم الفاتورة | E14: قيمة الفاتورة | F14: رصيد سابق | G14: المدفوع | H14: رصيد متبقي | I14: ملاحظات
B15: 1 | C15: 2018-04-05 | D15: 5208 | E15: 18221 | F15: -2405 | G15: 0 | H15: =E15+F15-G15 -> 15816
B16: 2 | C16: 2018-03-27 | D16: 5151 | E16: 0 | F16: 15816 | G16: 2000 | H16: =E16+F16-G16 -> 13816
B17: 3 | C17: 2018-04-10 | D17: 5155 | E17: 0 | F17: 13816 | G17: 5000 | H17: 8816
B18: 4 | C18: 2018-04-18 | D18: 5172 | E18: 0 | F18: 8816 | G18: 2000 | H18: 6816
B19: 5 | C19: 2018-04-25 | D19: 5184 | E19: 0 | F19: 6816 | G19: 500 | H19: 6316
B20: 6 | C20: 2018-05-02 | D20: 5200 | E20: 0 | F20: 6316 | G20: 500 | H20: 5816
B21: 7 | C21: 2018-05-09 | D21: 5404 | E21: 0 | F21: 5816 | G21: 500 | H21: 5316
B22: 8 | C22: 2018-05-16 | D22: 5416 | E22: 0 | F22: 5316 | G22: 500 | H22: 4816
B23: 9 | C23: 2018-05-30 | D23: 5433 | E23: 0 | F23: 4816 | G23: 500 | H23: 4316
B24: 10 | C24: 2018-06-06 | D24: 5444 | E24: 0 | F24: 4316 | G24: 500 | H24: 3816
B25: 11 | C25: 2018-06-20 | D25: نقدي | E25: 0 | F25: 3816 | G25: 500 | H25: 3316
B26: 12 | C26: 2018-06-27 | D26: نقدي | E26: 0 | F26: 3316 | G26: 500 | H26: 2816
B27: 13 | C27: 2018-07-04 | D27: نقدي | E27: 0 | F27: 2816 | G27: 500 | H27: 2316
B28: 14 | C28: 2018-07-11 | D28: نقدي | E28: 0 | F28: 2316 | G28: 1000 | H28: 1316
B29: 15 | C29: 2018-07-25 | D29: نقدي | E29: 0 | F29: 1316 | G29: 500 | H29: 816
B30: 16 | D30: طرف الاستاذ فتحي مقلد | H30: 0
B31: 17 | C31: 2018-10-15 | D31: 1368 | E31: 5720 | F31: 816 | G31: 0 | H31: 6536
B32: 18 | H32: 0
B33: 19 | H33: 0
B34: 20 | H34: 0
B35: 21 | H35: 0
B36: 22 | H36: 0
B37: 23 | H37: 0
B38: 24 | H38: 0
B39: 25 | H39: 0
B40: 26 | H40: 0
B41: 27 | H41: 0
B42: 28 | H42: 0
B43: 29 | H43: 0
B44: 30 | H44: 0
B45: الاجمالي | E45: =SUM(E15:E44) -> 23941 | G45: =SUM(G15:G44) -> 15000
B47: بايو كيميكال ايجيبت للمطهرات و اضافات الاعلاف . | E47: Bio chemical Egypt for antiseptic & feed additives .
B48: المصنع : دست الاشراف - كوم حماده – البحيرة . | E48: address : dest el ashraf – kom Hamada – al behara
B49: موبايل : 01009958821 – 01099548642 | E49: mob : +2001009958821 - +2001099548642

Sheet د.محمود زبادي
B3: شركة بايوكيميكال ايجيبت | E3: Bio chemical egypt
G6: كود العميل
D7: حساب عميل | G7: 42
B9: اسم العميل | C9: =IFERROR(VLOOKUP(G7,'[1]البيانات '!$A$3:$B$102,2,0),"") -> د.محمود زبادي | E9: تليفون | G9: =IFERROR(VLOOKUP(G7,'البيانات '!A3:C78,3,0),"") -> 0
B10: اسم المنشاة | E10: مدير مسئول
B11: العنوان | C11: =IFERROR(VLOOKUP(G7,'البيانات '!A3:D78,4,0),"") -> شبراخيت - لقانه | E11: مندوب مبيعات | G11: =IFERROR(VLOOKUP(G7,'[1]البيانات '!$A$3:$E$102,5,0),"") -> محمد عبدالشفيع
B14: م | C14: التاريخ | D14: رقم الفاتورة | E14: قيمة الفاتورة | F14: رصيد سابق | G14: المدفوع | H14: رصيد متبقي | I14: ملاحظات
B15: 1 | C15: 2018-07-29 | D15: 52 | E15: 870 | F15: 0 | G15: 0 | H15: =E15+F15-G15 -> 870
B16: 2 | C16: 2018-09-16 | D16: 86 | E16: 0 | F16: 870 | G16: 500 | H16: =E16+F16-G16 -> 370
B17: 3 | H17: 0
B18: 4 | H18: 0
B19: 5 | H19: 0
B20: 6 | H20: 0
B21: 7 | H21: 0
B22: 8 | H22: 0
B23: 9 | H23: 0
B24: 10 | H24: 0
B25: 11 | H25: 0
B26: 12 | H26: 0
B27: 13 | H27: 0
B28: 14 | H28: 0
B29: 15 | H29: 0
B30: 16 | H30: 0
B31: 17 | H31: 0
B32: 18 | H32: 0
B33: 19 | H33: 0
B34: 20 | H34: 0
B35: 21 | H35: 0
B36: 22 | H36: 0
B37: 23 | H37: 0
B38: 24 | H38: 0
B39: 25 | H39: 0
B40: 26 | H40: 0
B41: 27 | H41: 0
B42: 28 | H42: 0
B43: 29 | H43: 0
B44: 30 | H44: 0
B45: الاجمالي | E45: =SUM(E15:E44) -> 870 | G45: =SUM(G15:G44) -> 500
B47: بايو كيميكال ايجيبت للمطهرات و اضافات الاعلاف . | E47: Bio chemical Egypt for antiseptic & feed additives .
B48: المصنع : دست الاشراف - كوم حماده – البحيرة . | E48: address : dest el ashraf – kom Hamada – al behara
B49: موبايل : 01009958821 – 01099548642 | E49: mob : +2001009958821 - +2001099548642

Sheet حامد عكاشه
B3: شركة بايوكيميكال ايجيبت | E3: Bio chemical egypt
G6: كود العميل
D7: حساب عميل | G7: 8
B9: اسم العميل | C9: =IFERROR(VLOOKUP(G7,'[1]البيانات '!$A$3:$B$102,2,0),"") -> الحاج عوض عكاشه | E9: تليفون | G9: =IFERROR(VLOOKUP(G7,'البيانات '!A3:C78,3,0),"") -> 0
B10: اسم المنشاة | E10: مدير مسئول
B11: العنوان | C11: =IFERROR(VLOOKUP(G7,'البيانات '!A3:D78,4,0),"") -> الدلنجات | E11: مندوب مبيعات | G11: =IFERROR(VLOOKUP(G7,'[1]البيانات '!$A$3:$E$102,5,0),"") -> محمد عبدالشفيع
B14: م | C14: التاريخ | D14: رقم الفاتورة | E14: قيمة الفاتورة | F14: رصيد سابق | G14: المدفوع | H14: رصيد متبقي | I14: ملاحظات
B15: 1 | C15: 2017-12-04 | D15: 5057 | E15: 4840 | G15: 800 | H15: =E15+F15-G15 -> 4040
B16: 2 | C16: 2018-01-13 | D16: 5101 | E16: 3390 | F16: 4040 | G16: 3000 | H16: =E16+F16-G16 -> 4430
B17: 3 | C17: 2018-01-14 | D17: نقدي | F17: 4430 | G17: 1500 | H17: 2930
B18: 4 | C18: 2018-01-28 | D18: نقدي | F18: 2930 | G18: 1000 | H18: 1930
B19: 5 | C19: 2018-01-30 | D19: 5104 | E19: 2640 | F19: 530 | H19: 3170
B20: 6 | C20: 2018-02-18 | D20: 5317 | F20: 3170 | G20: 500 | H20: 2670
B21: 7 | C21: 2018-03-11 | D21: 5330 | F21: 2670 | G21: 500 | H21: 2170
B22: 8 | C22: 2018-03-13 | D22: 5127 | E22: 4610 | F22: 2170 | H22: 6780
B23: 9 | C23: 2018-03-21 | D23: 5341 | F23: 6780 | G23: 1000 | H23: 5780
B24: 10 | C24: 2018-03-27 | D24: 5201 | E24: 1710 | F24: 5780 | H24: 7490
B25: 11 | C25: 2018-04-25 | D25: 5187 | F25: 7490 | G25: 1000 | H25: 6490
B26: 12 | C26: 2018-05-09 | D26: 5407 | F26: 6490 | G26: 500 | H26: 5990
B27: 13 | C27: 2018-05-30 | D27: 5436 | F27: 5990 | G27: 1000 | H27: 4990
B28: 14 | C28: 2018-06-27 | D28: نقدي | F28: 4990 | G28: 1000 | H28: 3990
B29: 15 | C29: 2018-07-18 | D29: نقدي | F29: 3990 | G29: 1000 | H29: 2990
B30: 16 | C30: 2018-09-19 | D30: نقدي | F30: 2990 | G30: 300 | H30: 2690
B31: 17 | C31: 2018-10-03 | D31: 1353 | E31: 720 | F31: 2690 | G31: 1000 | H31: 2410
B32: 18 | H32: 0
B33: 19 | H33: 0
B34: 20 | H34: 0
B35: 21 | H35: 0
B36: 22 | H36: 0
B37: 23 | H37: 0
B38: 24 | H38: 0
B39: 25 | H39: 0
B40: 26 | H40: 0
B41: 27 | H41: 0
B42: 28 | H42: 0
B43: 29 | H43: 0
B44: 30 | H44: 0
B45: الاجمالي | E45: =SUM(E15:E44) -> 17910 | G45: =SUM(G15:G44) -> 14100
B47: بايو كيميكال ايجيبت للمطهرات و اضافات الاعلاف . | E47: Bio chemical Egypt for antiseptic & feed additives .
B48: المصنع : دست الاشراف - كوم حماده – البحيرة . | E48: address : dest el ashraf – kom Hamada – al behara
B49: موبايل : 01009958821 – 01099548642 | E49: mob : +2001009958821 - +2001099548642

Sheet محمد عبداللاه
B3: شركة بايوكيميكال ايجيبت | E3: Bio chemical egypt
G6: كود العميل
D7: حساب عميل | G7: 22
B9: اسم العميل | C9: =IFERROR(VLOOKUP(G7,'[1]البيانات '!$A$3:$B$102,2,0),"") -> د.محمد عبداللاه | E9: تليفون | G9: =IFERROR(VLOOKUP(G7,'البيانات '!A3:C78,3,0),"") -> 0
B10: اسم المنشاة | E10: مدير مسئول
B11: العنوان | C11: =IFERROR(VLOOKUP(G7,'البيانات '!A3:D78,4,0),"") -> الطيريه البلد - كوم حمادة | E11: مندوب مبيعات | G11: =IFERROR(VLOOKUP(G7,'[1]البيانات '!$A$3:$E$102,5,0),"") -> محمد عبدالشفيع
B14: م | C14: التاريخ | D14: رقم الفاتورة | E14: قيمة الفاتورة | F14: رصيد سابق | G14: المدفوع | H14: رصيد متبقي | I14: ملاحظات
B15: 1 | C15: 2018-02-10 | D15: 5114 | E15: 1720 | F15: 0 | G15: 0 | H15: =E15+F15-G15 -> 1720
B16: 2 | C16: 2018-02-15 | D16: 5315 | F16: 1720 | G16: 400 | H16: =E16+F16-G16 -> 1320
B17: 3 | C17: 2018-02-27 | D17: 5322 | F17: 1320 | G17: 290 | H17: 1030
B18: 4 | C18: 2018-04-16 | D18: 5171 | F18: 1030 | G18: 400 | H18: 630
B19: 5 | C19: 2018-05-28 | D19: 5429 | F19: 630 | G19: 300 | H19: 330
B20: 6 | C20: 2018-06-11 | D20: 1001 | F20: 3.3 | G20: 250 | H20: -246.7
B21: 7 | C21: 2018-07-09 | D21: 1039 | F21: 80 | G21: 75 | H21: 5
B22: 8 | H22: 0
B23: 9 | H23: 0
B24: 10 | H24: 0
B25: 11 | H25: 0
B26: 12 | H26: 0
B27: 13 | H27: 0
B28: 14 | H28: 0
B29: 15 | H29: 0
B30: 16 | H30: 0
B31: 17 | H31: 0
B32: 18 | H32: 0
B33: 19 | H33: 0
B34: 20 | H34: 0
B35: 21 | H35: 0
B36: 22 | H36: 0
B37: 23 | H37: 0
B38: 24 | H38: 0
B39: 25 | H39: 0
B40: 26 | H40: 0
B41: 27 | H41: 0
B42: 28 | H42: 0
B43: 29 | H43: 0
B44: 30 | H44: 0
B45: الاجمالي | E45: =SUM(E15:E44) -> 1720 | G45: =SUM(G15:G44) -> 1715
B47: بايو كيميكال ايجيبت للمطهرات و اضافات الاعلاف . | E47: Bio chemical Egypt for antiseptic & feed additives .
B48: المصنع : دست الاشراف - كوم حماده – البحيرة . | E48: address : dest el ashraf – kom Hamada – al behara
B49: موبايل : 01009958821 – 01099548642 | E49: mob : +2001009958821 - +2001099548642

Sheet د.خالد الجالي
B3: شركة بايوكيميكال ايجيبت | E3: Bio chemical egypt
G6: كود العميل
D7: حساب عميل | G7: 18
B9: اسم العميل | C9: =IFERROR(VLOOKUP(G7,'[1]البيانات '!$A$3:$B$102,2,0),"") -> م.خالد الجالي | E9: تليفون | G9: =IFERROR(VLOOKUP(G7,'البيانات '!A3:C78,3,0),"") -> 0
B10: اسم المنشاة | C10: مركز الجالي للخدمات البيطرية | E10: مدير مسئول
B11: العنوان | C11: =IFERROR(VLOOKUP(G7,'البيانات '!A3:D78,4,0),"") -> ابو المطامير | E11: مندوب مبيعات | G11: =IFERROR(VLOOKUP(G7,'[1]البيانات '!$A$3:$E$102,5,0),"") -> محمد عبدالشفيع
B14: م | C14: التاريخ | D14: رقم الفاتورة | E14: قيمة الفاتورة | F14: رصيد سابق | G14: المدفوع | H14: رصيد متبقي | I14: ملاحظات
B15: 1 | C15: 2018-01-30 | D15: 5103 | E15: 3370 | F15: 0 | G15: 0 | H15: =E15+F15-G15 -> 3370
B16: 2 | C16: 2018-04-11 | D16: 5160 | E16: -1500 | F16: 3370 | G16: 500 | H16: =E16+F16-G16 -> 1370 | I16: مرتجع
B17: 3 | C17: 2018-04-19 | D17: 5179 | E17: 0 | F17: 1370 | G17: 500 | H17: 870
B18: 4 | C18: 2018-04-23 | D18: 5219 | E18: 850 | F18: 870 | G18: 0 | H18: 1720
B19: 5 | C19: 2018-06-04 | D19: 5249 | E19: 1200 | F19: 1720 | G19: 400 | H19: 2520 | I19: السائق
B20: 6 | C20: 2018-05-14 | D20: 5414 | E20: 0 | F20: 2520 | G20: 500 | H20: 2020
B21: 7 | C21: 2018-06-21 | D21: نقدي | E21: 0 | F21: 2020 | G21: 600 | H21: 1420
B22: 8 | C22: 2018-06-27 | D22: 5473 | E22: 925 | F22: 1420 | G22: 0 | H22: 2345
B23: 9 | C23: 2018-07-05 | D23: 1033 | E23: 0 | F23: 2345 | G23: 500 | H23: 1845
B24: 10 | C24: 2018-07-19 | D24: 5 | E24: 0 | F24: 1845 | G24: 500 | H24: 1345
B25: 11 | C25: 2018-08-28 | D25: 58 | E25: 0 | F25: 1345 | G25: 200 | H25: 1145
B26: 12 | H26: 0
B27: 13 | H27: 0
B28: 14 | H28: 0
B29: 15 | H29: 0
B30: 16 | H30: 0
B31: 17 | H31: 0
B32: 18 | H32: 0
B33: 19 | H33: 0
B34: 20 | H34: 0
B35: 21 | H35: 0
B36: 22 | H36: 0
B37: 23 | H37: 0
B38: 24 | H38: 0
B39: 25 | H39: 0
B40: 26 | H40: 0
B41: 27 | H41: 0
B42: 28 | H42: 0
B43: 29 | H43: 0
B44: 30 | H44: 0
B45: الاجمالي | E45: =SUM(E15:E44) -> 4845 | G45: =SUM(G15:G44) -> 3700
B47: بايو كيميكال ايجيبت للمطهرات و اضافات الاعلاف . | E47: Bio chemical Egypt for antiseptic & feed additives .
B48: المصنع : دست الاشراف - كوم حماده – البحيرة . | E48: address : dest el ashraf – kom Hamada – al behara
B49: موبايل : 01009958821 – 01099548642 | E49: mob : +2001009958821 - +2001099548642

Sheet محمد الهنداوي
B3: شركة بايوكيميكال ايجيبت | E3: Bio chemical egypt
G6: كود العميل
D7: حساب عميل | G7: 10
B9: اسم العميل | C9: =IFERROR(VLOOKUP(G7,'[1]البيانات '!$A$3:$B$102,2,0),"") -> محمد هنداوي | E9: تليفون | G9: =IFERROR(VLOOKUP(G7,'البيانات '!A3:C78,3,0),"") -> 1026603578
B10: اسم المنشاة | E10: مدير مسئول | G10: محمد هنداوي
B11: العنوان | C11: =IFERROR(VLOOKUP(G7,'البيانات '!A3:D78,4,0),"") -> المسين - الدلنجات | E11: مندوب مبيعات | G11: =IFERROR(VLOOKUP(G7,'[1]البيانات '!$A$3:$E$102,5,0),"") -> محمد عبدالشفيع
B14: م | C14: التاريخ | D14: رقم الفاتورة | E14: قيمة الفاتورة | F14: رصيد سابق | G14: المدفوع | H14: رصيد متبقي | I14: ملاحظات
B15: 1 | C15: 2018-01-11 | D15: 5040 | E15: 11160 | F15: 0 | G15: 2000 | H15: =E15+F15-G15 -> 9160 | I15: مع السائق عبدالحميد
B16: 2 | C16: 2018-02-11 | D16: 5310 | E16: 0 | F16: 9160 | G16: 500 | H16: =E16+F16-G16 -> 8660
B17: 3 | C17: 2018-03-11 | D17: 5129 | E17: 1120 | F17: 8660 | G17: 0 | H17: 9780
B18: 4 | C18: 2018-04-25 | D18: 5189 | E18: 0 | F18: 9780 | G18: 500 | H18: 9280
B19: 5 | C19: 2018-05-30 | D19: 5437 | E19: 0 | F19: 9280 | G19: 1000 | H19: 8280
B20: 6 | C20: 2018-06-06 | D20: 5446 | E20: 0 | F20: 8280 | G20: 500 | H20: 7780
B21: 7 | C21: 2018-06-09 | D21: 5455 | E21: 1000 | F21: 7780 | G21: 0 | H21: 8780
B22: 8 | C22: 2018-07-04 | D22: نقدي | E22: 0 | F22: 8780 | G22: 500 | H22: 8280
B23: 9 | C23: 2018-08-05 | D23: نقدي | E23: 0 | F23: 8280 | G23: 1000 | H23: 7280
B24: 10 | C24: 2018-08-12 | D24: نقدي | E24: 0 | F24: 7280 | G24: 1500 | H24: 5780
B25: 11 | C25: 2018-08-19 | D25: نقدي | E25: 0 | F25: 5780 | G25: 1000 | H25: 4780
B26: 12 | C26: 2018-09-05 | D26: نقدي | E26: 0 | F26: 4780 | G26: 1000 | H26: 3780
B27: 13 | H27: 0
B28: 14 | H28: 0
B29: 15 | H29: 0
B30: 16 | H30: 0
B31: 17 | H31: 0
B32: 18 | H32: 0
B33: 19 | H33: 0
B34: 20 | H34: 0
B35: 21 | H35: 0
B36: 22 | H36: 0
B37: 23 | H37: 0
B38: 24 | H38: 0
B39: 25 | H39: 0
B40: 26 | H40: 0
B41: 27 | H41: 0
B42: 28 | H42: 0
B43: 29 | H43: 0
B44: 30 | H44: 0
B45: الاجمالي | E45: =SUM(E15:E44) -> 13280 | G45: =SUM(G15:G44) -> 9500
B47: بايو كيميكال ايجيبت للمطهرات و اضافات الاعلاف . | E47: Bio chemical Egypt for antiseptic & feed additives .
B48: المصنع : دست الاشراف - كوم حماده – البحيرة . | E48: address : dest el ashraf – kom Hamada – al behara
B49: موبايل : 01009958821 – 01099548642 | E49: mob : +2001009958821 - +2001099548642

Sheet محمد جوده ابو يوسف
B3: شركة بايوكيميكال ايجيبت | E3: Bio chemical egypt
G6: كود العميل
D7: حساب عميل | G7: 19
B9: اسم العميل | C9: =IFERROR(VLOOKUP(G7,'[1]البيانات '!$A$3:$B$102,2,0),"") -> محمد جوده ابو يوسف | E9: تليفون | G9: =IFERROR(VLOOKUP(G7,'البيانات '!A3:C78,3,0),"") -> 1001299166
B10: اسم المنشاة | E10: مدير مسئول
B11: العنوان | C11: =IFERROR(VLOOKUP(G7,'البيانات '!A3:D78,4,0),"") -> ابو حمص | E11: مندوب مبيعات | G11: =IFERROR(VLOOKUP(G7,'[1]البيانات '!$A$3:$E$102,5,0),"") -> محمد عبدالشفيع
B14: م | C14: التاريخ | D14: رقم الفاتورة | E14: قيمة الفاتورة | F14: رصيد سابق | G14: المدفوع | H14: رصيد متبقي | I14: ملاحظات
B15: 1 | C15: 2018-01-30 | D15: 5106 | E15: 2930 | F15: 0 | G15: 0 | H15: =E15+F15-G15 -> 2930
B16: 2 | C16: 2018-02-13 | D16: 5312 | E16: 0 | F16: 2930 | G16: 1000 | H16: =E16+F16-G16 -> 1930
B17: 3 | C17: 2018-03-13 | D17: 5333 | E17: 0 | F17: 1930 | G17: 1000 | H17: 930
B18: 4 | C18: 2018-03-25 | D18: 5346 | E18: 0 | F18: 930 | G18: 500 | H18: 430
B19: 5 | C19: 2018-04-15 | D19: 5166 | E19: 720 | F19: 430 | G19: 500 | H19: 650
B20: 6 | C20: 2018-04-15 | D20: 5167 | E20: -570 | F20: 650 | G20: 0 | H20: 80
B21: 7 | C21: 2018-05-14 | D21: 5237 | E21: 1850 | F21: 80 | G21: 0 | H21: 1930
B22: 8 | C22: 2018-05-20 | D22: 5423 | E22: 0 | F22: 1930 | G22: 500 | H22: 1430
B23: 9 | C23: 2018-05-27 | D23: 5428 | E23: 0 | F23: 1430 | G23: 500 | H23: 930
B24: 10 | C24: 2018-06-10 | D24: 5449 | E24: 0 | F24: 930 | G24: 400 | H24: 530
B25: 11 | C25: 2018-06-24 | D25: 1015 | E25: 0 | F25: 530 | G25: 500 | H25: 30
B26: 12 | C26: 2018-06-27 | D26: 5471 | E26: 4350 | F26: 30 | G26: 0 | H26: 4380
B27: 13 | C27: 2018-08-05 | D27: 26 | E27: 0 | F27: 4380 | G27: 500 | H27: 3880
B28: 14 | C28: 2018-08-12 | D28: 35 | E28: 0 | F28: 3880 | G28: 500 | H28: 3380
B29: 15 | C29: 2018-08-19 | D29: 47 | E29: 0 | F29: 3380 | G29: 1000 | H29: 2380
B30: 16 | C30: 2018-08-26 | D30: 52 | E30: 0 | F30: 2380 | G30: 500 | H30: 1880
B31: 17 | C31: 2018-09-16 | D31: 85 | E31: 0 | F31: 1880 | G31: 500 | H31: 1380
B32: 18 | H32: 0
B33: 19 | H33: 0
B34: 20 | H34: 0
B35: 21 | H35: 0
B36: 22 | H36: 0
B37: 23 | H37: 0
B38: 24 | H38: 0
B39: 25 | H39: 0
B40: 26 | H40: 0
B41: 27 | H41: 0
B42: 28 | H42: 0
B43: 29 | H43: 0
B44: 30 | H44: 0
B45: الاجمالي | E45: =SUM(E15:E44) -> 9280 | G45: =SUM(G15:G44) -> 7900
B47: بايو كيميكال ايجيبت للمطهرات و اضافات الاعلاف . | E47: Bio chemical Egypt for antiseptic & feed additives .
B48: المصنع : دست الاشراف - كوم حماده – البحيرة . | E48: address : dest el ashraf – kom Hamada – al behara
B49: موبايل : 01009958821 – 01099548642 | E49: mob : +2001009958821 - +2001099548642

Sheet رشاد رياض
B3: شركة بايوكيميكال ايجيبت | E3: Bio chemical egypt
G6: كود العميل
D7: حساب عميل | G7: 15
B9: اسم العميل | C9: =IFERROR(VLOOKUP(G7,'[1]البيانات '!$A$3:$B$102,2,0),"") -> رشاد رياض | E9: تليفون | G9: =IFERROR(VLOOKUP(G7,'البيانات '!A3:C78,3,0),"") -> 1004338004
B10: اسم المنشاة | E10: مدير مسئول
B11: العنوان | C11: =IFERROR(VLOOKUP(G7,'البيانات '!A3:D78,4,0),"") -> صفط الحرية - مصر اسكندرية الزراعي -دمنهور | E11: مندوب مبيعات | G11: =IFERROR(VLOOKUP(G7,'[1]البيانات '!$A$3:$E$102,5,0),"") -> محمد عبدالشفيع
B14: م | C14: التاريخ | D14: رقم الفاتورة | E14: قيمة الفاتورة | F14: رصيد سابق | G14: المدفوع | H14: رصيد متبقي | I14: ملاحظات
B15: 1 | C15: 2018-01-21 | D15: 5044 | E15: 4550 | F15: 0 | G15: 0 | H15: =E15+F15-G15 -> 4550
B16: 2 | C16: 2018-02-25 | D16: 5320 | E16: 0 | F16: 4550 | G16: 500 | H16: =E16+F16-G16 -> 4050
B17: 3 | C17: 2018-03-13 | D17: 5334 | E17: 0 | F17: 4050 | G17: 500 | H17: 3550
B18: 4 | C18: 2018-04-22 | D18: 5180 | E18: 0 | F18: 3550 | G18: 500 | H18: 3050
B19: 5 | C19: 2018-05-06 | D19: 5401 | E19: 0 | F19: 3050 | G19: 400 | H19: 2650
B20: 6 | C20: 2018-07-08 | D20: 1034 | E20: 0 | F20: 2650 | G20: 500 | H20: 2150
B21: 7 | C21: 2018-07-22 | D21: 8 | E21: 0 | F21: 2150 | G21: 400 | H21: 1750
B22: 8 | C22: 2018-08-05 | D22: 25 | E22: 0 | F22: 1700 | G22: 400 | H22: 1300
B23: 9 | C23: 2018-08-26 | D23: 49 | E23: 0 | F23: 1300 | G23: 500 | H23: 800
B24: 10 | C24: 2018-09-16 | D24: 83 | E24: 0 | F24: 850 | G24: 850 | H24: 0
B25: 11 | H25: 0
B26: 12 | H26: 0
B27: 13 | H27: 0
B28: 14 | H28: 0
B29: 15 | H29: 0
B30: 16 | H30: 0
B31: 17 | H31: 0
B32: 18 | H32: 0
B33: 19 | H33: 0
B34: 20 | H34: 0
B35: 21 | H35: 0
B36: 22 | H36: 0
B37: 23 | H37: 0
B38: 24 | H38: 0
B39: 25 | H39: 0
B40: 26 | H40: 0
B41: 27 | H41: 0
B42: 28 | H42: 0
B43: 29 | H43: 0
B44: 30 | H44: 0
B45: الاجمالي | E45: =SUM(E15:E44) -> 4550 | G45: =SUM(G15:G44) -> 4550
B47: بايو كيميكال ايجيبت للمطهرات و اضافات الاعلاف . | E47: Bio chemical Egypt for antiseptic & feed additives .
B48: المصنع : دست الاشراف - كوم حماده – البحيرة . | E48: address : dest el ashraf – kom Hamada – al behara
B49: موبايل : 01009958821 – 01099548642 | E49: mob : +2001009958821 - +2001099548642

Sheet د.فايز عويس
B3: شركة بايوكيميكال ايجيبت | E3: Bio chemical egypt
G6: كود العميل
D7: حساب عميل | G7: 16
B9: اسم العميل | C9: =IFERROR(VLOOKUP(G7,'[1]البيانات '!$A$3:$B$102,2,0),"") -> د.فايز عويس | E9: تليفون | G9: =IFERROR(VLOOKUP(G7,'البيانات '!A3:C78,3,0),"") -> 0
B10: اسم المنشاة | E10: مدير مسئول
B11: العنوان | C11: =IFERROR(VLOOKUP(G7,'البيانات '!A3:D78,4,0),"") -> كوبري قمحة - الدلنجات | E11: مندوب مبيعات | G11: =IFERROR(VLOOKUP(G7,'[1]البيانات '!$A$3:$E$102,5,0),"") -> محمد عبدالشفيع
B14: م | C14: التاريخ | D14: رقم الفاتورة | E14: قيمة الفاتورة | F14: رصيد سابق | G14: المدفوع | H14: رصيد متبقي | I14: ملاحظات
B15: 1 | C15: 2018-01-21 | D15: 5046 | E15: 3716 | F15: 0 | G15: 0 | H15: =E15+F15-G15 -> 3716
B16: 2 | C16: 2018-01-25 | D16: 5302 | E16: 0 | F16: 3716 | G16: 200 | H16: =E16+F16-G16 -> 3516
B17: 3 | C17: 2018-02-04 | D17: 5307 | E17: 0 | F17: 3516 | G17: 250 | H17: 3266
B18: 4 | C18: 2018-02-11 | D18: 5308 | E18: 0 | F18: 3266 | G18: 200 | H18: 3066
B19: 5 | C19: 2018-02-28 | D19: 5324 | E19: 0 | F19: 3066 | G19: 200 | H19: 2866
B20: 6 | C20: 2018-03-20 | D20: 5340 | E20: 0 | F20: 2866 | G20: 250 | H20: 2616
B21: 7 | C21: 2018-04-10 | D21: 5156 | E21: 0 | F21: 2616 | G21: 250 | H21: 2366
B22: 8 | C22: 2018-04-18 | D22: 4175 | E22: 0 | F22: 2366 | G22: 200 | H22: 2166
B23: 9 | C23: 2018-04-25 | D23: 4186 | E23: 0 | F23: 2166 | G23: 200 | H23: 1966
B24: 10 | C24: 2018-05-09 | D24: 5406 | E24: 0 | F24: 1966 | G24: 200 | H24: 1766
B25: 11 | C25: 2018-05-14 | D25: 5235 | E25: 2275 | F25: 1766 | G25: 0 | H25: 4041
B26: 12 | C26: 2018-05-16 | D26: 5418 | E26: 0 | F26: 4041 | G26: 200 | H26: 3841
B27: 13 | C27: 2018-05-30 | D27: 5435 | E27: 0 | F27: 3841 | G27: 250 | H27: 3591
B28: 14 | C28: 2018-06-06 | D28: 5445 | E28: 0 | F28: 3591 | G28: 250 | H28: 3341
B29: 15 | C29: 2018-06-20 | D29: 1010 | E29: 0 | F29: 3341 | G29: 200 | H29: 3141
B30: 16 | C30: 2018-06-27 | D30: 1021 | E30: 0 | F30: 3141 | G30: 200 | H30: 2941
B31: 17 | C31: 2018-07-11 | D31: 1043 | E31: 0 | F31: 2941 | G31: 200 | H31: 2741
B32: 18 | C32: 2018-07-18 | D32: 2 | E32: 0 | F32: 2741 | G32: 200 | H32: 2541
B33: 19 | C33: 2018-08-01 | D33: 21 | E33: 0 | F33: 2541 | G33: 200 | H33: 2341
B34: 20 | C34: 2018-08-08 | D34: 30 | E34: 0 | F34: 2341 | G34: 200 | H34: 2141
B35: 21 | C35: 2018-08-15 | D35: 41 | E35: 0 | F35: 2141 | G35: 200 | H35: 1941
B36: 22 | C36: 2018-08-29 | D36: 59 | E36: 0 | F36: 1941 | G36: 200 | H36: 1741
B37: 23 | C37: 2018-09-19 | D37: 93 | E37: 0 | F37: 1741 | G37: 200 | H37: 1541
B38: 24 | H38: 0
B39: 25 | H39: 0
B40: 26 | H40: 0
B41: 27 | H41: 0
B42: 28 | H42: 0
B43: 29 | H43: 0
B44: 30 | H44: 0
B45: 31 | H45: 0
B46: 32 | H46: 0
B47: 33 | H47: 0
B48: 34 | H48: 0
B49: 35 | H49: 0
B50: 36 | H50: 0
B51: 37 | H51: 0
B52: 38 | H52: 0
B53: 39 | H53: 0
B54: 40 | H54: 0
B55: 41 | H55: 0
B56: 42 | H56: 0
B57: 43 | H57: 0
B58: 44 | H58: 0
B59: 45 | H59: 0
B60: 46 | H60: 0
B61: 47 | H61: 0
B62: 48 | H62: 0
B63: الاجمالي | E63: =SUM(E15:E44) -> 5991 | G63: =SUM(G15:G44) -> 4450
B65: بايو كيميكال ايجيبت للمطهرات و اضافات الاعلاف . | E65: Bio chemical Egypt for antiseptic & feed additives .
B66: المصنع : دست الاشراف - كوم حماده – البحيرة . | E66: address : dest el ashraf – kom Hamada – al behara
B67: موبايل : 01009958821 – 01099548642 | E67: mob : +2001009958821 - +2001099548642

Sheet د.هبه فارس
B3: شركة بايوكيميكال ايجيبت | E3: Bio chemical egypt
G6: كود العميل
D7: حساب عميل | G7: 41
B9: اسم العميل | C9: =IFERROR(VLOOKUP(G7,'[1]البيانات '!$A$3:$B$102,2,0),"") -> د.هبه فارس | E9: تليفون | G9: =IFERROR(VLOOKUP(G7,'البيانات '!A3:C78,3,0),"") -> 0
B10: اسم المنشاة | E10: مدير مسئول
B11: العنوان | C11: =IFERROR(VLOOKUP(G7,'البيانات '!A3:D78,4,0),"") -> اشمون - المستشفي العام | E11: مندوب مبيعات | G11: =IFERROR(VLOOKUP(G7,'[1]البيانات '!$A$3:$E$102,5,0),"") -> محمد عبدالشفيع
B14: م | C14: التاريخ | D14: رقم الفاتورة | E14: قيمة الفاتورة | F14: رصيد سابق | G14: المدفوع | H14: رصيد متبقي | I14: ملاحظات
B15: 1 | C15: 2018-04-12 | D15: 5163 | E15: 360 | H15: =E15+F15-G15 -> 360
B16: 2 | C16: 2018-05-21 | D16: 5425 | F16: 360 | G16: 360 | H16: =E16+F16-G16 -> 0
B17: 3 | H17: 0
B18: 4 | H18: 0
B19: 5 | H19: 0
B20: 6 | H20: 0
B21: 7 | H21: 0
B22: 8 | H22: 0
B23: 9 | H23: 0
B24: 10 | H24: 0
B25: 11 | H25: 0
B26: 12 | H26: 0
B27: 13 | H27: 0
B28: 14 | H28: 0
B29: 15 | H29: 0
B30: 16 | H30: 0
B31: 17 | H31: 0
B32: 18 | H32: 0
B33: 19 | H33: 0
B34: 20 | H34: 0
B35: 21 | H35: 0
B36: 22 | H36: 0
B37: 23 | H37: 0
B38: 24 | H38: 0
B39: 25 | H39: 0
B40: 26 | H40: 0
B41: 27 | H41: 0
B42: 28 | H42: 0
B43: 29 | H43: 0
B44: 30 | H44: 0
B45: الاجمالي | E45: =SUM(E15:E44) -> 360 | G45: =SUM(G15:G44) -> 360
B47: بايو كيميكال ايجيبت للمطهرات و اضافات الاعلاف . | E47: Bio chemical Egypt for antiseptic & feed additives .
B48: المصنع : دست الاشراف - كوم حماده – البحيرة . | E48: address : dest el ashraf – kom Hamada – al behara
B49: موبايل : 01009958821 – 01099548642 | E49: mob : +2001009958821 - +2001099548642

Sheet د.محمد عبده
B3: شركة بايوكيميكال ايجيبت | E3: Bio chemical egypt
G6: كود العميل
D7: حساب عميل | G7: 20
B9: اسم العميل | C9: =IFERROR(VLOOKUP(G7,'[1]البيانات '!$A$3:$B$102,2,0),"") -> د.محمد عبده | E9: تليفون | G9: =IFERROR(VLOOKUP(G7,'البيانات '!A3:C78,3,0),"") -> 0
B10: اسم المنشاة | E10: مدير مسئول
B11: العنوان | C11: =IFERROR(VLOOKUP(G7,'البيانات '!A3:D78,4,0),"") -> دمنهور - كوبري فلاقه | E11: مندوب مبيعات | G11: =IFERROR(VLOOKUP(G7,'[1]البيانات '!$A$3:$E$102,5,0),"") -> محمد عبدالشفيع
B14: م | C14: التاريخ | D14: رقم الفاتورة | E14: قيمة الفاتورة | F14: رصيد سابق | G14: المدفوع | H14: رصيد متبقي | I14: ملاحظات
B15: 1 | C15: 2018-02-04 | D15: 5111 | E15: 2380 | F15: 0 | G15: 2380 | H15: =E15+F15-G15 -> 0 | I15: السائق
B16: 2 | C16: 2018-04-16 | D16: 5214 | E16: 2125 | G16: 500 | H16: =E16+F16-G16 -> 1625
B17: 3 | C17: 2018-04-22 | D17: 5181 | F17: 1625 | G17: 500 | H17: 1125
B18: 4 | C18: 2018-04-29 | D18: 5192 | F18: 1125 | G18: 400 | H18: 725
B19: 5 | C19: 2018-05-13 | D19: 5409 | F19: 725 | G19: 500 | H19: 225
B20: 6 | C20: 2018-06-02 | D20: 5246 | E20: 1125 | F20: 225 | H20: 1350
B21: 7 | C21: مرتجع ما قيمته 2000 | E21: -2000 | F21: 1350 | G21: -25 | H21: -625
B22: 8 | H22: 0
B23: 9 | H23: 0
B24: 10 | H24: 0
B25: 11 | H25: 0
B26: 12 | H26: 0
B27: 13 | H27: 0
B28: 14 | H28: 0
B29: 15 | H29: 0
B30: 16 | H30: 0
B31: 17 | H31: 0
B32: 18 | H32: 0
B33: 19 | H33: 0
B34: 20 | H34: 0
B35: 21 | H35: 0
B36: 22 | H36: 0
B37: 23 | H37: 0
B38: 24 | H38: 0
B39: 25 | H39: 0
B40: 26 | H40: 0
B41: 27 | H41: 0
B42: 28 | H42: 0
B43: 29 | H43: 0
B44: 30 | H44: 0
B45: الاجمالي | E45: =SUM(E15:E44) -> 3630 | G45: =SUM(G15:G44) -> 4255
B47: بايو كيميكال ايجيبت للمطهرات و اضافات الاعلاف . | E47: Bio chemical Egypt for antiseptic & feed additives .
B48: المصنع : دست الاشراف - كوم حماده – البحيرة . | E48: address : dest el ashraf – kom Hamada – al behara
B49: موبايل : 01009958821 – 01099548642 | E49: mob : +2001009958821 - +2001099548642

Sheet د.محمد زغلول
B3: شركة بايوكيميكال ايجيبت | E3: Bio chemical egypt
G6: كود العميل
D7: حساب عميل | G7: 21
B9: اسم العميل | C9: =IFERROR(VLOOKUP(G7,'[1]البيانات '!$A$3:$B$102,2,0),"") -> د.محمد زغلول | E9: تليفون | G9: =IFERROR(VLOOKUP(G7,'البيانات '!A3:C78,3,0),"") -> 1062815211
B10: اسم المنشاة | E10: مدير مسئول | G10: مدحت زغلول
B11: العنوان | C11: =IFERROR(VLOOKUP(G7,'البيانات '!A3:D78,4,0),"") -> ايتاي البارود | E11: مندوب مبيعات | G11: =IFERROR(VLOOKUP(G7,'[1]البيانات '!$A$3:$E$102,5,0),"") -> محمد عبدالشفيع
B14: م | C14: التاريخ | D14: رقم الفاتورة | E14: قيمة الفاتورة | F14: رصيد سابق | G14: المدفوع | H14: رصيد متبقي | I14: ملاحظات
B15: 1 | C15: 2018-02-04 | D15: 5112 | E15: 725 | F15: 0 | H15: =E15+F15-G15 -> 725
B16: 2 | C16: 2018-02-13 | D16: 5313 | F16: 725 | G16: 250 | H16: =E16+F16-G16 -> 475
B17: 3 | C17: 2018-03-01 | D17: 5326 | F17: 475 | G17: 450
B18: 4 | H18: 0
B19: 5 | H19: 0
B20: 6 | H20: 0
B21: 7 | H21: 0
B22: 8 | H22: 0
B23: 9 | H23: 0
B24: 10 | H24: 0
B25: 11 | H25: 0
B26: 12 | H26: 0
B27: 13 | H27: 0
B28: 14 | H28: 0
B29: 15 | H29: 0
B30: 16 | H30: 0
B31: 17 | H31: 0
B32: 18 | H32: 0
B33: 19 | H33: 0
B34: 20 | H34: 0
B35: 21 | H35: 0
B36: 22 | H36: 0
B37: 23 | H37: 0
B38: 24 | H38: 0
B39: 25 | H39: 0
B40: 26 | H40: 0
B41: 27 | H41: 0
B42: 28 | H42: 0
B43: 29 | H43: 0
B44: 30 | H44: 0
B45: الاجمالي | E45: =SUM(E15:E44) -> 725 | G45: =SUM(G15:G44) -> 700
B47: بايو كيميكال ايجيبت للمطهرات و اضافات الاعلاف . | E47: Bio chemical Egypt for antiseptic & feed additives .
B48: المصنع : دست الاشراف - كوم حماده – البحيرة . | E48: address : dest el ashraf – kom Hamada – al behara
B49: موبايل : 01009958821 – 01099548642 | E49: mob : +2001009958821 - +2001099548642

Sheet اسامه سالم
B3: شركة بايوكيميكال ايجيبت | E3: Bio chemical egypt
G6: كود العميل
D7: حساب عميل | G7: 23
B9: اسم العميل | C9: =IFERROR(VLOOKUP(G7,'[1]البيانات '!$A$3:$B$102,2,0),"") -> اسامه سالم | E9: تليفون | G9: =IFERROR(VLOOKUP(G7,'البيانات '!A3:C78,3,0),"") -> 0
B10: اسم المنشاة | E10: مدير مسئول
B11: العنوان | C11: =IFERROR(VLOOKUP(G7,'البيانات '!A3:D78,4,0),"") -> كوبري قمحه - دمنهور | E11: مندوب مبيعات | G11: =IFERROR(VLOOKUP(G7,'[1]البيانات '!$A$3:$E$102,5,0),"") -> محمد عبدالشفيع
B14: م | C14: التاريخ | D14: رقم الفاتورة | E14: قيمة الفاتورة | F14: رصيد سابق | G14: المدفوع | H14: رصيد متبقي | I14: ملاحظات
B15: 1 | C15: 2018-01-25 | D15: 5303 | E15: 750 | F15: 0 | H15: =E15+F15-G15 -> 750
B16: 2 | C16: 2018-04-18 | D16: 5176 | F16: 750 | G16: 500 | H16: =E16+F16-G16 -> 250
B17: 3 | C17: 2018-05-16 | D17: 5419 | F17: 250 | G17: 250 | H17: 0
B18: 4 | H18: 0
B19: 5 | H19: 0
B20: 6 | D20: طرف الاستاذ فتحي مقلد | H20: 0
B21: 7 | H21: 0
B22: 8 | C22: 2018-10-14 | D22: 1362 | E22: 2850 | F22: 0 | G22: 0 | H22: 2850
B23: 9 | H23: 0
B24: 10 | H24: 0
B25: 11 | H25: 0
B26: 12 | H26: 0
B27: 13 | H27: 0
B28: 14 | H28: 0
B29: 15 | H29: 0
B30: 16 | H30: 0
B31: 17 | H31: 0
B32: 18 | H32: 0
B33: 19 | H33: 0
B34: 20 | H34: 0
B35: 21 | H35: 0
B36: 22 | H36: 0
B37: 23 | H37: 0
B38: 24 | H38: 0
B39: 25 | H39: 0
B40: 26 | H40: 0
B41: 27 | H41: 0
B42: 28 | H42: 0
B43: 29 | H43: 0
B44: 30 | H44: 0
B45: الاجمالي | E45: =SUM(E15:E44) -> 3600 | G45: =SUM(G15:G44) -> 750
B47: بايو كيميكال ايجيبت للمطهرات و اضافات الاعلاف . | E47: Bio chemical Egypt for antiseptic & feed additives .
B48: المصنع : دست الاشراف - كوم حماده – البحيرة . | E48: address : dest el ashraf – kom Hamada – al behara
B49: موبايل : 01009958821 – 01099548642 | E49: mob : +2001009958821 - +2001099548642

Sheet حسن ابو شوشه
B3: شركة بايوكيميكال ايجيبت | E3: Bio chemical egypt
G6: كود العميل
D7: حساب عميل | G7: 26
B9: اسم العميل | C9: =IFERROR(VLOOKUP(G7,'[1]البيانات '!$A$3:$B$102,2,0),"") -> حسن ابو شوشه | E9: تليفون | G9: =IFERROR(VLOOKUP(G7,'البيانات '!A3:C78,3,0),"") -> 1000627769
B10: اسم المنشاة | E10: مدير مسئول
B11: العنوان | C11: =IFERROR(VLOOKUP(G7,'البيانات '!A3:D78,4,0),"") -> سكران - الدلنجات | E11: مندوب مبيعات | G11: =IFERROR(VLOOKUP(G7,'[1]البيانات '!$A$3:$E$102,5,0),"") -> محمد عبدالشفيع
B14: م | C14: التاريخ | D14: رقم الفاتورة | E14: قيمة الفاتورة | F14: رصيد سابق | G14: المدفوع | H14: رصيد متبقي | I14: ملاحظات
B15: 1 | C15: 2018-02-12 | D15: 5116 | E15: 2015 | F15: 0 | G15: 0 | H15: =E15+F15-G15 -> 2015
B16: 2 | C16: 2018-03-27 | D16: 5347 | E16: 0 | F16: 2015 | G16: 400 | H16: =E16+F16-G16 -> 1615
B17: 3 | C17: 2018-04-18 | D17: 5173 | E17: 0 | F17: 1615 | G17: 400 | H17: 1215
B18: 4 | C18: 2018-05-02 | D18: 5199 | E18: 0 | F18: 1215 | G18: 300 | H18: 915
B19: 5 | C19: 2018-05-16 | D19: 5421 | E19: 0 | F19: 915 | G19: 400 | H19: 515
B20: 6 | C20: 2018-05-30 | D20: 5434 | E20: 0 | F20: 515 | G20: 500 | H20: 15
B21: 7 | H21: 0
B22: 8 | H22: 0
B23: 9 | H23: 0
B24: 10 | H24: 0
B25: 11 | H25: 0
B26: 12 | H26: 0
B27: 13 | H27: 0
B28: 14 | H28: 0
B29: 15 | H29: 0
B30: 16 | H30: 0
B31: 17 | H31: 0
B32: 18 | H32: 0
B33: 19 | H33: 0
B34: 20 | H34: 0
B35: 21 | H35: 0
B36: 22 | H36: 0
B37: 23 | H37: 0
B38: 24 | H38: 0
B39: 25 | H39: 0
B40: 26 | H40: 0
B41: 27 | H41: 0
B42: 28 | H42: 0
B43: 29 | H43: 0
B44: 30 | H44: 0
B45: الاجمالي | E45: =SUM(E15:E44) -> 2015 | G45: =SUM(G15:G44) -> 2000
B47: بايو كيميكال ايجيبت للمطهرات و اضافات الاعلاف . | E47: Bio chemical Egypt for antiseptic & feed additives .
B48: المصنع : دست الاشراف - كوم حماده – البحيرة . | E48: address : dest el ashraf – kom Hamada – al behara
B49: موبايل : 01009958821 – 01099548642 | E49: mob : +2001009958821 - +2001099548642

Sheet د.اشرف زهران
B3: شركة بايوكيميكال ايجيبت | E3: Bio chemical egypt
G6: كود العميل
D7: حساب عميل | G7: 25
B9: اسم العميل | C9: =IFERROR(VLOOKUP(G7,'[1]البيانات '!$A$3:$B$102,2,0),"") -> داشرف زهران | E9: تليفون | G9: =IFERROR(VLOOKUP(G7,'البيانات '!A3:C78,3,0),"") -> 0
B10: اسم المنشاة | E10: مدير مسئول
B11: العنوان | C11: =IFERROR(VLOOKUP(G7,'البيانات '!A3:D78,4,0),"") -> دمنهور - ش المعهد الديني | E11: مندوب مبيعات | G11: =IFERROR(VLOOKUP(G7,'[1]البيانات '!$A$3:$E$102,5,0),"") -> محمد عبدالشفيع
B14: م | C14: التاريخ | D14: رقم الفاتورة | E14: قيمة الفاتورة | F14: رصيد سابق | G14: المدفوع | H14: رصيد متبقي | I14: ملاحظات
B15: 1 | C15: 2018-02-12 | D15: 5115 | E15: 2100 | F15: 0 | G15: 0 | H15: =E15+F15-G15 -> 2100
B16: 2 | C16: 2018-02-25 | D16: 5319 | E16: 0 | F16: 2100 | G16: 800 | H16: =E16+F16-G16 -> 1300
B17: 3 | C17: 2018-03-13 | D17: 5332 | E17: 0 | F17: 1300 | G17: 1000 | H17: 300
B18: 4 | C18: 2018-03-25 | D18: 5344 | E18: 0 | F18: 300 | G18: 300 | H18: 0
B19: 5 | C19: 2018-03-27 | D19: 5148 | E19: 3160 | G19: 0 | H19: 3160
B20: 6 | C20: 2018-04-15 | D20: 5164 | E20: 0 | F20: 3160 | G20: 600 | H20: 2560
B21: 7 | C21: 2018-04-29 | D21: 5193 | E21: 0 | F21: 2560 | G21: 700 | H21: 1860
B22: 8 | C22: 2018-05-27 | D22: 5426 | E22: 0 | F22: 1860 | G22: 600 | H22: 1260
B23: 9 | C23: 2018-06-02 | D23: 5244 | E23: 4000 | F23: 1260 | G23: 0 | H23: 5260
B24: 10 | C24: 2018-06-03 | D24: 5440 | E24: 0 | F24: 5260 | G24: 700 | H24: 4560
B25: 11 | C25: 2018-06-10 | D25: 5448 | E25: 0 | F25: 4560 | G25: 500 | H25: 4060
B26: 12 | C26: 2018-06-24 | D26: 1014 | E26: 0 | F26: 4060 | G26: 500 | H26: 3560
B27: 13 | C27: 2018-07-08 | D27: 10.35 | E27: 0 | F27: 3560 | G27: 500 | H27: 3060
B28: 14 | C28: 2018-07-15 | D28: 1046 | E28: 0 | F28: 3060 | G28: 500 | H28: 2560
B29: 15 | C29: 2018-07-19 | D29: 53 | E29: 1500 | F29: 2560 | G29: 0 | H29: 4060
B30: 16 | C30: 2018-07-29 | D30: 14 | E30: 0 | F30: 4060 | G30: 800 | H30: 3260
B31: 17 | C31: 2018-07-31 | D31: 50 | E31: 2400 | F31: 3260 | G31: 0 | H31: 5660
B32: 18 | C32: 2018-08-26 | D32: 40 | E32: 0 | F32: 5660 | G32: 500 | H32: 5160
B33: 19 | C33: 2018-09-09 | D33: 74 | E33: 0 | F33: 5160 | G33: 800 | H33: 4360
B34: 20 | H34: 0
B35: 21 | H35: 0
B36: 22 | H36: 0
B37: 23 | H37: 0
B38: 24 | H38: 0
B39: 25 | H39: 0
B40: 26 | H40: 0
B41: 27 | H41: 0
B42: 28 | H42: 0
B43: 29 | H43: 0
B44: 30 | H44: 0
B45: الاجمالي | E45: =SUM(E15:E44) -> 13160 | G45: =SUM(G15:G44) -> 8800
B47: بايو كيميكال ايجيبت للمطهرات و اضافات الاعلاف . | E47: Bio chemical Egypt for antiseptic & feed additives .
B48: المصنع : دست الاشراف - كوم حماده – البحيرة . | E48: address : dest el ashraf – kom Hamada – al behara
B49: موبايل : 01009958821 – 01099548642 | E49: mob : +2001009958821 - +2001099548642

Sheet هاني الصاوي
B3: شركة بايوكيميكال ايجيبت | E3: Bio chemical egypt
G6: كود العميل
D7: حساب عميل | G7: 24
B9: اسم العميل | C9: =IFERROR(VLOOKUP(G7,'[1]البيانات '!$A$3:$B$102,2,0),"") -> هاني الصاوي | E9: تليفون | G9: =IFERROR(VLOOKUP(G7,'البيانات '!A3:C78,3,0),"") -> 0
B10: اسم المنشاة | E10: مدير مسئول
B11: العنوان | C11: =IFERROR(VLOOKUP(G7,'البيانات '!A3:D78,4,0),"") -> مركز بدر | E11: مندوب مبيعات | G11: =IFERROR(VLOOKUP(G7,'[1]البيانات '!$A$3:$E$102,5,0),"") -> محمد عبدالشفيع
B14: م | C14: التاريخ | D14: رقم الفاتورة | E14: قيمة الفاتورة | F14: رصيد سابق | G14: المدفوع | H14: رصيد متبقي | I14: ملاحظات
B15: 1 | C15: 2018-02-12 | D15: 5311 | E15: 1440 | F15: 0 | G15: 0 | H15: =E15+F15-G15 -> 1440
B16: 2 | C16: 2018-02-20 | D16: 5318 | E16: 3000 | F16: 1440 | G16: 1000 | H16: =E16+F16-G16 -> 3440
B17: 3 | C17: 2018-02-28 | D17: 5323 | E17: 0 | F17: 3440 | G17: 1000 | H17: 2440
B18: 4 | C18: 2018-03-29 | D18: 5153 | E18: 0 | F18: 2440 | G18: 1000 | H18: 1440
B19: 5 | C19: 2018-04-26 | D19: 5191 | E19: 0 | F19: 1440 | G19: 1400 | H19: 40
B20: 6 | C20: 2018-06-03 | D20: 5245 | E20: 4075 | F20: 40 | G20: 0 | H20: 4115
B21: 7 | C21: 2018-06-12 | D21: 5462 | E21: 3400 | F21: 4115 | G21: 0 | H21: 7515
B22: 8 | C22: 2018-06-14 | D22: نقدي | E22: 0 | F22: 7515 | G22: 2000 | H22: 5515
B23: 9 | C23: 2018-07-16 | D23: نقدي | E23: 0 | F23: 5515 | G23: 1000 | H23: 4515
B24: 10 | C24: 2018-07-30 | D24: نقدي | E24: 0 | F24: 4515 | G24: 1000 | H24: 3515
B25: 11 | C25: 2018-08-27 | D25: نقدي | E25: 0 | F25: 3515 | G25: 1000 | H25: 2515
B26: 12 | C26: 2018-09-24 | D26: 42 | E26: 1950 | F26: 2515 | G26: 0 | H26: 4465
B27: 13 | C27: 2018-09-30 | D27: 47 | E27: 2400 | F27: 4465 | G27: 0 | H27: 6865
B28: 14 | H28: 0
B29: 15 | H29: 0
B30: 16 | H30: 0
B31: 17 | H31: 0
B32: 18 | H32: 0
B33: 19 | H33: 0
B34: 20 | H34: 0
B35: 21 | H35: 0
B36: 22 | H36: 0
B37: 23 | H37: 0
B38: 24 | H38: 0
B39: 25 | H39: 0
B40: 26 | H40: 0
B41: 27 | H41: 0
B42: 28 | H42: 0
B43: 29 | H43: 0
B44: 30 | H44: 0
B45: الاجمالي | E45: =SUM(E15:E44) -> 16265 | G45: =SUM(G15:G44) -> 9400
B47: بايو كيميكال ايجيبت للمطهرات و اضافات الاعلاف . | E47: Bio chemical Egypt for antiseptic & feed additives .
B48: المصنع : دست الاشراف - كوم حماده – البحيرة . | E48: address : dest el ashraf – kom Hamada – al behara
B49: موبايل : 01009958821 – 01099548642 | E49: mob : +2001009958821 - +2001099548642

Sheet د.رانيا فوده
B3: شركة بايوكيميكال ايجيبت | E3: Bio chemical egypt
G6: كود العميل
D7: حساب عميل | G7: 27
B9: اسم العميل | C9: =IFERROR(VLOOKUP(G7,'[1]البيانات '!$A$3:$B$102,2,0),"") -> د.رانيا فوده | E9: تليفون | G9: =IFERROR(VLOOKUP(G7,'البيانات '!A3:C78,3,0),"") -> 1003579499
B10: اسم المنشاة | E10: مدير مسئول
B11: العنوان | C11: =IFERROR(VLOOKUP(G7,'البيانات '!A3:D78,4,0),"") -> اشمون | E11: مندوب مبيعات | G11: =IFERROR(VLOOKUP(G7,'[1]البيانات '!$A$3:$E$102,5,0),"") -> محمد عبدالشفيع
B14: م | C14: التاريخ | D14: رقم الفاتورة | E14: قيمة الفاتورة | F14: رصيد سابق | G14: المدفوع | H14: رصيد متبقي | I14: ملاحظات
B15: 1 | C15: 2018-02-15 | D15: 5118 | E15: 2070 | F15: 0 | G15: 0 | H15: =E15+F15-G15 -> 2070
B16: 2 | C16: 2018-02-15 | D16: 5314 | E16: 0 | F16: 2070 | G16: 1070 | H16: =E16+F16-G16 -> 1000
B17: 3 | C17: 2018-03-08 | D17: 5329 | E17: 0 | F17: 1000 | G17: 1000 | H17: 0
B18: 4 | C18: 2018-04-12 | D18: 5161 | E18: 720 | F18: 0 | G18: 0 | H18: 720
B19: 5 | C19: 2018-05-10 | D19: 5408 | E19: 720 | F19: 720 | G19: 700 | H19: 740
B20: 6 | C20: 2018-05-21 | D20: 5424 | E20: 720 | F20: 740 | G20: 600 | H20: 860
B21: 7 | C21: 2018-07-09 | D21: 51 | E21: 720 | F21: 860 | G21: 750 | H21: 830
B22: 8 | C22: 2018-08-13 | D22: 57 | E22: 360 | F22: 830 | G22: 500 | H22: 690
B23: 9 | C23: 2018-09-17 | D23: 65 | E23: 720 | F23: 690 | G23: 0 | H23: 1410
B24: 10 | D24: نقدي | E24: 0 | F24: 1410 | G24: 500 | H24: 910
B25: 11 | H25: 0
B26: 12 | H26: 0
B27: 13 | H27: 0
B28: 14 | H28: 0
B29: 15 | H29: 0
B30: 16 | H30: 0
B31: 17 | H31: 0
B32: 18 | H32: 0
B33: 19 | H33: 0
B34: 20 | H34: 0
B35: 21 | H35: 0
B36: 22 | H36: 0
B37: 23 | H37: 0
B38: 24 | H38: 0
B39: 25 | H39: 0
B40: 26 | H40: 0
B41: 27 | H41: 0
B42: 28 | H42: 0
B43: 29 | H43: 0
B44: 30 | H44: 0
B45: الاجمالي | E45: =SUM(E15:E44) -> 6030 | G45: =SUM(G15:G44) -> 5120
B47: بايو كيميكال ايجيبت للمطهرات و اضافات الاعلاف . | E47: Bio chemical Egypt for antiseptic & feed additives .
B48: المصنع : دست الاشراف - كوم حماده – البحيرة . | E48: address : dest el ashraf – kom Hamada – al behara
B49: موبايل : 01009958821 – 01099548642 | E49: mob : +2001009958821 - +2001099548642

Sheet د.حماده فتحي
B3: شركة بايوكيميكال ايجيبت | E3: Bio chemical egypt
G6: كود العميل
D7: حساب عميل | G7: 28
B9: اسم العميل | C9: =IFERROR(VLOOKUP(G7,'[1]البيانات '!$A$3:$B$102,2,0),"") -> د.حماده فتحي | E9: تليفون | G9: =IFERROR(VLOOKUP(G7,'البيانات '!A3:C78,3,0),"") -> 1067035255
B10: اسم المنشاة | E10: مدير مسئول
B11: العنوان | C11: =IFERROR(VLOOKUP(G7,'البيانات '!A3:D78,4,0),"") -> ابو المطامير | E11: مندوب مبيعات | G11: =IFERROR(VLOOKUP(G7,'[1]البيانات '!$A$3:$E$102,5,0),"") -> محمد عبدالشفيع
B14: م | C14: التاريخ | D14: رقم الفاتورة | E14: قيمة الفاتورة | F14: رصيد سابق | G14: المدفوع | H14: رصيد متبقي | I14: ملاحظات
B15: 1 | C15: 2018-02-25 | D15: 5123 | E15: 2330 | F15: 0 | G15: 0 | H15: =E15+F15-G15 -> 2330
B16: 2 | C16: 2018-02-25 | D16: 5327 | E16: 0 | F16: 2330 | G16: 500 | H16: =E16+F16-G16 -> 1830 | I16: السائق
B17: 3 | C17: 2018-03-18 | D17: 53.37 | E17: 0 | F17: 1830 | G17: 1000 | H17: 830
B18: 4 | C18: 2018-04-05 | D18: 5207 | E18: 4185 | F18: 830 | G18: 1500 | H18: 3515
B19: 5 | C19: 2018-04-19 | D19: 5178 | E19: 0 | F19: 3515 | G19: 1000 | H19: 2515
B20: 6 | C20: 2018-05-14 | D20: 5413 | E20: 0 | F20: 2515 | G20: 1000 | H20: 1515
B21: 7 | C21: 2018-06-02 | D21: 5438 | E21: 0 | F21: 1515 | G21: 1000 | H21: 515
B22: 8 | C22: 2018-06-04 | D22: 5248 | E22: 3540 | F22: 515 | G22: 2000 | H22: 2055 | I22: السائق
B23: 9 | C23: 2018-06-09 | D23: 5456 | E23: 900 | F23: 2055 | G23: 0 | H23: 2955
B24: 10 | C24: 2018-06-21 | D24: 1012 | E24: 0 | F24: 2955 | G24: 300 | H24: 2655
B25: 11 | C25: 2018-07-05 | D25: 1032 | E25: 0 | F25: 2655 | G25: 700 | H25: 1955
B26: 12 | C26: 2018-07-19 | D26: 6 | E26: 0 | F26: 1955 | G26: 500 | H26: 1455
B27: 13 | C27: 2018-08-02 | D27: 22 | E27: 0 | F27: 1455 | G27: 600 | H27: 855
B28: 14 | C28: 2018-08-06 | D28: 8 | E28: 4350 | F28: 855 | G28: 0 | H28: 5205
B29: 15 | C29: 2018-08-09 | D29: 33 | E29: 0 | F29: 5205 | G29: 1000 | H29: 4205
B30: 16 | C30: 2018-08-16 | D30: 45 | E30: 0 | F30: 4205 | G30: 500 | H30: 3705
B31: 17 | C31: 2018-09-06 | D31: 72 | E31: 0 | F31: 3705 | G31: 500 | H31: 3205
B32: 18 | C32: 2018-10-04 | D32: 1351 | E32: 4350 | F32: 3205 | G32: 0 | H32: 7555
B33: 19 | C33: 2018-10-04 | D33: نقدي | E33: 0 | F33: 7555 | G33: 1000 | H33: 6555
B34: 20 | H34: 0
B35: 21 | H35: 0
B36: 22 | H36: 0
B37: 23 | H37: 0
B38: 24 | H38: 0
B39: 25 | H39: 0
B40: 26 | H40: 0
B41: 27 | H41: 0
B42: 28 | H42: 0
B43: 29 | H43: 0
B44: 30 | H44: 0
B45: الاجمالي | E45: =SUM(E15:E44) -> 19655 | G45: =SUM(G15:G44) -> 13100
B47: بايو كيميكال ايجيبت للمطهرات و اضافات الاعلاف . | E47: Bio chemical Egypt for antiseptic & feed additives .
B48: المصنع : دست الاشراف - كوم حماده – البحيرة . | E48: address : dest el ashraf – kom Hamada – al behara
B49: موبايل : 01009958821 – 01099548642 | E49: mob : +2001009958821 - +2001099548642

Sheet الهادي اسماعيل
B3: شركة بايوكيميكال ايجيبت | E3: Bio chemical egypt
G6: كود العميل
D7: حساب عميل | G7: 29
B9: اسم العميل | C9: =IFERROR(VLOOKUP(G7,'[1]البيانات '!$A$3:$B$102,2,0),"") -> الهادي اسماعيل | E9: تليفون | G9: =IFERROR(VLOOKUP(G7,'البيانات '!A3:C78,3,0),"") -> 1100281810
B10: اسم المنشاة | E10: مدير مسئول
B11: العنوان | C11: =IFERROR(VLOOKUP(G7,'البيانات '!A3:D78,4,0),"") -> اطليميس - الدلنجات - طريق المسين | E11: مندوب مبيعات | G11: =IFERROR(VLOOKUP(G7,'[1]البيانات '!$A$3:$E$102,5,0),"") -> محمد عبدالشفيع
B14: م | C14: التاريخ | D14: رقم الفاتورة | E14: قيمة الفاتورة | F14: رصيد سابق | G14: المدفوع | H14: رصيد متبقي | I14: ملاحظات
B15: 1 | C15: 2018-03-11 | D15: 5128 | E15: 1440 | F15: 0 | G15: 0 | H15: =E15+F15-G15 -> 1440
B16: 2 | C16: 2018-05-02 | D16: نقدي | E16: 0 | F16: 1440 | G16: 1400 | H16: =E16+F16-G16 -> 40
B17: 3 | H17: 0
B18: 4 | H18: 0
B19: 5 | H19: 0
B20: 6 | H20: 0
B21: 7 | H21: 0
B22: 8 | H22: 0
B23: 9 | H23: 0
B24: 10 | H24: 0
B25: 11 | H25: 0
B26: 12 | H26: 0
B27: 13 | H27: 0
B28: 14 | H28: 0
B29: 15 | H29: 0
B30: 16 | H30: 0
B31: 17 | H31: 0
B32: 18 | H32: 0
B33: 19 | H33: 0
B34: 20 | H34: 0
B35: 21 | H35: 0
B36: 22 | H36: 0
B37: 23 | H37: 0
B38: 24 | H38: 0
B39: 25 | H39: 0
B40: 26 | H40: 0
B41: 27 | H41: 0
B42: 28 | H42: 0
B43: 29 | H43: 0
B44: 30 | H44: 0
B45: الاجمالي | E45: =SUM(E15:E44) -> 1440 | G45: =SUM(G15:G44) -> 1400
B47: بايو كيميكال ايجيبت للمطهرات و اضافات الاعلاف . | E47: Bio chemical Egypt for antiseptic & feed additives .
B48: المصنع : دست الاشراف - كوم حماده – البحيرة . | E48: address : dest el ashraf – kom Hamada – al behara
B49: موبايل : 01009958821 – 01099548642 | E49: mob : +2001009958821 - +2001099548642

Sheet احمد تركي
B3: شركة بايوكيميكال ايجيبت | E3: Bio chemical egypt
G6: كود العميل
D7: حساب عميل | G7: 30
B9: اسم العميل | C9: =IFERROR(VLOOKUP(G7,'[1]البيانات '!$A$3:$B$102,2,0),"") -> احمد تركي | E9: تليفون | G9: =IFERROR(VLOOKUP(G7,'البيانات '!A3:C78,3,0),"") -> 1003221948
B10: اسم المنشاة | E10: مدير مسئول
B11: العنوان | C11: =IFERROR(VLOOKUP(G7,'البيانات '!A3:D78,4,0),"") -> الدلنجات - بعد البوابه طريق المسين | E11: مندوب مبيعات | G11: =IFERROR(VLOOKUP(G7,'[1]البيانات '!$A$3:$E$102,5,0),"") -> محمد عبدالشفيع
B14: م | C14: التاريخ | D14: رقم الفاتورة | E14: قيمة الفاتورة | F14: رصيد سابق | G14: المدفوع | H14: رصيد متبقي | I14: ملاحظات
B15: 1 | C15: 2018-03-11 | D15: 5130 | E15: 5090 | F15: 0 | G15: 0 | H15: =E15+F15-G15 -> 5090
B16: 2 | C16: 2018-03-13 | D16: 5335 | F16: 5090 | G16: 1500 | H16: =E16+F16-G16 -> 3590
B17: 3 | C17: 2018-03-27 | D17: 5350 | F17: 3590 | G17: 1000 | H17: 2590
B18: 4 | C18: 2018-04-23 | D18: 5217 | E18: 2100 | F18: 2590 | H18: 4690
B19: 5 | C19: 2018-05-16 | D19: 5420 | F19: 4690 | G19: 500 | H19: 4190
B20: 6 | C20: 2018-06-27 | D20: 1023 | F20: 4190 | G20: 1000 | H20: 3190
B21: 7 | C21: 2018-06-28 | D21: 5476 | E21: 3850 | F21: 3190 | H21: 7040
B22: 8 | C22: 2018-07-11 | D22: 1044 | F22: 7040 | G22: 500 | H22: 6540
B23: 9 | C23: 2018-07-25 | D23: 12 | F23: 7040 | G23: 500 | H23: 6540
B24: 10 | C24: 2018-08-08 | D24: 32 | F24: 6540 | G24: 500 | H24: 6040
B25: 11 | C25: 2018-08-29 | D25: 60 | F25: 6040 | G25: 500 | H25: 5540
B26: 12 | C26: 2018-09-02 | D26: 24 | E26: 2950 | F26: 5040 | H26: 7990
B27: 13 | C27: 2018-09-05 | D27: 69 | F27: 7990 | G27: 500 | H27: 7490
B28: 14 | C28: 2018-09-19 | D28: 98 | F28: 7490 | G28: 500 | H28: 6990
B29: 15 | H29: 0
B30: 16 | H30: 0
B31: 17 | H31: 0
B32: 18 | H32: 0
B33: 19 | H33: 0
B34: 20 | H34: 0
B35: 21 | H35: 0
B36: 22 | H36: 0
B37: 23 | H37: 0
B38: 24 | H38: 0
B39: 25 | H39: 0
B40: 26 | H40: 0
B41: 27 | H41: 0
B42: 28 | H42: 0
B43: 29 | H43: 0
B44: 30 | H44: 0
B45: الاجمالي | E45: =SUM(E15:E44) -> 13990 | G45: =SUM(G15:G44) -> 7000
B47: بايو كيميكال ايجيبت للمطهرات و اضافات الاعلاف . | E47: Bio chemical Egypt for antiseptic & feed additives .
B48: المصنع : دست الاشراف - كوم حماده – البحيرة . | E48: address : dest el ashraf – kom Hamada – al behara
B49: موبايل : 01009958821 – 01099548642 | E49: mob : +2001009958821 - +2001099548642

Sheet د.محمد فوزي المشد
B3: شركة بايوكيميكال ايجيبت | E3: Bio chemical egypt
G6: كود العميل
D7: حساب عميل | G7: 33
B9: اسم العميل | C9: =IFERROR(VLOOKUP(G7,'[1]البيانات '!$A$3:$B$102,2,0),"") -> محمد فوزي المشد | E9: تليفون | G9: =IFERROR(VLOOKUP(G7,'البيانات '!A3:C78,3,0),"") -> 1006880848
B10: اسم المنشاة | E10: مدير مسئول
B11: العنوان | C11: =IFERROR(VLOOKUP(G7,'البيانات '!A3:D78,4,0),"") -> طريق كفر داود الاقليمي | E11: مندوب مبيعات | G11: =IFERROR(VLOOKUP(G7,'[1]البيانات '!$A$3:$E$102,5,0),"") -> محمد عبدالشفيع
B14: م | C14: التاريخ | D14: رقم الفاتورة | E14: قيمة الفاتورة | F14: رصيد سابق | G14: المدفوع | H14: رصيد متبقي | I14: ملاحظات
B15: 1 | C15: 2018-03-16 | D15: 5338 | E15: 1400 | G15: 1000 | H15: =E15+F15-G15 -> 400
B16: 2 | C16: 2018-04-16 | D16: 5170 | F16: 400 | G16: 400 | H16: =E16+F16-G16 -> 0
B17: 3 | C17: 2018-08-13 | D17: 59 | E17: 1220 | G17: 700 | H17: 520
B18: 4 | C18: 2018-09-03 | D18: 63 | E18: 375 | F18: 520 | G18: 500 | H18: 395
B19: 5 | H19: 0
B20: 6 | H20: 0
B21: 7 | H21: 0
B22: 8 | H22: 0
B23: 9 | H23: 0
B24: 10 | H24: 0
B25: 11 | H25: 0
B26: 12 | H26: 0
B27: 13 | H27: 0
B28: 14 | H28: 0
B29: 15 | H29: 0
B30: 16 | H30: 0
B31: 17 | H31: 0
B32: 18 | H32: 0
B33: 19 | H33: 0
B34: 20 | H34: 0
B35: 21 | H35: 0
B36: 22 | H36: 0
B37: 23 | H37: 0
B38: 24 | H38: 0
B39: 25 | H39: 0
B40: 26 | H40: 0
B41: 27 | H41: 0
B42: 28 | H42: 0
B43: 29 | H43: 0
B44: 30 | H44: 0
B45: الاجمالي | E45: =SUM(E15:E44) -> 2995 | G45: =SUM(G15:G44) -> 2600
B47: بايو كيميكال ايجيبت للمطهرات و اضافات الاعلاف . | E47: Bio chemical Egypt for antiseptic & feed additives .
B48: المصنع : دست الاشراف - كوم حماده – البحيرة . | E48: address : dest el ashraf – kom Hamada – al behara
B49: موبايل : 01009958821 – 01099548642 | E49: mob : +2001009958821 - +2001099548642

Sheet رشا عيسي
B3: شركة بايوكيميكال ايجيبت | E3: Bio chemical egypt
G6: كود العميل
D7: حساب عميل | G7: 32
B9: اسم العميل | C9: =IFERROR(VLOOKUP(G7,'[1]البيانات '!$A$3:$B$102,2,0),"") -> د.رشاد عيسي | E9: تليفون | G9: =IFERROR(VLOOKUP(G7,'البيانات '!A3:C78,3,0),"") -> 1115829062
B10: اسم المنشاة | E10: مدير مسئول
B11: العنوان | C11: =IFERROR(VLOOKUP(G7,'البيانات '!A3:D78,4,0),"") -> خمارة | E11: مندوب مبيعات | G11: =IFERROR(VLOOKUP(G7,'[1]البيانات '!$A$3:$E$102,5,0),"") -> محمد عبدالشفيع
B14: م | C14: التاريخ | D14: رقم الفاتورة | E14: قيمة الفاتورة | F14: رصيد سابق | G14: المدفوع | H14: رصيد متبقي | I14: ملاحظات
B15: 1 | C15: 2018-03-20 | D15: 5135 | E15: 1200 | G15: 400 | H15: =E15+F15-G15 -> 800
B16: 2 | C16: 2018-04-15 | D16: 5169 | F16: 800 | G16: 500 | H16: =E16+F16-G16 -> 300
B17: 3 | C17: 2018-04-22 | D17: 5183 | F17: 300 | G17: 300 | H17: 0
B18: 4 | H18: 0
B19: 5 | H19: 0
B20: 6 | H20: 0
B21: 7 | H21: 0
B22: 8 | H22: 0
B23: 9 | H23: 0
B24: 10 | H24: 0
B25: 11 | H25: 0
B26: 12 | H26: 0
B27: 13 | H27: 0
B28: 14 | H28: 0
B29: 15 | H29: 0
B30: 16 | H30: 0
B31: 17 | H31: 0
B32: 18 | H32: 0
B33: 19 | H33: 0
B34: 20 | H34: 0
B35: 21 | H35: 0
B36: 22 | H36: 0
B37: 23 | H37: 0
B38: 24 | H38: 0
B39: 25 | H39: 0
B40: 26 | H40: 0
B41: 27 | H41: 0
B42: 28 | H42: 0
B43: 29 | H43: 0
B44: 30 | H44: 0
B45: الاجمالي | E45: =SUM(E15:E44) -> 1200 | G45: =SUM(G15:G44) -> 1200
B47: بايو كيميكال ايجيبت للمطهرات و اضافات الاعلاف . | E47: Bio chemical Egypt for antiseptic & feed additives .
B48: المصنع : دست الاشراف - كوم حماده – البحيرة . | E48: address : dest el ashraf – kom Hamada – al behara
B49: موبايل : 01009958821 – 01099548642 | E49: mob : +2001009958821 - +2001099548642

Sheet علي الويزي
B3: شركة بايوكيميكال ايجيبت | E3: Bio chemical egypt
G6: كود العميل
D7: حساب عميل | G7: 31
B9: اسم العميل | C9: =IFERROR(VLOOKUP(G7,'[1]البيانات '!$A$3:$B$102,2,0),"") -> علي لويزي | E9: تليفون | G9: =IFERROR(VLOOKUP(G7,'البيانات '!A3:C78,3,0),"") -> 1007401318
B10: اسم المنشاة | E10: مدير مسئول
B11: العنوان | C11: =IFERROR(VLOOKUP(G7,'البيانات '!A3:D78,4,0),"") -> زاوية ابوشوشه - الدلنجات | E11: مندوب مبيعات | G11: =IFERROR(VLOOKUP(G7,'[1]البيانات '!$A$3:$E$102,5,0),"") -> محمد عبدالشفيع
B14: م | C14: التاريخ | D14: رقم الفاتورة | E14: قيمة الفاتورة | F14: رصيد سابق | G14: المدفوع | H14: رصيد متبقي | I14: ملاحظات
B15: 1 | C15: 2018-03-11 | D15: 5131 | E15: 4450 | H15: =E15+F15-G15 -> 4450
B16: 2 | C16: 2018-03-27 | D16: 5348 | F16: 4450 | G16: 1000 | H16: =E16+F16-G16 -> 3450
B17: 3 | C17: 2018-04-10 | D17: 5158 | F17: 3450 | G17: 1000 | H17: 2450
B18: 4 | C18: 2018-04-11 | D18: 5210 | E18: 3350 | F18: 2450 | H18: 5800
B19: 5 | C19: 2018-04-18 | D19: 5174 | F19: 5800 | G19: 1500 | H19: 4300
B20: 6 | C20: 2018-04-25 | D20: 5185 | F20: 4300 | G20: 1000 | H20: 3300
B21: 7 | C21: 2018-05-02 | D21: 5198 | F21: 3300 | G21: 1000 | H21: 2300
B22: 8 | C22: 2018-05-09 | D22: 5405 | F22: 2300 | G22: 600 | H22: 1700
B23: 9 | C23: 2018-05-14 | D23: 5236 | E23: 2125 | F23: 1700 | H23: 3825
B24: 10 | C24: 2018-05-16 | D24: 5417 | F24: 3825 | G24: 1500 | H24: 2325
B25: 11 | C25: 2018-06-20 | D25: 1009 | F25: 2325 | G25: 1000 | H25: 1325
B26: 12 | C26: 2018-06-27 | D26: 1020 | F26: 1325 | G26: 1300 | H26: 25
B27: 13 | C27: 2018-07-01 | D27: 5481 | E27: 8100 | F27: 25 | H27: 8125
B28: 14 | C28: 2018-07-04 | D28: 1028 | F28: 8125 | G28: 1500 | H28: 6625
B29: 15 | C29: 2018-07-11 | D29: 1042 | F29: 6625 | G29: 1500 | H29: 5125
B30: 16 | C30: 2018-07-18 | D30: 1 | F30: 5125 | G30: 1500 | H30: 3625
B31: 17 | C31: 2018-08-01 | D31: 20 | F31: 0.3625 | G31: 1500 | H31: -1499.6375
B32: 18 | C32: 2018-08-08 | D32: 29 | F32: 2125 | G32: 1500 | H32: 625
B33: 19 | C33: 2018-09-05 | D33: 66 | F33: 625 | G33: 500 | H33: 125
B34: 20 | C34: 2018-09-05 | D34: 30 | E34: 3650 | F34: 125 | H34: 3775
B35: 21 | C35: 2018-09-19 | D35: 92 | F35: 3775 | G35: 1000 | H35: 2775
B36: 22 | H36: 0
B37: 23 | H37: 0
B38: 24 | H38: 0
B39: 25 | H39: 0
B40: 26 | H40: 0
B41: 27 | H41: 0
B42: 28 | H42: 0
B43: 29 | H43: 0
B44: 30 | H44: 0
B45: الاجمالي | E45: =SUM(E15:E44) -> 21675 | G45: =SUM(G15:G44) -> 18900
B47: بايو كيميكال ايجيبت للمطهرات و اضافات الاعلاف . | E47: Bio chemical Egypt for antiseptic & feed additives .
B48: المصنع : دست الاشراف - كوم حماده – البحيرة . | E48: address : dest el ashraf – kom Hamada – al behara
B49: موبايل : 01009958821 – 01099548642 | E49: mob : +2001009958821 - +2001099548642

Sheet هاني صقر
B3: شركة بايوكيميكال ايجيبت | E3: Bio chemical egypt
G6: كود العميل
D7: حساب عميل | G7: 34
B9: اسم العميل | C9: =IFERROR(VLOOKUP(G7,'[1]البيانات '!$A$3:$B$102,2,0),"") -> د.هاني صقر | E9: تليفون | G9: =IFERROR(VLOOKUP(G7,'البيانات '!A3:C78,3,0),"") -> 1021758129
B10: اسم المنشاة | E10: مدير مسئول
B11: العنوان | C11: =IFERROR(VLOOKUP(G7,'البيانات '!A3:D78,4,0),"") -> اشمون | E11: مندوب مبيعات | G11: =IFERROR(VLOOKUP(G7,'[1]البيانات '!$A$3:$E$102,5,0),"") -> محمد عبدالشفيع
B14: م | C14: التاريخ | D14: رقم الفاتورة | E14: قيمة الفاتورة | F14: رصيد سابق | G14: المدفوع | H14: رصيد متبقي | I14: ملاحظات
B15: 1 | C15: 2018-03-19 | D15: 5.339 | E15: 370 | G15: 220 | H15: =E15+F15-G15 -> 150
B16: 2 | C16: 2018-03-29 | D16: 5154 | E16: 370 | F16: 150 | G16: 150 | H16: =E16+F16-G16 -> 370
B17: 3 | C17: 2018-04-12 | D17: 5162 | F17: 370 | G17: 120 | H17: 250
B18: 4 | C18: 2018-04-26 | D18: 5190 | F18: 250 | G18: 250 | H18: 0
B19: 5 | C19: 2018-08-13 | D19: 58 | E19: 760 | G19: 760 | H19: 0
B20: 6 | H20: 0
B21: 7 | H21: 0
B22: 8 | H22: 0
B23: 9 | H23: 0
B24: 10 | H24: 0
B25: 11 | H25: 0
B26: 12 | H26: 0
B27: 13 | H27: 0
B28: 14 | H28: 0
B29: 15 | H29: 0
B30: 16 | H30: 0
B31: 17 | H31: 0
B32: 18 | H32: 0
B33: 19 | H33: 0
B34: 20 | H34: 0
B35: 21 | H35: 0
B36: 22 | H36: 0
B37: 23 | H37: 0
B38: 24 | H38: 0
B39: 25 | H39: 0
B40: 26 | H40: 0
B41: 27 | H41: 0
B42: 28 | H42: 0
B43: 29 | H43: 0
B44: 30 | H44: 0
B45: الاجمالي | E45: =SUM(E15:E44) -> 1500 | G45: =SUM(G15:G44) -> 1500
B47: بايو كيميكال ايجيبت للمطهرات و اضافات الاعلاف . | E47: Bio chemical Egypt for antiseptic & feed additives .
B48: المصنع : دست الاشراف - كوم حماده – البحيرة . | E48: address : dest el ashraf – kom Hamada – al behara
B49: موبايل : 01009958821 – 01099548642 | E49: mob : +2001009958821 - +2001099548642

Sheet د.هاشم ماضي
B3: شركة بايوكيميكال ايجيبت | E3: Bio chemical egypt
G6: كود العميل
D7: حساب عميل | G7: 37
B9: اسم العميل | C9: =IFERROR(VLOOKUP(G7,'[1]البيانات '!$A$3:$B$102,2,0),"") -> د.هاشم ماضي | E9: تليفون | G9: =IFERROR(VLOOKUP(G7,'البيانات '!A3:C78,3,0),"") -> 100814340
B10: اسم المنشاة | E10: مدير مسئول
B11: العنوان | C11: =IFERROR(VLOOKUP(G7,'البيانات '!A3:D78,4,0),"") -> ابو حمص - الزراعي مباشرة - منزلة الكوبري | E11: مندوب مبيعات | G11: =IFERROR(VLOOKUP(G7,'[1]البيانات '!$A$3:$E$102,5,0),"") -> محمد عبدالشفيع
B14: م | C14: التاريخ | D14: رقم الفاتورة | E14: قيمة الفاتورة | F14: رصيد سابق | G14: المدفوع | H14: رصيد متبقي | I14: ملاحظات
B15: 1 | C15: 2018-03-20 | D15: 5136 | E15: 1920 | G15: 500 | H15: =E15+F15-G15 -> 1420
B16: 2 | C16: 2018-04-19 | D16: 5177 | F16: 1420 | G16: 400 | H16: =E16+F16-G16 -> 1020
B17: 3 | C17: 2018-09-02 | D17: 61 | E17: -890 | F17: 1020 | G17: 130 | H17: 0
B18: 4 | H18: 0
B19: 5 | H19: 0
B20: 6 | H20: 0
B21: 7 | H21: 0
B22: 8 | H22: 0
B23: 9 | H23: 0
B24: 10 | H24: 0
B25: 11 | H25: 0
B26: 12 | H26: 0
B27: 13 | H27: 0
B28: 14 | H28: 0
B29: 15 | H29: 0
B30: 16 | H30: 0
B31: 17 | H31: 0
B32: 18 | H32: 0
B33: 19 | H33: 0
B34: 20 | H34: 0
B35: 21 | H35: 0
B36: 22 | H36: 0
B37: 23 | H37: 0
B38: 24 | H38: 0
B39: 25 | H39: 0
B40: 26 | H40: 0
B41: 27 | H41: 0
B42: 28 | H42: 0
B43: 29 | H43: 0
B44: 30 | H44: 0
B45: الاجمالي | E45: =SUM(E15:E44) -> 1030 | G45: =SUM(G15:G44) -> 1030
B47: بايو كيميكال ايجيبت للمطهرات و اضافات الاعلاف . | E47: Bio chemical Egypt for antiseptic & feed additives .
B48: المصنع : دست الاشراف - كوم حماده – البحيرة . | E48: address : dest el ashraf – kom Hamada – al behara
B49: موبايل : 01009958821 – 01099548642 | E49: mob : +2001009958821 - +2001099548642

Sheet ربيع الوريني
B3: شركة بايوكيميكال ايجيبت | E3: Bio chemical egypt
G6: كود العميل
D7: حساب عميل | G7: 38
B9: اسم العميل | C9: =IFERROR(VLOOKUP(G7,'[1]البيانات '!$A$3:$B$102,2,0),"") -> ربيع الورديني | E9: تليفون | G9: =IFERROR(VLOOKUP(G7,'البيانات '!A3:C78,3,0),"") -> 0
B10: اسم المنشاة | E10: مدير مسئول
B11: العنوان | C11: =IFERROR(VLOOKUP(G7,'البيانات '!A3:D78,4,0),"") -> ايتاي البارود | E11: مندوب مبيعات | G11: =IFERROR(VLOOKUP(G7,'[1]البيانات '!$A$3:$E$102,5,0),"") -> محمد عبدالشفيع
B14: م | C14: التاريخ | D14: رقم الفاتورة | E14: قيمة الفاتورة | F14: رصيد سابق | G14: المدفوع | H14: رصيد متبقي | I14: ملاحظات
B15: 1 | C15: 2018-03-27 | D15: 5150 | E15: 3625 | G15: 2000 | H15: =E15+F15-G15 -> 1625
B16: 2 | C16: 2018-04-15 | D16: 5168 | F16: 1625 | G16: 1000 | H16: =E16+F16-G16 -> 625
B17: 3 | C17: 2018-04-24 | D17: نقدي | F17: 1625 | G17: 630 | H17: 995
B18: 4 | C18: 2018-04-15 | D18: نقدي | F18: 995 | G18: 1000 | H18: -5
B19: 5 | C19: 2018-04-26 | D19: 5224 | E19: 1050 | F19: 5 | H19: 1055
B20: 6 | C20: 2018-05-13 | D20: 5412 | F20: 1045 | G20: 500 | H20: 545
B21: 7 | C21: 2018-07-08 | D21: 1036 | F21: 545 | G21: 500 | H21: 45
B22: 8 | C22: 2018-07-11 | D22: 5485 | E22: 2400 | F22: 45 | H22: 2445
B23: 9 | C23: 2018-07-11 | D23: نقدي | F23: 2445 | G23: 1000 | H23: 1445
B24: 10 | C24: 2018-07-22 | D24: 9 | F24: 1445 | G24: 500 | H24: 945
B25: 11 | C25: 2018-09-09 | D25: 77 | F25: 945 | G25: 500 | H25: 445
B26: 12 | H26: 0
B27: 13 | H27: 0
B28: 14 | H28: 0
B29: 15 | H29: 0
B30: 16 | H30: 0
B31: 17 | H31: 0
B32: 18 | H32: 0
B33: 19 | H33: 0
B34: 20 | H34: 0
B35: 21 | H35: 0
B36: 22 | H36: 0
B37: 23 | H37: 0
B38: 24 | H38: 0
B39: 25 | H39: 0
B40: 26 | H40: 0
B41: 27 | H41: 0
B42: 28 | H42: 0
B43: 29 | H43: 0
B44: 30 | H44: 0
B45: الاجمالي | E45: =SUM(E15:E44) -> 7075 | G45: =SUM(G15:G44) -> 7630
B47: بايو كيميكال ايجيبت للمطهرات و اضافات الاعلاف . | E47: Bio chemical Egypt for antiseptic & feed additives .
B48: المصنع : دست الاشراف - كوم حماده – البحيرة . | E48: address : dest el ashraf – kom Hamada – al behara
B49: موبايل : 01009958821 – 01099548642 | E49: mob : +2001009958821 - +2001099548642

Sheet أحمد السيد دسوقي
B3: شركة بايوكيميكال ايجيبت | E3: Bio chemical egypt
G6: كود العميل
D7: حساب عميل | G7: 40
B9: اسم العميل | C9: =IFERROR(VLOOKUP(G7,'[1]البيانات '!$A$3:$B$102,2,0),"") -> م.احمد السيد الدسوقي | E9: تليفون | G9: =IFERROR(VLOOKUP(G7,'البيانات '!A3:C78,3,0),"") -> 0
B10: اسم المنشاة | E10: مدير مسئول
B11: العنوان | C11: =IFERROR(VLOOKUP(G7,'البيانات '!A3:D78,4,0),"") -> كوبري المدير - ابو المطامير | E11: مندوب مبيعات | G11: =IFERROR(VLOOKUP(G7,'[1]البيانات '!$A$3:$E$102,5,0),"") -> محمد عبدالشفيع
B14: م | C14: التاريخ | D14: رقم الفاتورة | E14: قيمة الفاتورة | F14: رصيد سابق | G14: المدفوع | H14: رصيد متبقي | I14: ملاحظات
B15: 1 | C15: 2018-04-11 | D15: 5209 | E15: 2100 | G15: 1100 | H15: =E15+F15-G15 -> 1000
B16: 2 | C16: 2018-05-01 | D16: 5796 | F16: 1000 | G16: 1000 | H16: =E16+F16-G16 -> 0
B17: 3 | C17: 2018-05-02 | D17: 5226 | E17: 6300 | H17: 6300
B18: 4 | C18: 2018-05-09 | D18: 5230 | E18: 4200 | F18: 6300 | H18: 10500
B19: 5 | C19: 2018-05-29 | D19: 5432 | E19: 500 | F19: 10500 | G19: 5000 | H19: 6000
B20: 6 | C20: 2018-06-13 | D20: 1006 | F20: 6000 | G20: 6000 | H20: 0
B21: 7 | H21: 0
B22: 8 | H22: 0
B23: 9 | H23: 0
B24: 10 | H24: 0
B25: 11 | H25: 0
B26: 12 | H26: 0
B27: 13 | H27: 0
B28: 14 | H28: 0
B29: 15 | H29: 0
B30: 16 | H30: 0
B31: 17 | H31: 0
B32: 18 | H32: 0
B33: 19 | H33: 0
B34: 20 | H34: 0
B35: 21 | H35: 0
B36: 22 | H36: 0
B37: 23 | H37: 0
B38: 24 | H38: 0
B39: 25 | H39: 0
B40: 26 | H40: 0
B41: 27 | H41: 0
B42: 28 | H42: 0
B43: 29 | H43: 0
B44: 30 | H44: 0
B45: الاجمالي | E45: =SUM(E15:E44) -> 13100 | G45: =SUM(G15:G44) -> 13100
B47: بايو كيميكال ايجيبت للمطهرات و اضافات الاعلاف . | E47: Bio chemical Egypt for antiseptic & feed additives .
B48: المصنع : دست الاشراف - كوم حماده – البحيرة . | E48: address : dest el ashraf – kom Hamada – al behara
B49: موبايل : 01009958821 – 01099548642 | E49: mob : +2001009958821 - +2001099548642

Sheet ش- الشحات عيد مصطفي
B3: شركة بايوكيميكال ايجيبت | E3: Bio chemical egypt
G6: كود العميل
D7: حساب عميل | G7: 67
B9: اسم العميل | C9: =IFERROR(VLOOKUP(G7,'[1]البيانات '!$A$3:$B$102,2,0),"") -> الشيخ -الشحات عيد مصطفي | E9: تليفون | G9: =IFERROR(VLOOKUP(G7,'البيانات '!A3:C78,3,0),"") -> 0
B10: اسم المنشاة | E10: مدير مسئول
B11: العنوان | C11: =IFERROR(VLOOKUP(G7,'البيانات '!A3:D78,4,0),"") -> ايتاي البارود | E11: مندوب مبيعات | G11: =IFERROR(VLOOKUP(G7,'[1]البيانات '!$A$3:$E$102,5,0),"") -> محمد عبدالشفيع
B14: م | C14: التاريخ | D14: رقم الفاتورة | E14: قيمة الفاتورة | F14: رصيد سابق | G14: المدفوع | H14: رصيد متبقي | I14: ملاحظات
B15: 1 | D15: طرف الاستاذ فتحي مقلد
B16: 2 | C16: 2018-10-14 | D16: 1358 | E16: 1750 | F16: 0 | G16: 0 | H16: =E16+F16-G16 -> 1750
B17: 3 | H17: 0
B18: 4 | H18: 0
B19: 5 | H19: 0
B20: 6 | H20: 0
B21: 7 | H21: 0
B22: 8 | H22: 0
B23: 9 | H23: 0
B24: 10 | H24: 0
B25: 11 | H25: 0
B26: 12 | H26: 0
B27: 13 | H27: 0
B28: 14 | H28: 0
B29: 15 | H29: 0
B30: 16 | H30: 0
B31: 17 | H31: 0
B32: 18 | H32: 0
B33: 19 | H33: 0
B34: 20 | H34: 0
B35: 21 | H35: 0
B36: 22 | H36: 0
B37: 23 | H37: 0
B38: 24 | H38: 0
B39: 25 | H39: 0
B40: 26 | H40: 0
B41: 27 | H41: 0
B42: 28 | H42: 0
B43: 29 | H43: 0
B44: 30 | H44: 0
B45: الاجمالي | E45: =SUM(E15:E44) -> 1750 | G45: =SUM(G15:G44) -> 0
B47: بايو كيميكال ايجيبت للمطهرات و اضافات الاعلاف . | E47: Bio chemical Egypt for antiseptic & feed additives .
B48: المصنع : دست الاشراف - كوم حماده – البحيرة . | E48: address : dest el ashraf – kom Hamada – al behara
B49: موبايل : 01009958821 – 01099548642 | E49: mob : +2001009958821 - +2001099548642

Sheet أحمد سلامه
B3: شركة بايوكيميكال ايجيبت | E3: Bio chemical egypt
G6: كود العميل
D7: حساب عميل | G7: 50
B9: اسم العميل | C9: =IFERROR(VLOOKUP(G7,'[1]البيانات '!$A$3:$B$102,2,0),"") -> احمد سلامه | E9: تليفون | G9: =IFERROR(VLOOKUP(G7,'البيانات '!A3:C78,3,0),"") -> 0
B10: اسم المنشاة | E10: مدير مسئول
B11: العنوان | C11: =IFERROR(VLOOKUP(G7,'البيانات '!A3:D78,4,0),"") -> العشرة مدرسة | E11: مندوب مبيعات | G11: =IFERROR(VLOOKUP(G7,'[1]البيانات '!$A$3:$E$102,5,0),"") -> محمد عبدالشفيع
B14: م | C14: التاريخ | D14: رقم الفاتورة | E14: قيمة الفاتورة | F14: رصيد سابق | G14: المدفوع | H14: رصيد متبقي | I14: ملاحظات
B15: 1 | C15: 2018-04-29 | D15: رصيد حتي هذا التاريخ | H15: 3175
B16: 2 | C16: 2018-05-15 | D16: 5415 | F16: 3175 | G16: 500 | H16: =E16+F16-G16 -> 2675
B17: 3 | C17: 2018-05-29 | D17: 5431 | F17: 2675 | G17: 500 | H17: 2175
B18: 4 | C18: 2018-06-13 | D18: 1005 | F18: 2175 | G18: 500 | H18: 1675
B19: 5 | C19: 2018-07-08 | D19: 5491 | E19: 6555 | F19: 1675 | G19: 0 | H19: 8230
B20: 6 | C20: 2018-07-08 | D20: نقدي | F20: 8230 | G20: 1000 | H20: 7230
B21: 7 | C21: 2018-07-17 | D21: 1050 | F21: 7230 | G21: 2000 | H21: 5230
B22: 8 | C22: 2018-07-31 | D22: 19 | F22: 5230 | G22: 1000 | H22: 4230
B23: 9 | C23: 2018-08-01 | D23: 3 | E23: 3925 | F23: 4230 | G23: 0 | H23: 8155
B24: 10 | C24: 2018-09-04 | D24: 64 | F24: 8155 | G24: 1000 | H24: 7155
B25: 11 | C25: 2018-09-11 | D25: 79 | F25: 7155 | G25: 1000 | H25: 6155
B26: 12 | C26: 2018-09-13 | D26: 81 | F26: 6155 | G26: 1000 | H26: 5155
B27: 13 | C27: 2018-09-16 | D27: 36 | E27: 5550 | F27: 5155 | G27: 0 | H27: 10705
B28: 14 | H28: 0
B29: 15 | H29: 0
B30: 16 | H30: 0
B31: 17 | H31: 0
B32: 18 | H32: 0
B33: 19 | H33: 0
B34: 20 | H34: 0
B35: 21 | H35: 0
B36: 22 | H36: 0
B37: 23 | H37: 0
B38: 24 | H38: 0
B39: 25 | H39: 0
B40: 26 | H40: 0
B41: 27 | H41: 0
B42: 28 | H42: 0
B43: 29 | H43: 0
B44: 30 | H44: 0
B45: الاجمالي | E45: =SUM(E15:E44) -> 16030 | G45: =SUM(G15:G44) -> 8500
B47: بايو كيميكال ايجيبت للمطهرات و اضافات الاعلاف . | E47: Bio chemical Egypt for antiseptic & feed additives .
B48: المصنع : دست الاشراف - كوم حماده – البحيرة . | E48: address : dest el ashraf – kom Hamada – al behara
B49: موبايل : 01009958821 – 01099548642 | E49: mob : +2001009958821 - +2001099548642

Sheet أحمد داود
B3: شركة بايوكيميكال ايجيبت | E3: Bio chemical egypt
G6: كود العميل
D7: حساب عميل | G7: 51
B9: اسم العميل | C9: =IFERROR(VLOOKUP(G7,'[1]البيانات '!$A$3:$B$102,2,0),"") -> احمد داود | E9: تليفون | G9: =IFERROR(VLOOKUP(G7,'البيانات '!A3:C78,3,0),"") -> 0
B10: اسم المنشاة | E10: مدير مسئول
B11: العنوان | C11: =IFERROR(VLOOKUP(G7,'البيانات '!A3:D78,4,0),"") -> شبراخيت - مستناد | E11: مندوب مبيعات | G11: =IFERROR(VLOOKUP(G7,'[1]البيانات '!$A$3:$E$102,5,0),"") -> محمد عبدالشفيع
B14: م | C14: التاريخ | D14: رقم الفاتورة | E14: قيمة الفاتورة | F14: رصيد سابق | G14: المدفوع | H14: رصيد متبقي | I14: ملاحظات
B15: 1 | C15: 2018-04-29 | D15: رصيد حتي هذا التاريخ | H15: 3110
B16: 2 | C16: 2018-05-20 | D16: 5422 | E16: 0 | F16: 3110 | G16: 1000 | H16: =E16+F16-G16 -> 2110
B17: 3 | C17: 2018-06-07 | D17: 5447 | E17: 0 | F17: 2110 | G17: 1000 | H17: 1110
B18: 4 | C18: 2018-06-09 | D18: 5459 | E18: 3275 | F18: 1110 | G18: 0 | H18: 4385
B19: 5 | C19: 2018-06-20 | D19: 5466 | E19: 1710 | F19: 4385 | G19: 1000 | H19: 5095 | I19: مع السائق
B20: 6 | C20: 2018-06-24 | D20: 1013 | E20: 0 | F20: 5095 | G20: 1000 | H20: 4095
B21: 7 | C21: 2018-07-01 | D21: 1025 | E21: 0 | F21: 4095 | G21: 1000 | H21: 3095
B22: 8 | C22: 2018-07-30 | D22: 16 | E22: 0 | F22: 3095 | G22: 1000 | H22: 2095
B23: 9 | C23: 2018-08-12 | D23: 37 | E23: 0 | F23: 2095 | G23: 1000 | H23: 1095
B24: 10 | C24: 2018-08-14 | D24: 11 | E24: 5025 | F24: 1095 | G24: 0 | H24: 6120
B25: 11 | C25: 2018-09-02 | D25: 61 | E25: 0 | F25: 6120 | G25: 2000 | H25: 4120
B26: 12
B27: 13 | D27: طرف الاستاذ فتحي مقلد
B28: 14 | C28: 2018-10-04 | D28: 1361 | E28: 6640 | F28: 4120 | G28: 0 | H28: 10760
B29: 15 | H29: 0
B30: 16 | H30: 0
B31: 17 | H31: 0
B32: 18 | H32: 0
B33: 19 | H33: 0
B34: 20 | H34: 0
B35: 21 | H35: 0
B36: 22 | H36: 0
B37: 23 | H37: 0
B38: 24 | H38: 0
B39: 25 | H39: 0
B40: 26 | H40: 0
B41: 27 | H41: 0
B42: 28 | H42: 0
B43: 29 | H43: 0
B44: 30 | H44: 0
B45: الاجمالي | E45: =SUM(E15:E44) -> 16650 | G45: =SUM(G15:G44) -> 9000
B47: بايو كيميكال ايجيبت للمطهرات و اضافات الاعلاف . | E47: Bio chemical Egypt for antiseptic & feed additives .
B48: المصنع : دست الاشراف - كوم حماده – البحيرة . | E48: address : dest el ashraf – kom Hamada – al behara
B49: موبايل : 01009958821 – 01099548642 | E49: mob : +2001009958821 - +2001099548642

Sheet حمدي عبد الصانع
B3: شركة بايوكيميكال ايجيبت | E3: Bio chemical egypt
G6: كود العميل
D7: حساب عميل | G7: 52
B9: اسم العميل | C9: =IFERROR(VLOOKUP(G7,'[1]البيانات '!$A$3:$B$102,2,0),"") -> ا.حمدي عبد الصانع | E9: تليفون | G9: =IFERROR(VLOOKUP(G7,'البيانات '!A3:C78,3,0),"") -> 0
B10: اسم المنشاة | E10: مدير مسئول
B11: العنوان | C11: =IFERROR(VLOOKUP(G7,'البيانات '!A3:D78,4,0),"") -> ايتاي البارود | E11: مندوب مبيعات | G11: =IFERROR(VLOOKUP(G7,'[1]البيانات '!$A$3:$E$102,5,0),"") -> محمد عبدالشفيع
B14: م | C14: التاريخ | D14: رقم الفاتورة | E14: قيمة الفاتورة | F14: رصيد سابق | G14: المدفوع | H14: رصيد متبقي | I14: ملاحظات
B15: 1 | C15: 2018-04-29 | D15: رصيد حتي هذا التاريخ | H15: 2935
B16: 2 | C16: 2018-04-29 | D16: 5195 | E16: 0 | F16: 2935 | G16: 500 | H16: =E16+F16-G16 -> 2435
B17: 3 | C17: 2018-05-13 | D17: 5411 | E17: 0 | F17: 2435 | G17: 1000 | H17: 1435
B18: 4 | C18: 2018-06-03 | D18: 5442 | E18: 0 | F18: 1435 | G18: 500 | H18: 935
B19: 5 | C19: 2018-06-24 | D19: 1016 | E19: 0 | F19: 935 | G19: 500 | H19: 435
B20: 6 | C20: 2018-07-29 | D20: 15 | E20: 0 | F20: 435 | G20: 400 | H20: 35
B21: 7 | C21: 2018-08-29 | D21: 19 | E21: 6370 | F21: 35 | G21: 0 | H21: 6405
B22: 8 | H22: 0
B23: 9 | H23: 0
B24: 10 | H24: 0
B25: 11 | H25: 0
B26: 12 | H26: 0
B27: 13 | H27: 0
B28: 14 | H28: 0
B29: 15 | H29: 0
B30: 16 | H30: 0
B31: 17 | H31: 0
B32: 18 | H32: 0
B33: 19 | H33: 0
B34: 20 | H34: 0
B35: 21 | H35: 0
B36: 22 | H36: 0
B37: 23 | H37: 0
B38: 24 | H38: 0
B39: 25 | H39: 0
B40: 26 | H40: 0
B41: 27 | H41: 0
B42: 28 | H42: 0
B43: 29 | H43: 0
B44: 30 | H44: 0
B45: الاجمالي | E45: =SUM(E15:E44) -> 6370 | G45: =SUM(G15:G44) -> 2900
B47: بايو كيميكال ايجيبت للمطهرات و اضافات الاعلاف . | E47: Bio chemical Egypt for antiseptic & feed additives .
B48: المصنع : دست الاشراف - كوم حماده – البحيرة . | E48: address : dest el ashraf – kom Hamada – al behara
B49: موبايل : 01009958821 – 01099548642 | E49: mob : +2001009958821 - +2001099548642

Sheet السيد مسلم
B3: شركة بايوكيميكال ايجيبت | E3: Bio chemical egypt
G6: كود العميل
D7: حساب عميل | G7: 53
B9: اسم العميل | C9: =IFERROR(VLOOKUP(G7,'[1]البيانات '!$A$3:$B$102,2,0),"") -> السيد مسلم | E9: تليفون | G9: =IFERROR(VLOOKUP(G7,'البيانات '!A3:C78,3,0),"") -> 0
B10: اسم المنشاة | E10: مدير مسئول
B11: العنوان | C11: =IFERROR(VLOOKUP(G7,'البيانات '!A3:D78,4,0),"") -> العشرة الاف - ابو المطامير | E11: مندوب مبيعات | G11: =IFERROR(VLOOKUP(G7,'[1]البيانات '!$A$3:$E$102,5,0),"") -> محمد عبدالشفيع
B14: م | C14: التاريخ | D14: رقم الفاتورة | E14: قيمة الفاتورة | F14: رصيد سابق | G14: المدفوع | H14: رصيد متبقي | I14: ملاحظات
B15: 1 | C15: 2018-05-09 | D15: 5231 | E15: 4500 | F15: 0 | H15: =E15+F15-G15 -> 4500
B16: 2 | C16: 2018-06-02 | D16: 5439 | E16: 0 | F16: 4500 | G16: 1950 | H16: =E16+F16-G16 -> 2550
B17: 3 | C17: 2018-06-13 | D17: 1004 | E17: 0 | F17: 2550 | G17: 2550 | H17: 0
B18: 4 | C18: 2018-06-27 | D18: 5474 | E18: 6300 | F18: 0 | G18: 2000 | H18: 4300 | I18: مع السائق
B19: 5 | C19: 2018-08-02 | D19: 23 | E19: 0 | F19: 4300 | G19: 1000 | H19: 3300
B20: 6 | C20: 2018-08-14 | D20: 40 | E20: 0 | F20: 3300 | G20: 1500 | H20: 1800
B21: 7 | C21: 2018-08-29 | D21: 21 | E21: 4350 | F21: 1800 | G21: 0 | H21: 6150
B22: 8 | C22: 2018-09-04 | D22: 65 | E22: 0 | F22: 6150 | G22: 1500 | H22: 4650
B23: 9 | C23: 2018-09-13 | D23: 82 | E23: 0 | F23: 4650 | G23: 1000 | H23: 3650
B24: 10 | C24: 2018-09-16 | D24: 35 | E24: 6150 | F24: 3650 | G24: 0 | H24: 9800
B25: 11 | C25: 2018-09-18 | D25: 91 | E25: 0 | F25: 9800 | G25: 2000 | H25: 7800
B26: 12 | H26: 0
B27: 13 | H27: 0
B28: 14 | H28: 0
B29: 15 | H29: 0
B30: 16 | H30: 0
B31: 17 | H31: 0
B32: 18 | H32: 0
B33: 19 | H33: 0
B34: 20 | H34: 0
B35: 21 | H35: 0
B36: 22 | H36: 0
B37: 23 | H37: 0
B38: 24 | H38: 0
B39: 25 | H39: 0
B40: 26 | H40: 0
B41: 27 | H41: 0
B42: 28 | H42: 0
B43: 29 | H43: 0
B44: 30 | H44: 0
B45: الاجمالي | E45: =SUM(E15:E44) -> 21300 | G45: =SUM(G15:G44) -> 13500
B47: بايو كيميكال ايجيبت للمطهرات و اضافات الاعلاف . | E47: Bio chemical Egypt for antiseptic & feed additives .
B48: المصنع : دست الاشراف - كوم حماده – البحيرة . | E48: address : dest el ashraf – kom Hamada – al behara
B49: موبايل : 01009958821 – 01099548642 | E49: mob : +2001009958821 - +2001099548642

Sheet رفعت الحوفي
B3: شركة بايوكيميكال ايجيبت | E3: Bio chemical egypt
G6: كود العميل
D7: حساب عميل | G7: 54
B9: اسم العميل | C9: =IFERROR(VLOOKUP(G7,'[1]البيانات '!$A$3:$B$102,2,0),"") -> رفعت الحوفي | E9: تليفون | G9: =IFERROR(VLOOKUP(G7,'البيانات '!A3:C78,3,0),"") -> 0
B10: اسم المنشاة | E10: مدير مسئول
B11: العنوان | C11: =IFERROR(VLOOKUP(G7,'البيانات '!A3:D78,4,0),"") -> كوم امبو - ابو المطامير - القرية الرئيسيه | E11: مندوب مبيعات | G11: =IFERROR(VLOOKUP(G7,'[1]البيانات '!$A$3:$E$102,5,0),"") -> محمد عبدالشفيع
B14: م | C14: التاريخ | D14: رقم الفاتورة | E14: قيمة الفاتورة | F14: رصيد سابق | G14: المدفوع | H14: رصيد متبقي | I14: ملاحظات
B15: 1 | C15: 2018-08-01 | D15: 4 | E15: 5650 | F15: 0 | G15: 0 | H15: =E15+F15-G15 -> 5650
B16: 2 | C16: 2018-08-07 | D16: 28 | E16: 0 | F16: 5650 | G16: 500 | H16: =E16+F16-G16 -> 5150
B17: 3 | C17: 2018-08-28 | D17: 57 | E17: 0 | F17: 5150 | G17: 500 | H17: 4650
B18: 4 | C18: 2018-09-04 | D18: 63 | E18: 0 | F18: 4650 | G18: 500 | H18: 4150
B19: 5 | C19: 2018-09-01 | D19: 78 | E19: 0 | F19: 4150 | G19: 1000 | H19: 3150
B20: 6 | C20: 2018-09-18 | D20: 90 | E20: 0 | F20: 3150 | G20: 1000 | H20: 2150
B21: 7 | H21: 0
B22: 8 | H22: 0
B23: 9 | H23: 0
B24: 10 | H24: 0
B25: 11 | H25: 0
B26: 12 | H26: 0
B27: 13 | H27: 0
B28: 14 | H28: 0
B29: 15 | H29: 0
B30: 16 | H30: 0
B31: 17 | H31: 0
B32: 18 | H32: 0
B33: 19 | H33: 0
B34: 20 | H34: 0
B35: 21 | H35: 0
B36: 22 | H36: 0
B37: 23 | H37: 0
B38: 24 | H38: 0
B39: 25 | H39: 0
B40: 26 | H40: 0
B41: 27 | H41: 0
B42: 28 | H42: 0
B43: 29 | H43: 0
B44: 30 | H44: 0
B45: الاجمالي | E45: =SUM(E15:E44) -> 5650 | G45: =SUM(G15:G44) -> 3500
B47: بايو كيميكال ايجيبت للمطهرات و اضافات الاعلاف . | E47: Bio chemical Egypt for antiseptic & feed additives .
B48: المصنع : دست الاشراف - كوم حماده – البحيرة . | E48: address : dest el ashraf – kom Hamada – al behara
B49: موبايل : 01009958821 – 01099548642 | E49: mob : +2001009958821 - +2001099548642

Sheet مصطفي الفخراني
B3: شركة بايوكيميكال ايجيبت | E3: Bio chemical egypt
G6: كود العميل
D7: حساب عميل | G7: 55
B9: اسم العميل | C9: =IFERROR(VLOOKUP(G7,'[1]البيانات '!$A$3:$B$102,2,0),"") -> مصطفي الفخراني | E9: تليفون | G9: =IFERROR(VLOOKUP(G7,'البيانات '!A3:C78,3,0),"") -> 0
B10: اسم المنشاة | E10: مدير مسئول
B11: العنوان | C11: =IFERROR(VLOOKUP(G7,'البيانات '!A3:D78,4,0),"") -> مركز بدر | E11: مندوب مبيعات | G11: =IFERROR(VLOOKUP(G7,'[1]البيانات '!$A$3:$E$102,5,0),"") -> محمد عبدالشفيع
B14: م | C14: التاريخ | D14: رقم الفاتورة | E14: قيمة الفاتورة | F14: رصيد سابق | G14: المدفوع | H14: رصيد متبقي | I14: ملاحظات
B15: 1 | C15: 2018-06-04 | D15: 5443 | E15: 1500 | F15: 2695 | G15: 500 | H15: =E15+F15-G15 -> 3695
B16: 2 | C16: 2018-07-09 | D16: 1040 | E16: 0 | F16: 3695 | G16: 500 | H16: =E16+F16-G16 -> 3195
B17: 3 | C17: 2018-07-30 | D17: 18 | E17: 0 | F17: 3195 | G17: 500 | H17: 2695
B18: 4 | C18: 2018-08-13 | D18: 38 | E18: 0 | F18: 2695 | G18: 500 | H18: 2195
B19: 5 | C19: 2018-09-15 | D19: 88 | E19: 0 | F19: 2195 | G19: 500 | H19: 1695
B20: 6 | C20: 2018-09-26 | D20: 45 | E20: 6250 | F20: 1695 | G20: 0 | H20: 7945
B21: 7 | H21: 0
B22: 8 | H22: 0
B23: 9 | H23: 0
B24: 10 | H24: 0
B25: 11 | H25: 0
B26: 12 | H26: 0
B27: 13 | H27: 0
B28: 14 | H28: 0
B29: 15 | H29: 0
B30: 16 | H30: 0
B31: 17 | H31: 0
B32: 18 | H32: 0
B33: 19 | H33: 0
B34: 20 | H34: 0
B35: 21 | H35: 0
B36: 22 | H36: 0
B37: 23 | H37: 0
B38: 24 | H38: 0
B39: 25 | H39: 0
B40: 26 | H40: 0
B41: 27 | H41: 0
B42: 28 | H42: 0
B43: 29 | H43: 0
B44: 30 | H44: 0
B45: الاجمالي | E45: =SUM(E15:E44) -> 7750 | G45: =SUM(G15:G44) -> 2500
B47: بايو كيميكال ايجيبت للمطهرات و اضافات الاعلاف . | E47: Bio chemical Egypt for antiseptic & feed additives .
B48: المصنع : دست الاشراف - كوم حماده – البحيرة . | E48: address : dest el ashraf – kom Hamada – al behara
B49: موبايل : 01009958821 – 01099548642 | E49: mob : +2001009958821 - +2001099548642

Sheet د.وليد شعت
B3: شركة بايوكيميكال ايجيبت | E3: Bio chemical egypt
G6: كود العميل
D7: حساب عميل | G7: 56
B9: اسم العميل | C9: =IFERROR(VLOOKUP(G7,'[1]البيانات '!$A$3:$B$102,2,0),"") -> د.وليد شعت | E9: تليفون | G9: =IFERROR(VLOOKUP(G7,'البيانات '!A3:C78,3,0),"") -> 0
B10: اسم المنشاة | E10: مدير مسئول
B11: العنوان | C11: =IFERROR(VLOOKUP(G7,'البيانات '!A3:D78,4,0),"") -> كوم حمادة | E11: مندوب مبيعات | G11: =IFERROR(VLOOKUP(G7,'[1]البيانات '!$A$3:$E$102,5,0),"") -> محمد عبدالشفيع
B14: م | C14: التاريخ | D14: رقم الفاتورة | E14: قيمة الفاتورة | F14: رصيد سابق | G14: المدفوع | H14: رصيد متبقي | I14: ملاحظات
B15: 1 | C15: 2018-06-05 | D15: 5451 | E15: 1400 | F15: 0 | G15: 0 | H15: =E15+F15-G15 -> 1400
B16: 2 | C16: 2018-07-03 | D16: 1026 | E16: 0 | F16: 1400 | G16: 1000 | H16: =E16+F16-G16 -> 400
B17: 3 | C17: 2018-10-13 | D17: 1364 | E17: 2300 | F17: 400 | H17: 2700
B18: 4 | C18: 2018-10-13 | D18: نقدي | E18: 0 | F18: 2700 | G18: 2300 | H18: 400
B19: 5 | H19: 0
B20: 6 | H20: 0
B21: 7 | H21: 0
B22: 8 | H22: 0
B23: 9 | H23: 0
B24: 10 | H24: 0
B25: 11 | H25: 0
B26: 12 | H26: 0
B27: 13 | H27: 0
B28: 14 | H28: 0
B29: 15 | H29: 0
B30: 16 | H30: 0
B31: 17 | H31: 0
B32: 18 | H32: 0
B33: 19 | H33: 0
B34: 20 | H34: 0
B35: 21 | H35: 0
B36: 22 | H36: 0
B37: 23 | H37: 0
B38: 24 | H38: 0
B39: 25 | H39: 0
B40: 26 | H40: 0
B41: 27 | H41: 0
B42: 28 | H42: 0
B43: 29 | H43: 0
B44: 30 | H44: 0
B45: الاجمالي | E45: =SUM(E15:E44) -> 3700 | G45: =SUM(G15:G44) -> 3300
B47: بايو كيميكال ايجيبت للمطهرات و اضافات الاعلاف . | E47: Bio chemical Egypt for antiseptic & feed additives .
B48: المصنع : دست الاشراف - كوم حماده – البحيرة . | E48: address : dest el ashraf – kom Hamada – al behara
B49: موبايل : 01009958821 – 01099548642 | E49: mob : +2001009958821 - +2001099548642

Sheet د.محمد سعيد دياب
B3: شركة بايوكيميكال ايجيبت | E3: Bio chemical egypt
G6: كود العميل
D7: حساب عميل | G7: 57
B9: اسم العميل | C9: =IFERROR(VLOOKUP(G7,'[1]البيانات '!$A$3:$B$102,2,0),"") -> د.محمد سعيد دياب | E9: تليفون | G9: =IFERROR(VLOOKUP(G7,'البيانات '!A3:C78,3,0),"") -> 0
B10: اسم المنشاة | E10: مدير مسئول
B11: العنوان | C11: =IFERROR(VLOOKUP(G7,'البيانات '!A3:D78,4,0),"") -> كوبري عبد المجيد صالح | E11: مندوب مبيعات | G11: =IFERROR(VLOOKUP(G7,'[1]البيانات '!$A$3:$E$102,5,0),"") -> محمد عبدالشفيع
B14: م | C14: التاريخ | D14: رقم الفاتورة | E14: قيمة الفاتورة | F14: رصيد سابق | G14: المدفوع | H14: رصيد متبقي | I14: ملاحظات
B15: 1 | D15: رصيد اخر | H15: 1975 | I15: فنيك925-فورمالين1050
B16: 2 | C16: 2018-06-13 | D16: 1002 | E16: 0 | F16: 1975 | G16: 1500 | H16: =E16+F16-G16 -> 475
B17: 3 | C17: 2018-07-18 | D17: 5489 | E17: 2615 | F17: 405 | G17: 2000 | H17: =E17+F17-G17 -> 1020 | I17: مع السائق وخصم 70ج
B18: 4 | C18: 2018-07-25 | D18: 11 | E18: 0 | F18: 1020 | G18: 1000 | H18: 20
B19: 5 | C19: 2018-07-31 | D19: 54 | E19: 220 | F19: 20 | G19: 0 | H19: 240
B20: 6 | C20: 2018-08-08 | D20: 9 | E20: 4475 | F20: 240 | G20: 0 | H20: 4715
B21: 7 | C21: 2018-08-14 | D21: 39 | E21: 0 | F21: 4715 | G21: 2000 | H21: 2715
B22: 8 | C22: 2018-08-28 | D22: 56 | E22: 0 | F22: 2715 | G22: 1000 | H22: 1715
B23: 9 | C23: 2018-09-12 | D23: 80 | E23: 0 | F23: 1715 | G23: 1000 | H23: 715
B24: 10 | C24: 2018-09-26 | D24: 46 | E24: 2400 | F24: 715 | G24: 2000 | H24: 1115 | I24: مع السائق
B25: 11 | H25: 0
B26: 12 | H26: 0
B27: 13 | H27: 0
B28: 14 | H28: 0
B29: 15 | H29: 0
B30: 16 | H30: 0
B31: 17 | H31: 0
B32: 18 | H32: 0
B33: 19 | H33: 0
B34: 20 | H34: 0
B35: 21 | H35: 0
B36: 22 | H36: 0
B37: 23 | H37: 0
B38: 24 | H38: 0
B39: 25 | H39: 0
B40: 26 | H40: 0
B41: 27 | H41: 0
B42: 28 | H42: 0
B43: 29 | H43: 0
B44: 30 | H44: 0
B45: الاجمالي | E45: =SUM(E15:E44) -> 9710 | G45: =SUM(G15:G44) -> 10500
B47: بايو كيميكال ايجيبت للمطهرات و اضافات الاعلاف . | E47: Bio chemical Egypt for antiseptic & feed additives .
B48: المصنع : دست الاشراف - كوم حماده – البحيرة . | E48: address : dest el ashraf – kom Hamada – al behara
B49: موبايل : 01009958821 – 01099548642 | E49: mob : +2001009958821 - +2001099548642

Sheet ناصر صلاح
B3: شركة بايوكيميكال ايجيبت | E3: Bio chemical egypt
G6: كود العميل
D7: حساب عميل | G7: 62
B9: اسم العميل | C9: =IFERROR(VLOOKUP(G7,'[1]البيانات '!$A$3:$B$102,2,0),"") -> ناصر صلاح | E9: تليفون | G9: =IFERROR(VLOOKUP(G7,'البيانات '!A3:C78,3,0),"") -> 0
B10: اسم المنشاة | E10: مدير مسئول
B11: العنوان | C11: =IFERROR(VLOOKUP(G7,'البيانات '!A3:D78,4,0),"") -> ابو حمص | E11: مندوب مبيعات | G11: =IFERROR(VLOOKUP(G7,'[1]البيانات '!$A$3:$E$102,5,0),"") -> محمد عبدالشفيع
B14: م | C14: التاريخ | D14: رقم الفاتورة | E14: قيمة الفاتورة | F14: رصيد سابق | G14: المدفوع | H14: رصيد متبقي | I14: ملاحظات
B15: 1 | C15: 2018-08-18 | D15: 16 | E15: 3545 | F15: 0 | G15: 0 | H15: =E15+F15-G15 -> 3545
B16: 2 | C16: 2018-09-03 | D16: 27 | E16: 5000 | F16: 3545 | G16: 3000 | H16: =E16+F16-G16 -> 5545
B17: 3 | C17: 2018-09-09 | D17: 76 | E17: 0 | F17: 5545 | G17: 1000 | H17: =E17+F17-G17 -> 4545
B18: 4 | C18: 2018-09-18 | D18: 38 | E18: 5000 | F18: 4545 | G18: 0 | H18: =E18+F18-G18 -> 9545
B19: 5 | C19: 2018-09-19 | D19: 96 | E19: 0 | F19: 9545 | G19: 2000 | H19: =E19+F19-G19 -> 7545
B20: 6 | C20: 2018-10-13 | D20: 1357 | E20: 6650 | F20: 7545 | G20: 0 | H20: =E20+F20-G20 -> 14195
B21: 7
B22: 8 | H22: 0
B23: 9 | H23: 0
B24: 10 | H24: 0
B25: 11 | H25: 0
B26: 12 | H26: 0
B27: 13 | H27: 0
B28: 14 | H28: 0
B29: 15 | H29: 0
B30: 16 | H30: 0
B31: 17 | H31: 0
B32: 18 | H32: 0
B33: 19 | H33: 0
B34: 20 | H34: 0
B35: 21 | H35: 0
B36: 22 | H36: 0
B37: 23 | H37: 0
B38: 24 | H38: 0
B39: 25 | H39: 0
B40: 26 | H40: 0
B41: 27 | H41: 0
B42: 28 | H42: 0
B43: 29 | H43: 0
B44: 30 | H44: 0
B45: الاجمالي | E45: =SUM(E15:E44) -> 20195 | G45: =SUM(G15:G44) -> 6000
B47: بايو كيميكال ايجيبت للمطهرات و اضافات الاعلاف . | E47: Bio chemical Egypt for antiseptic & feed additives .
B48: المصنع : دست الاشراف - كوم حماده – البحيرة . | E48: address : dest el ashraf – kom Hamada – al behara
B49: موبايل : 01009958821 – 01099548642 | E49: mob : +2001009958821 - +2001099548642

Sheet باسم ضيا
B3: شركة بايوكيميكال ايجيبت | E3: Bio chemical egypt
G6: كود العميل
D7: حساب عميل | G7: 66
B9: اسم العميل | C9: =IFERROR(VLOOKUP(G7,'[1]البيانات '!$A$3:$B$102,2,0),"") -> باسم ضيا | E9: تليفون | G9: =IFERROR(VLOOKUP(G7,'البيانات '!A3:C78,3,0),"") -> 0
B10: اسم المنشاة | E10: مدير مسئول
B11: العنوان | C11: =IFERROR(VLOOKUP(G7,'البيانات '!A3:D78,4,0),"") -> قرية 19 لحوم - النوبارية - مجزر | E11: مندوب مبيعات | G11: =IFERROR(VLOOKUP(G7,'[1]البيانات '!$A$3:$E$102,5,0),"") -> محمد عبدالشفيع
B14: م | C14: التاريخ | D14: رقم الفاتورة | E14: قيمة الفاتورة | F14: رصيد سابق | G14: المدفوع | H14: رصيد متبقي | I14: ملاحظات
B15: 1 | C15: 2018-08-28 | E15: 1320 | F15: 0 | G15: 0 | H15: =E15+F15-G15 -> 1320
B16: 2 | C16: 2018-09-18 | E16: 375 | F16: 1320 | G16: 400 | H16: =E16+F16-G16 -> 1295
B17: 3 | H17: 0
B18: 4 | H18: 0
B19: 5 | H19: 0
B20: 6 | H20: 0
B21: 7 | H21: 0
B22: 8 | H22: 0
B23: 9 | H23: 0
B24: 10 | H24: 0
B25: 11 | H25: 0
B26: 12 | H26: 0
B27: 13 | H27: 0
B28: 14 | H28: 0
B29: 15 | H29: 0
B30: 16 | H30: 0
B31: 17 | H31: 0
B32: 18 | H32: 0
B33: 19 | H33: 0
B34: 20 | H34: 0
B35: 21 | H35: 0
B36: 22 | H36: 0
B37: 23 | H37: 0
B38: 24 | H38: 0
B39: 25 | H39: 0
B40: 26 | H40: 0
B41: 27 | H41: 0
B42: 28 | H42: 0
B43: 29 | H43: 0
B44: 30 | H44: 0
B45: الاجمالي | E45: =SUM(E15:E44) -> 1695 | G45: =SUM(G15:G44) -> 400
B47: بايو كيميكال ايجيبت للمطهرات و اضافات الاعلاف . | E47: Bio chemical Egypt for antiseptic & feed additives .
B48: المصنع : دست الاشراف - كوم حماده – البحيرة . | E48: address : dest el ashraf – kom Hamada – al behara
B49: موبايل : 01009958821 – 01099548642 | E49: mob : +2001009958821 - +2001099548642

Sheet علي القياد
B3: شركة بايوكيميكال ايجيبت | E3: Bio chemical egypt
G6: كود العميل
D7: حساب عميل | G7: 65
B9: اسم العميل | C9: =IFERROR(VLOOKUP(G7,'[1]البيانات '!$A$3:$B$102,2,0),"") -> م.علي القياد | E9: تليفون | G9: =IFERROR(VLOOKUP(G7,'البيانات '!A3:C78,3,0),"") -> 0
B10: اسم المنشاة | E10: مدير مسئول
B11: العنوان | C11: =IFERROR(VLOOKUP(G7,'البيانات '!A3:D78,4,0),"") -> ابو المطامير | E11: مندوب مبيعات | G11: =IFERROR(VLOOKUP(G7,'[1]البيانات '!$A$3:$E$102,5,0),"") -> محمد عبدالشفيع
B14: م | C14: التاريخ | D14: رقم الفاتورة | E14: قيمة الفاتورة | F14: رصيد سابق | G14: المدفوع | H14: رصيد متبقي | I14: ملاحظات
B15: 1 | C15: 2018-06-27 | E15: 275 | F15: 0 | G15: 275 | H15: =E15+F15-G15 -> 0 | I15: خالص
B16: 2 | H16: =E16+F16-G16 -> 0
B17: 3 | H17: 0
B18: 4 | H18: 0
B19: 5 | H19: 0
B20: 6 | H20: 0
B21: 7 | H21: 0
B22: 8 | H22: 0
B23: 9 | H23: 0
B24: 10 | H24: 0
B25: 11 | H25: 0
B26: 12 | H26: 0
B27: 13 | H27: 0
B28: 14 | H28: 0
B29: 15 | H29: 0
B30: 16 | H30: 0
B31: 17 | H31: 0
B32: 18 | H32: 0
B33: 19 | H33: 0
B34: 20 | H34: 0
B35: 21 | H35: 0
B36: 22 | H36: 0
B37: 23 | H37: 0
B38: 24 | H38: 0
B39: 25 | H39: 0
B40: 26 | H40: 0
B41: 27 | H41: 0
B42: 28 | H42: 0
B43: 29 | H43: 0
B44: 30 | H44: 0
B45: الاجمالي | E45: =SUM(E15:E44) -> 275 | G45: =SUM(G15:G44) -> 275
B47: بايو كيميكال ايجيبت للمطهرات و اضافات الاعلاف . | E47: Bio chemical Egypt for antiseptic & feed additives .
B48: المصنع : دست الاشراف - كوم حماده – البحيرة . | E48: address : dest el ashraf – kom Hamada – al behara
B49: موبايل : 01009958821 – 01099548642 | E49: mob : +2001009958821 - +2001099548642

Sheet رمضان زينه
B3: شركة بايوكيميكال ايجيبت | E3: Bio chemical egypt
G6: كود العميل
D7: حساب عميل | G7: 58
B9: اسم العميل | C9: =IFERROR(VLOOKUP(G7,'[1]البيانات '!$A$3:$B$102,2,0),"") -> رمضان زينه | E9: تليفون | G9: =IFERROR(VLOOKUP(G7,'البيانات '!A3:C78,3,0),"") -> 0
B10: اسم المنشاة | E10: مدير مسئول
B11: العنوان | C11: =IFERROR(VLOOKUP(G7,'البيانات '!A3:D78,4,0),"") -> تلبقه | E11: مندوب مبيعات | G11: =IFERROR(VLOOKUP(G7,'[1]البيانات '!$A$3:$E$102,5,0),"") -> محمد عبدالشفيع
B14: م | C14: التاريخ | D14: رقم الفاتورة | E14: قيمة الفاتورة | F14: رصيد سابق | G14: المدفوع | H14: رصيد متبقي | I14: ملاحظات
B15: 1 | C15: 2018-09-01 | D15: 26 | E15: 5875 | F15: 0 | G15: 2000 | H15: =E15+F15-G15 -> 3875 | I15: مع السائق
B16: 2 | C16: 2018-09-10 | D16: 32 | E16: 4575 | F16: 3875 | G16: 2500 | H16: =E16+F16-G16 -> 5950
B17: 3 | C17: 2018-09-20 | D17: 99 | E17: 0 | F17: 5950 | G17: 1500 | H17: 4450
B18: 4 | H18: 0
B19: 5 | H19: 0
B20: 6 | H20: 0
B21: 7 | H21: 0
B22: 8 | H22: 0
B23: 9 | H23: 0
B24: 10 | H24: 0
B25: 11 | H25: 0
B26: 12 | H26: 0
B27: 13 | H27: 0
B28: 14 | H28: 0
B29: 15 | H29: 0
B30: 16 | H30: 0
B31: 17 | H31: 0
B32: 18 | H32: 0
B33: 19 | H33: 0
B34: 20 | H34: 0
B35: 21 | H35: 0
B36: 22 | H36: 0
B37: 23 | H37: 0
B38: 24 | H38: 0
B39: 25 | H39: 0
B40: 26 | H40: 0
B41: 27 | H41: 0
B42: 28 | H42: 0
B43: 29 | H43: 0
B44: 30 | H44: 0
B45: الاجمالي | E45: =SUM(E15:E44) -> 10450 | G45: =SUM(G15:G44) -> 6000
B47: بايو كيميكال ايجيبت للمطهرات و اضافات الاعلاف . | E47: Bio chemical Egypt for antiseptic & feed additives .
B48: المصنع : دست الاشراف - كوم حماده – البحيرة . | E48: address : dest el ashraf – kom Hamada – al behara
B49: موبايل : 01009958821 – 01099548642 | E49: mob : +2001009958821 - +2001099548642

Sheet عبد الرحمن كشك
B3: شركة بايوكيميكال ايجيبت | E3: Bio chemical egypt
G6: كود العميل
D7: حساب عميل | G7: 64
B9: اسم العميل | C9: =IFERROR(VLOOKUP(G7,'[1]البيانات '!$A$3:$B$102,2,0),"") -> عبد الرحمن كشك | E9: تليفون | G9: =IFERROR(VLOOKUP(G7,'البيانات '!A3:C78,3,0),"") -> 0
B10: اسم المنشاة | E10: مدير مسئول
B11: العنوان | C11: =IFERROR(VLOOKUP(G7,'البيانات '!A3:D78,4,0),"") -> النجاح | E11: مندوب مبيعات | G11: =IFERROR(VLOOKUP(G7,'[1]البيانات '!$A$3:$E$102,5,0),"") -> محمد عبدالشفيع
B14: م | C14: التاريخ | D14: رقم الفاتورة | E14: قيمة الفاتورة | F14: رصيد سابق | G14: المدفوع | H14: رصيد متبقي | I14: ملاحظات
B15: 1 | C15: 2018-08-06 | E15: 3350 | F15: 0 | G15: 0 | H15: =E15+F15-G15 -> 3350
B16: 2 | C16: 2018-08-27 | D16: نقدي | E16: 0 | F16: 3350 | G16: 500 | H16: =E16+F16-G16 -> 2850
B17: 3 | C17: 2018-09-03 | D17: نقدي | E17: 0 | F17: 2850 | G17: 500 | H17: 2350
B18: 4 | D18: فاتورة | E18: 910 | F18: 2350 | G18: 0 | H18: 3260 | I18: ك يود 305
B19: 5 | C19: 2018-09-10 | D19: نقدي | E19: 0 | F19: 3260 | G19: 700 | H19: 2560
B20: 6 | C20: 2018-09-17 | D20: نقدي | E20: 0 | F20: 2560 | G20: 500 | H20: 2060
B21: 7 | H21: 0
B22: 8 | H22: 0
B23: 9 | H23: 0
B24: 10 | H24: 0
B25: 11 | H25: 0
B26: 12 | H26: 0
B27: 13 | H27: 0
B28: 14 | H28: 0
B29: 15 | H29: 0
B30: 16 | H30: 0
B31: 17 | H31: 0
B32: 18 | H32: 0
B33: 19 | H33: 0
B34: 20 | H34: 0
B35: 21 | H35: 0
B36: 22 | H36: 0
B37: 23 | H37: 0
B38: 24 | H38: 0
B39: 25 | H39: 0
B40: 26 | H40: 0
B41: 27 | H41: 0
B42: 28 | H42: 0
B43: 29 | H43: 0
B44: 30 | H44: 0
B45: الاجمالي | E45: =SUM(E15:E44) -> 4260 | G45: =SUM(G15:G44) -> 2200
B47: بايو كيميكال ايجيبت للمطهرات و اضافات الاعلاف . | E47: Bio chemical Egypt for antiseptic & feed additives .
B48: المصنع : دست الاشراف - كوم حماده – البحيرة . | E48: address : dest el ashraf – kom Hamada – al behara
B49: موبايل : 01009958821 – 01099548642 | E49: mob : +2001009958821 - +2001099548642

Sheet اشرف عبدالله
B3: شركة بايوكيميكال ايجيبت | E3: Bio chemical egypt
G6: كود العميل
D7: حساب عميل | G7: 59
B9: اسم العميل | C9: =IFERROR(VLOOKUP(G7,'[1]البيانات '!$A$3:$B$102,2,0),"") -> م.اشرف عبدالله | E9: تليفون | G9: =IFERROR(VLOOKUP(G7,'البيانات '!A3:C78,3,0),"") -> 0
B10: اسم المنشاة | E10: مدير مسئول
B11: العنوان | C11: =IFERROR(VLOOKUP(G7,'البيانات '!A3:D78,4,0),"") -> النهضة - العامرية | E11: مندوب مبيعات | G11: =IFERROR(VLOOKUP(G7,'[1]البيانات '!$A$3:$E$102,5,0),"") -> محمد عبدالشفيع
B14: م | C14: التاريخ | D14: رقم الفاتورة | E14: قيمة الفاتورة | F14: رصيد سابق | G14: المدفوع | H14: رصيد متبقي | I14: ملاحظات
B15: 1 | C15: 2018-07-01 | D15: 5479 | E15: 3570 | G15: 0 | H15: =E15+F15-G15 -> 3570
B16: 2 | C16: 2018-07-05 | D16: 1031 | E16: 0 | F16: 3570 | G16: 1500 | H16: =E16+F16-G16 -> 2070
B17: 3 | C17: 2018-07-08 | D17: 5483 | E17: 4600 | F17: 2070 | G17: 1000 | H17: 5670
B18: 4 | C18: 2018-07-12 | D18: 1045 | E18: 0 | F18: 5670 | G18: 1000 | H18: 4670
B19: 5 | C19: 2018-07-19 | D19: 7 | E19: 0 | F19: 4670 | G19: 1500 | H19: 3170
B20: 6 | C20: 2018-08-02 | E20: 1575 | F20: 3170 | G20: 0 | H20: 4745 | I20: 3بايوسيف*525
B21: 7 | C21: 2018-08-16 | D21: 44 | E21: 0 | F21: 4745 | G21: 500 | H21: 4245
B22: 8 | H22: 0
B23: 9 | H23: 0
B24: 10 | H24: 0
B25: 11 | H25: 0
B26: 12 | H26: 0
B27: 13 | H27: 0
B28: 14 | H28: 0
B29: 15 | H29: 0
B30: 16 | H30: 0
B31: 17 | H31: 0
B32: 18 | H32: 0
B33: 19 | H33: 0
B34: 20 | H34: 0
B35: 21 | H35: 0
B36: 22 | H36: 0
B37: 23 | H37: 0
B38: 24 | H38: 0
B39: 25 | H39: 0
B40: 26 | H40: 0
B41: 27 | H41: 0
B42: 28 | H42: 0
B43: 29 | H43: 0
B44: 30 | H44: 0
B45: الاجمالي | E45: =SUM(E15:E44) -> 9745 | G45: =SUM(G15:G44) -> 5500
B47: بايو كيميكال ايجيبت للمطهرات و اضافات الاعلاف . | E47: Bio chemical Egypt for antiseptic & feed additives .
B48: المصنع : دست الاشراف - كوم حماده – البحيرة . | E48: address : dest el ashraf – kom Hamada – al behara
B49: موبايل : 01009958821 – 01099548642 | E49: mob : +2001009958821 - +2001099548642

Sheet د.محمود شكر
B3: شركة بايوكيميكال ايجيبت | E3: Bio chemical egypt
G6: كود العميل
D7: حساب عميل | G7: 63
B9: اسم العميل | C9: =IFERROR(VLOOKUP(G7,'[1]البيانات '!$A$3:$B$102,2,0),"") -> د.محمود شكر | E9: تليفون | G9: =IFERROR(VLOOKUP(G7,'البيانات '!A3:C78,3,0),"") -> 0
B10: اسم المنشاة | E10: مدير مسئول
B11: العنوان | C11: =IFERROR(VLOOKUP(G7,'البيانات '!A3:D78,4,0),"") -> النجاح | E11: مندوب مبيعات | G11: =IFERROR(VLOOKUP(G7,'[1]البيانات '!$A$3:$E$102,5,0),"") -> محمد عبدالشفيع
B14: م | C14: التاريخ | D14: رقم الفاتورة | E14: قيمة الفاتورة | F14: رصيد سابق | G14: المدفوع | H14: رصيد متبقي | I14: ملاحظات
B15: 1 | C15: 2018-09-03 | E15: 480 | F15: 0 | G15: 0 | H15: =E15+F15-G15 -> 480
B16: 2 | H16: =E16+F16-G16 -> 0
B17: 3 | H17: 0
B18: 4 | H18: 0
B19: 5 | H19: 0
B20: 6 | H20: 0
B21: 7 | H21: 0
B22: 8 | H22: 0
B23: 9 | H23: 0
B24: 10 | H24: 0
B25: 11 | H25: 0
B26: 12 | H26: 0
B27: 13 | H27: 0
B28: 14 | H28: 0
B29: 15 | H29: 0
B30: 16 | H30: 0
B31: 17 | H31: 0
B32: 18 | H32: 0
B33: 19 | H33: 0
B34: 20 | H34: 0
B35: 21 | H35: 0
B36: 22 | H36: 0
B37: 23 | H37: 0
B38: 24 | H38: 0
B39: 25 | H39: 0
B40: 26 | H40: 0
B41: 27 | H41: 0
B42: 28 | H42: 0
B43: 29 | H43: 0
B44: 30 | H44: 0
B45: الاجمالي | E45: =SUM(E15:E44) -> 480 | G45: =SUM(G15:G44) -> 0
B47: بايو كيميكال ايجيبت للمطهرات و اضافات الاعلاف . | E47: Bio chemical Egypt for antiseptic & feed additives .
B48: المصنع : دست الاشراف - كوم حماده – البحيرة . | E48: address : dest el ashraf – kom Hamada – al behara
B49: موبايل : 01009958821 – 01099548642 | E49: mob : +2001009958821 - +2001099548642

Sheet علي الشريف
B3: شركة بايوكيميكال ايجيبت | E3: Bio chemical egypt
G6: كود العميل
D7: حساب عميل | G7: 60
B9: اسم العميل | C9: =IFERROR(VLOOKUP(G7,'[1]البيانات '!$A$3:$B$102,2,0),"") -> علي الشريف | E9: تليفون | G9: =IFERROR(VLOOKUP(G7,'البيانات '!A3:C78,3,0),"") -> 0
B10: اسم المنشاة | E10: مدير مسئول
B11: العنوان | C11: =IFERROR(VLOOKUP(G7,'البيانات '!A3:D78,4,0),"") -> سيدي غازي | E11: مندوب مبيعات | G11: =IFERROR(VLOOKUP(G7,'[1]البيانات '!$A$3:$E$102,5,0),"") -> محمد عبدالشفيع
B14: م | C14: التاريخ | D14: رقم الفاتورة | E14: قيمة الفاتورة | F14: رصيد سابق | G14: المدفوع | H14: رصيد متبقي | I14: ملاحظات
B15: 1 | D15: رصيد اول ( صابون-كلور-فنيك-يود-فورمالين) | H15: 3810
B16: 2 | C16: 2018-09-06 | D16: 73 | E16: 0 | F16: 3810 | G16: 500 | H16: =E16+F16-G16 -> 3310
B17: 3 | H17: 0
B18: 4 | H18: 0
B19: 5 | H19: 0
B20: 6 | H20: 0
B21: 7 | H21: 0
B22: 8 | H22: 0
B23: 9 | H23: 0
B24: 10 | H24: 0
B25: 11 | H25: 0
B26: 12 | H26: 0
B27: 13 | H27: 0
B28: 14 | H28: 0
B29: 15 | H29: 0
B30: 16 | H30: 0
B31: 17 | H31: 0
B32: 18 | H32: 0
B33: 19 | H33: 0
B34: 20 | H34: 0
B35: 21 | H35: 0
B36: 22 | H36: 0
B37: 23 | H37: 0
B38: 24 | H38: 0
B39: 25 | H39: 0
B40: 26 | H40: 0
B41: 27 | H41: 0
B42: 28 | H42: 0
B43: 29 | H43: 0
B44: 30 | H44: 0
B45: الاجمالي | E45: =SUM(E15:E44) -> 0 | G45: =SUM(G15:G44) -> 500
B47: بايو كيميكال ايجيبت للمطهرات و اضافات الاعلاف . | E47: Bio chemical Egypt for antiseptic & feed additives .
B48: المصنع : دست الاشراف - كوم حماده – البحيرة . | E48: address : dest el ashraf – kom Hamada – al behara
B49: موبايل : 01009958821 – 01099548642 | E49: mob : +2001009958821 - +2001099548642

Sheet د.علاء النجار
B3: شركة بايوكيميكال ايجيبت | E3: Bio chemical egypt
G6: كود العميل
D7: حساب عميل | G7: 61
B9: اسم العميل | C9: =IFERROR(VLOOKUP(G7,'[1]البيانات '!$A$3:$B$102,2,0),"") -> علاء النجار | E9: تليفون | G9: =IFERROR(VLOOKUP(G7,'البيانات '!A3:C78,3,0),"") -> 0
B10: اسم المنشاة | E10: مدير مسئول
B11: العنوان | C11: =IFERROR(VLOOKUP(G7,'البيانات '!A3:D78,4,0),"") -> ايتاي البارود | E11: مندوب مبيعات | G11: =IFERROR(VLOOKUP(G7,'[1]البيانات '!$A$3:$E$102,5,0),"") -> محمد عبدالشفيع
B14: م | C14: التاريخ | D14: رقم الفاتورة | E14: قيمة الفاتورة | F14: رصيد سابق | G14: المدفوع | H14: رصيد متبقي | I14: ملاحظات
B15: 1 | C15: 2018-06-20 | D15: 5467 | E15: 5300 | F15: 0 | G15: 0 | H15: =E15+F15-G15 -> 5300
B16: 2 | C16: 2018-06-24 | D16: 1017 | E16: 0 | F16: 5300 | G16: 2000 | H16: =E16+F16-G16 -> 3300
B17: 3 | C17: 2018-07-08 | D17: 1038 | E17: 0 | F17: 3300 | G17: 1000 | H17: 2300
B18: 4 | C18: 2018-07-11 | D18: 5486 | E18: 3200 | F18: 2300 | G18: 0 | H18: 5500
B19: 5 | C19: 2018-07-22 | D19: 10 | E19: 0 | F19: 5500 | G19: 1000 | H19: 4500
B20: 6 | C20: 2018-07-31 | D20: 2 | E20: 3600 | F20: 4500 | G20: 0 | H20: 8100
B21: 7 | C21: 2018-08-05 | D21: 24 | E21: 0 | F21: 8100 | G21: 2000 | H21: 6100
B22: 8 | C22: 2018-08-16 | D22: 43 | E22: 0 | F22: 6100 | G22: 1000 | H22: 5100
B23: 9 | C23: 2018-08-26 | D23: 5 | E23: 0 | F23: 5100 | G23: 1000 | H23: 4100
B24: 10 | C24: 2018-09-03 | D24: 29 | E24: 5225 | F24: 4100 | G24: 0 | H24: 9325
B25: 11 | C25: 2018-09-05 | D25: 70 | E25: 0 | F25: 9325 | G25: 1000 | H25: 8325
B26: 12 | C26: 2018-09-19 | D26: 97 | E26: 0 | F26: 8325 | G26: 1000 | H26: 7325
B27: 13 | H27: 0
B28: 14 | H28: 0
B29: 15 | H29: 0
B30: 16 | H30: 0
B31: 17 | H31: 0
B32: 18 | H32: 0
B33: 19 | H33: 0
B34: 20 | H34: 0
B35: 21 | H35: 0
B36: 22 | H36: 0
B37: 23 | H37: 0
B38: 24 | H38: 0
B39: 25 | H39: 0
B40: 26 | H40: 0
B41: 27 | H41: 0
B42: 28 | H42: 0
B43: 29 | H43: 0
B44: 30 | H44: 0
B45: الاجمالي | E45: =SUM(E15:E44) -> 17325 | G45: =SUM(G15:G44) -> 10000
B47: بايو كيميكال ايجيبت للمطهرات و اضافات الاعلاف . | E47: Bio chemical Egypt for antiseptic & feed additives .
B48: المصنع : دست الاشراف - كوم حماده – البحيرة . | E48: address : dest el ashraf – kom Hamada – al behara
B49: موبايل : 01009958821 – 01099548642 | E49: mob : +2001009958821 - +2001099548642

Sheet محمدعبد الجواد
B3: شركة بايوكيميكال ايجيبت | E3: Bio chemical egypt
G6: كود العميل
D7: حساب عميل | G7: 78
B9: اسم العميل | C9: =IFERROR(VLOOKUP(G7,'البيانات '!$A$3:$B$102,2,0),"") -> محمد عبد الجواد | E9: تليفون | G9: =IFERROR(VLOOKUP(G7,'البيانات '!A3:C78,3,0),"") -> 
B10: اسم المنشاة | E10: مدير مسئول
B11: العنوان | C11: =IFERROR(VLOOKUP(G7,'البيانات '!A3:D90,4,0),"") -> دمنهور | E11: مندوب مبيعات | G11: =IFERROR(VLOOKUP(G7,'البيانات '!$A$3:$E$102,5,0),"") -> ا/فتحي مقلد
B14: م | C14: التاريخ | D14: رقم الفاتورة | E14: قيمة الفاتورة | F14: رصيد سابق | G14: المدفوع | H14: رصيد متبقي | I14: ملاحظات
B15: 1 | C15: 2018-10-14 | D15: 1360 | E15: 2800 | F15: 0 | G15: 0 | H15: =E15+F15-G15 -> 2800
B16: 2 | H16: =E16+F16-G16 -> 0
B17: 3 | H17: 0
B18: 4 | H18: 0
B19: 5 | H19: 0
B20: 6 | H20: 0
B21: 7 | H21: 0
B22: 8 | H22: 0
B23: 9 | H23: 0
B24: 10 | H24: 0
B25: 11 | H25: 0
B26: 12 | H26: 0
B27: 13 | H27: 0
B28: 14 | H28: 0
B29: 15 | H29: 0
B30: 16 | H30: 0
B31: 17 | H31: 0
B32: 18 | H32: 0
B33: 19 | H33: 0
B34: 20 | H34: 0
B35: 21 | H35: 0
B36: 22 | H36: 0
B37: 23 | H37: 0
B38: 24 | H38: 0
B39: 25 | H39: 0
B40: 26 | H40: 0
B41: 27 | H41: 0
B42: 28 | H42: 0
B43: 29 | H43: 0
B44: 30 | H44: 0
B45: الاجمالي | E45: =SUM(E15:E44) -> 2800 | G45: =SUM(G15:G44) -> 0
B47: بايو كيميكال ايجيبت للمطهرات و اضافات الاعلاف . | E47: Bio chemical Egypt for antiseptic & feed additives .
B48: المصنع : دست الاشراف - كوم حماده – البحيرة . | E48: address : dest el ashraf – kom Hamada – al behara
B49: موبايل : 01009958821 – 01099548642 | E49: mob : +2001009958821 - +2001099548642

Sheet رمضان مكي
B3: شركة بايوكيميكال ايجيبت | E3: Bio chemical egypt
G6: كود العميل
D7: حساب عميل | G7: 79
B9: اسم العميل | C9: =IFERROR(VLOOKUP(G7,'البيانات '!$A$3:$B$102,2,0),"") -> رمضان مكي | E9: تليفون | G9: =IFERROR(VLOOKUP(G7,'البيانات '!A3:C78,3,0),"") -> 
B10: اسم المنشاة | E10: مدير مسئول
B11: العنوان | C11: =IFERROR(VLOOKUP(G7,'البيانات '!A3:D90,4,0),"") -> ايتاي البارود | E11: مندوب مبيعات | G11: =IFERROR(VLOOKUP(G7,'البيانات '!$A$3:$E$102,5,0),"") -> ا/فتحي مقلد
B14: م | C14: التاريخ | D14: رقم الفاتورة | E14: قيمة الفاتورة | F14: رصيد سابق | G14: المدفوع | H14: رصيد متبقي | I14: ملاحظات
B15: 1 | C15: 2018-10-14 | D15: 1363 | E15: 1470 | F15: 0 | G15: 0 | H15: =E15+F15-G15 -> 1470
B16: 2 | H16: =E16+F16-G16 -> 0
B17: 3 | H17: 0
B18: 4 | H18: 0
B19: 5 | H19: 0
B20: 6 | H20: 0
B21: 7 | H21: 0
B22: 8 | H22: 0
B23: 9 | H23: 0
B24: 10 | H24: 0
B25: 11 | H25: 0
B26: 12 | H26: 0
B27: 13 | H27: 0
B28: 14 | H28: 0
B29: 15 | H29: 0
B30: 16 | H30: 0
B31: 17 | H31: 0
B32: 18 | H32: 0
B33: 19 | H33: 0
B34: 20 | H34: 0
B35: 21 | H35: 0
B36: 22 | H36: 0
B37: 23 | H37: 0
B38: 24 | H38: 0
B39: 25 | H39: 0
B40: 26 | H40: 0
B41: 27 | H41: 0
B42: 28 | H42: 0
B43: 29 | H43: 0
B44: 30 | H44: 0
B45: الاجمالي | E45: =SUM(E15:E44) -> 1470 | G45: =SUM(G15:G44) -> 0
B47: بايو كيميكال ايجيبت للمطهرات و اضافات الاعلاف . | E47: Bio chemical Egypt for antiseptic & feed additives .
B48: المصنع : دست الاشراف - كوم حماده – البحيرة . | E48: address : dest el ashraf – kom Hamada – al behara
B49: موبايل : 01009958821 – 01099548642 | E49: mob : +2001009958821 - +2001099548642

Sheet خالد الرمالي
B3: شركة بايوكيميكال ايجيبت | E3: Bio chemical egypt
G6: كود العميل
D7: حساب عميل | G7: 81
B9: اسم العميل | C9: =IFERROR(VLOOKUP(G7,'البيانات '!$A$3:$B$102,2,0),"") -> خالد الرمالي | D9: كاش | E9: تليفون | G9: =IFERROR(VLOOKUP(G7,'البيانات '!A3:C78,3,0),"") -> 
B10: اسم المنشاة | E10: مدير مسئول
B11: العنوان | C11: =IFERROR(VLOOKUP(G7,'البيانات '!A3:D90,4,0),"") -> خربتا | E11: مندوب مبيعات | G11: =IFERROR(VLOOKUP(G7,'البيانات '!$A$3:$E$102,5,0),"") -> الكابتن - كامل
B14: م | C14: التاريخ | D14: رقم الفاتورة | E14: قيمة الفاتورة | F14: رصيد سابق | G14: المدفوع | H14: رصيد متبقي | I14: ملاحظات
B15: 1 | C15: 2018-10-14 | D15: 1367 | E15: 1140 | F15: 0 | G15: 1140 | H15: =E15+F15-G15 -> 0 | I15: كاش
B16: 2 | H16: =E16+F16-G16 -> 0
B17: 3 | H17: 0
B18: 4 | H18: 0
B19: 5 | H19: 0
B20: 6 | H20: 0
B21: 7 | H21: 0
B22: 8 | H22: 0
B23: 9 | H23: 0
B24: 10 | H24: 0
B25: 11 | H25: 0
B26: 12 | H26: 0
B27: 13 | H27: 0
B28: 14 | H28: 0
B29: 15 | H29: 0
B30: 16 | H30: 0
B31: 17 | H31: 0
B32: 18 | H32: 0
B33: 19 | H33: 0
B34: 20 | H34: 0
B35: 21 | H35: 0
B36: 22 | H36: 0
B37: 23 | H37: 0
B38: 24 | H38: 0
B39: 25 | H39: 0
B40: 26 | H40: 0
B41: 27 | H41: 0
B42: 28 | H42: 0
B43: 29 | H43: 0
B44: 30 | H44: 0
B45: الاجمالي | E45: =SUM(E15:E44) -> 1140 | G45: =SUM(G15:G44) -> 1140
B47: بايو كيميكال ايجيبت للمطهرات و اضافات الاعلاف . | E47: Bio chemical Egypt for antiseptic & feed additives .
B48: المصنع : دست الاشراف - كوم حماده – البحيرة . | E48: address : dest el ashraf – kom Hamada – al behara
B49: موبايل : 01009958821 – 01099548642 | E49: mob : +2001009958821 - +2001099548642

Sheet ا-فتحي مقلد
B3: شركة بايوكيميكال ايجيبت | E3: Bio chemical egypt
G6: كود العميل
D7: حساب عميل | G7: 80
B9: اسم العميل | C9: =IFERROR(VLOOKUP(G7,'البيانات '!$A$3:$B$102,2,0),"") -> ا/فتحي مقلد | E9: تليفون | G9: =IFERROR(VLOOKUP(G7,'البيانات '!A3:C78,3,0),"") -> 
B10: اسم المنشاة | C10: موزع | E10: مدير مسئول
B11: العنوان | C11: =IFERROR(VLOOKUP(G7,'البيانات '!A3:D90,4,0),"") -> 00:00:00 | E11: مندوب مبيعات | G11: =IFERROR(VLOOKUP(G7,'البيانات '!$A$3:$E$102,5,0),"") -> الكابتن - كامل
B14: م | C14: التاريخ | D14: رقم الفاتورة | E14: قيمة الفاتورة | F14: رصيد سابق | G14: المدفوع | H14: رصيد متبقي | I14: ملاحظات
B15: 1 | C15: 2018-10-14 | D15: 1366 | E15: 6000 | F15: 0 | G15: 0 | H15: =E15+F15-G15 -> 6000
B16: 2 | H16: =E16+F16-G16 -> 0
B17: 3 | H17: 0
B18: 4 | H18: 0
B19: 5 | H19: 0
B20: 6 | H20: 0
B21: 7 | H21: 0
B22: 8 | H22: 0
B23: 9 | H23: 0
B24: 10 | H24: 0
B25: 11 | H25: 0
B26: 12 | H26: 0
B27: 13 | H27: 0
B28: 14 | H28: 0
B29: 15 | H29: 0
B30: 16 | H30: 0
B31: 17 | H31: 0
B32: 18 | H32: 0
B33: 19 | H33: 0
B34: 20 | H34: 0
B35: 21 | H35: 0
B36: 22 | H36: 0
B37: 23 | H37: 0
B38: 24 | H38: 0
B39: 25 | H39: 0
B40: 26 | H40: 0
B41: 27 | H41: 0
B42: 28 | H42: 0
B43: 29 | H43: 0
B44: 30 | H44: 0
B45: الاجمالي | E45: =SUM(E15:E44) -> 6000 | G45: =SUM(G15:G44) -> 0
B47: بايو كيميكال ايجيبت للمطهرات و اضافات الاعلاف . | E47: Bio chemical Egypt for antiseptic & feed additives .
B48: المصنع : دست الاشراف - كوم حماده – البحيرة . | E48: address : dest el ashraf – kom Hamada – al behara
B49: موبايل : 01009958821 – 01099548642 | E49: mob : +2001009958821 - +2001099548642

Sheet محمود السماوي
B3: شركة بايوكيميكال ايجيبت | E3: Bio chemical egypt
G6: كود العميل
D7: حساب عميل | G7: 82
B9: اسم العميل | C9: =IFERROR(VLOOKUP(G7,'البيانات '!$A$3:$B$102,2,0),"") -> محمود السماوي | E9: تليفون | G9: =IFERROR(VLOOKUP(G7,'البيانات '!A3:C78,3,0),"") -> 
B10: اسم المنشاة | E10: مدير مسئول
B11: العنوان | C11: =IFERROR(VLOOKUP(G7,'البيانات '!A3:D90,4,0),"") -> طنوب 0 المنوفية | E11: مندوب مبيعات | G11: =IFERROR(VLOOKUP(G7,'البيانات '!$A$3:$E$102,5,0),"") -> احمد خفاجي
B14: م | C14: التاريخ | D14: رقم الفاتورة | E14: قيمة الفاتورة | F14: رصيد سابق | G14: المدفوع | H14: رصيد متبقي | I14: ملاحظات
B15: 1 | C15: 2018-10-03 | E15: 7150 | F15: 0 | G15: 4000 | H15: =E15+F15-G15 -> 3150 | I15: مع السيارة
B16: 2 | H16: =E16+F16-G16 -> 0
B17: 3 | H17: 0
B18: 4 | H18: 0
B19: 5 | H19: 0
B20: 6 | H20: 0
B21: 7 | H21: 0
B22: 8 | H22: 0
B23: 9 | H23: 0
B24: 10 | H24: 0
B25: 11 | H25: 0
B26: 12 | H26: 0
B27: 13 | H27: 0
B28: 14 | H28: 0
B29: 15 | H29: 0
B30: 16 | H30: 0
B31: 17 | H31: 0
B32: 18 | H32: 0
B33: 19 | H33: 0
B34: 20 | H34: 0
B35: 21 | H35: 0
B36: 22 | H36: 0
B37: 23 | H37: 0
B38: 24 | H38: 0
B39: 25 | H39: 0
B40: 26 | H40: 0
B41: 27 | H41: 0
B42: 28 | H42: 0
B43: 29 | H43: 0
B44: 30 | H44: 0
B45: الاجمالي | E45: =SUM(E15:E44) -> 7150 | G45: =SUM(G15:G44) -> 4000
B47: بايو كيميكال ايجيبت للمطهرات و اضافات الاعلاف . | E47: Bio chemical Egypt for antiseptic & feed additives .
B48: المصنع : دست الاشراف - كوم حماده – البحيرة . | E48: address : dest el ashraf – kom Hamada – al behara
B49: موبايل : 01009958821 – 01099548642 | E49: mob : +2001009958821 - +2001099548642

Sheet أحمد سعيد
B3: شركة بايوكيميكال ايجيبت | E3: Bio chemical egypt
G6: كود العميل
D7: حساب عميل | G7: =IFERROR(INDEX('البيانات '!$A$3:$A$1000,MATCH($C$9,'البيانات '!$B$3:$B$1000,0)),"") -> 83
B9: اسم العميل | C9: أحمد سعيد | E9: تليفون | G9: =IFERROR(VLOOKUP(G7,'البيانات '!A3:C78,3,0),"") -> 
B10: اسم المنشاة | E10: مدير مسئول
B11: العنوان | C11: =IF(VLOOKUP(G7,'البيانات '!A3:D90,4,0)="","",VLOOKUP(G7,'البيانات '!A3:D90,4,0)) ->  | E11: مندوب مبيعات | G11: =IFERROR(VLOOKUP(G7,'البيانات '!$A$3:$E$102,5,0),"") -> 0
B14: م | C14: التاريخ | D14: رقم الفاتورة | E14: قيمة الفاتورة | F14: رصيد سابق | G14: المدفوع | H14: رصيد متبقي | I14: ملاحظات
B15: 1
B16: 2
B17: 3
B18: 4
B19: 5
B20: 6
B21: 7
B22: 8
B23: 9
B24: 10
B25: 11
B26: 12
B27: 13
B28: 14
B29: 15
B30: 16
B31: 17
B32: 18
B33: 19
B34: 20
B35: 21
B36: 22
B37: 23
B38: 24
B39: 25
B40: 26
B41: 27
B42: 28
B43: 29
B44: 30
B45: الاجمالي | E45: =SUM(E15:E44) -> 0 | G45: =SUM(G15:G44) -> 0
B47: بايو كيميكال ايجيبت للمطهرات و اضافات الاعلاف . | E47: Bio chemical Egypt for antiseptic & feed additives .
B48: المصنع : دست الاشراف - كوم حماده – البحيرة . | E48: address : dest el ashraf – kom Hamada – al behara
B49: موبايل : 01009958821 – 01099548642 | E49: mob : +2001009958821 - +2001099548642
